Workbook

Sheet Inputs & Results
B2: Model Information
B3: DESCRIPTION
B4: Screening strategies for Diabetic Retinal Diseases (DRD). We have made this model available for illustrative purposes so that the reader can change input parameters and see the relative impact on vision loss. This is not intended to make treatment or management decisions. The CAREVL model is an algorithmic tool (“Algorithm”) developed by faculty at the Johns Hopkins University School of Medicine, the University of Iowa, and the University of Wisconsin (“The Developers”). The Algorithm is not an FDA-registered clinical decision support tool and has not been reviewed or approved for any use—including diagnosis or treatment of disease or other conditions—by the FDA. The Developers are making the Algorithm publicly available for academic and research use only. The Algorithm does not replace the independent clinical judgment of healthcare professionals or the performance of any clinical assessment. The Algorithm is not intended for the diagnosis or treatment of any disease or condition in individual patients. The Developers hereby disclaims any and all representations and warranties regarding the Algorithm, including warranties of fitness for use in clinical decision making and warranties that the Algorithm works as intended, is clinically safe, does not infringe third party intellectual property rights, and/or is free from defects and bugs.
B6: STRATEGIES
B7: ECP
B8: eye care provider
B9: AI
B10: artificial intelligence
B11: No Screening
B12: no screening
B14: Green cells are editable
B15: Gray cells - no impact on calculation
B16: INPUTS | F16: MODEL RESULTS
B17: Description | C17: Value | D17: Reference in TreeAge | F17: Strategy | G17: Payoff 4 - Vision Loss per 100,000
B18: Parameter Variables | F18: ECP | G18: ='1. Strategy Calcs'!M15 -> 1625.159107
B19: Probability of progressing from No DRD to DRD Metabolic in the absence of treatment | C19: 0.05 | D19: pNaturalHistoryToDRDMetabolic | F19: AI | G19: ='2. Strategy Calcs'!M15 -> 1534.708784
B20: Probability of progressing from DRD Metabolic to DRD Ophthalmic in the absence of treatment | C20: 0.02 | D20: pNaturalHistoryDRDMetabolicToOphth | F20: No Screening | G20: ='3. Strategy Calcs'!J15 -> 1636.983432
B21: Probability of progressing from DRD Metabolic to DRD Ophthalmic in the presence of treatment | C21: 0.01 | D21: pTreatedDRDMetabolicToOphth
B22: Relative Orrds increased adherence to DRD ophthalmic | C22: 0.13 | D22: rOddsIncAdherencetoOphthalmic
B23: Probability of progressing from DRD Ophthalmic to vision loss in the absence of treatment | C23: 0.075 | D23: pNaturalHistoryDRDOphthToVisionLoss
B24: Probability of progressing from vision loss to irreversible vision loss in the absence of treatment | C24: 0.37 | D24: pNaturalHistoryVisionLossToVisionLossIrreversible
B25: Probability of progressing from DRD with vision loss to irreversible vision loss despite treatment | C25: 0.034 | D25: pTreatedDRDVisionlossToVisionLossIrreversible
B26: Relative Odds Increased adherence to DRD with vision loss | C26: 0.97 | D26: rOddsIncAdherencetoVisionLoss
B27: Probability of adhering with metabolic management | C27: 0.24 | D27: pAdheringToMetabolicManagement
B28: Probability of patient following up with ECP after ECP screen positive | C28: 0.29 | D28: pAcceptsReferralAfterECP
B29: Probability of patient accepting screening with ECP | C29: 0.2 | D29: pAcceptsScreeningECP
B30: Probability of patient accepting screening with AI | C30: 0.95 | D30: pAcceptsScreeningAI
B31: Sensitivity Screening for DRD with AI | C31: 0.87 | D31: sensScreeningAI
B32: Sensitivity Screening for DRD with ECP | C32: 0.33 | D32: sensScreeningECP
B33: Specificity Screening for DRD with AI | C33: 0.91 | D33: specScreeningAI
C34: 1 | D34: AAmodelAI
C35: 2 | D35: AAmodelECP
B36: Probability of accepting follow up care in case of DRD with vision loss | C36: 0.58 | D36: pDRDVisionLossAcceptsReferral
B37: Prevalence of DRD Metabolic | C37: 0.22 | D37: prevDRDMetabolic
B38: Prevalence DRD metabolic treated | C38: 0 | D38: prevDRDMetabolicRx
B39: Proportion of DRD Ophthalmic | C39: 0.04 | D39: propDRDOphthalmic
B40: Prevalence of DRD Ophthalmic treated | C40: 0 | D40: prevDRDOphthalmicRx
B41: Prevalence of DRD with vision loss | C41: 0.01 | D41: prevDRDVisionLoss
B42: Prevalence of DRD with vision loss treated | C42: 0 | D42: prevDRDVisionLossRx
B43: Probability of progressing from DRD Ophthalmic to vision loss in the presence of treatment | C43: 0.02 | D43: pTreatedDRDOphthalmicToVisionLoss
B44: Probability of patient following up with ECP after AI screen positive | C44: 0.75 | D44: pAcceptsReferralAfterAI
B45: Specificity Screening for DRD with ECP | C45: 0.99 | D45: specScreeningECP

Sheet 1. Strategy Calcs (hidden)
B1: Strategy | C1: 1 | D1: ECP
B2: States | C2: All
Q3: No DRD - State 1.1 | AF3: DRD metabolic - State 1.2 | BK3: DRD Metabolic treated - State 1.3 | BR3: DRD ophthalmic - State 1.4 | CW3: DRD ophthalmic treated - State 1.5 | DD3: DRD Vision Loss - State 1.6 | DP3: DRD Vision Loss Treated - State 1.7 | DX3: Blindness - State 1.8
D4: Cohort State Proportions | Q4: Cohort % | AF4: Cohort % | BK4: Cohort % | BR4: Cohort % | CW4: Cohort % | DD4: Cohort % | DO4: Payoff 4 - Vision Loss | DP4: Cohort % | DW4: Payoff 4 - Vision Loss | DX4: Cohort % | DY4: Payoff 4 - Vision Loss
B5: Cycle | D5: No DRD | E5: DRD metabolic | F5: DRD Metabolic treated | G5: DRD ophthalmic | H5: DRD ophthalmic treated | I5: DRD Vision Loss | J5: DRD Vision Loss Treated | K5: Blindness | L5: Payoff 4 - Vision Loss | O5: Checksum of Cohort % | Q5: 1.1 State | R5: 1.1.1 Transition | S5: 1.1.1.1 Transition | T5: 1.1.1.1.1 Transition | U5: 1.1.1.1.1.1 Transition | V5: 1.1.1.1.1.2 Transition | W5: 1.1.1.1.2 Transition | X5: 1.1.1.1.2.1 Transition | Y5: 1.1.1.1.2.2 Transition | Z5: 1.1.1.2 Transition | AA5: 1.1.1.2.1 Transition | AB5: 1.1.1.2.2 Transition | AC5: 1.1.2 Transition | AD5: 1.1.2.1 Transition | AE5: 1.1.2.2 Transition | AF5: 1.2 State | AG5: 1.2.1 Transition | AH5: 1.2.1.1 Transition | AI5: 1.2.1.1.1 Transition | AJ5: 1.2.1.1.1.1 Transition | AK5: 1.2.1.1.1.1.1 Transition | AL5: 1.2.1.1.1.1.1.1 Transition | AM5: 1.2.1.1.1.1.1.2 Transition | AN5: 1.2.1.1.1.1.2 Transition | AO5: 1.2.1.1.1.1.2.1 Transition | AP5: 1.2.1.1.1.1.2.2 Transition | AQ5: 1.2.1.1.1.2 Transition | AR5: 1.2.1.1.1.2.1 Transition | AS5: 1.2.1.1.1.2.2 Transition | AT5: 1.2.1.1.2 Transition | AU5: 1.2.1.1.2.1 Transition | AV5: 1.2.1.1.2.2 Transition | AW5: 1.2.1.2 Transition | AX5: 1.2.1.2.1 Transition | AY5: 1.2.1.2.2 Transition | AZ5: 1.2.2 Transition | BA5: 1.2.2.1 Transition | BB5: 1.2.2.1.1 Transition | BC5: 1.2.2.1.1.1 Transition | BD5: 1.2.2.1.1.2 Transition | BE5: 1.2.2.1.2 Transition | BF5: 1.2.2.1.2.1 Transition | BG5: 1.2.2.1.2.2 Transition | BH5: 1.2.2.2 Transition | BI5: 1.2.2.2.1 Transition | BJ5: 1.2.2.2.2 Transition | BK5: 1.3 State | BL5: 1.3.1 Transition | BM5: 1.3.1.1 Transition | BN5: 1.3.1.2 Transition | BO5: 1.3.2 Transition | BP5: 1.3.2.1 Transition | BQ5: 1.3.2.2 Transition | BR5: 1.4 State | BS5: 1.4.1 Transition | BT5: 1.4.1.1 Transition | BU5: 1.4.1.1.1 Transition | BV5: 1.4.1.1.1.1 Transition | BW5: 1.4.1.1.1.1.1 Transition | BX5: 1.4.1.1.1.1.1.1 Transition | BY5: 1.4.1.1.1.1.1.2 Transition | BZ5: 1.4.1.1.1.1.2 Transition | CA5: 1.4.1.1.1.1.2.1 Transition | CB5: 1.4.1.1.1.1.2.2 Transition | CC5: 1.4.1.1.1.2 Transition | CD5: 1.4.1.1.1.2.1 Transition | CE5: 1.4.1.1.1.2.2 Transition | CF5: 1.4.1.1.2 Transition | CG5: 1.4.1.1.2.1 Transition | CH5: 1.4.1.1.2.2 Transition | CI5: 1.4.1.2 Transition | CJ5: 1.4.1.2.1 Transition | CK5: 1.4.1.2.2 Transition | CL5: 1.4.2 Transition | CM5: 1.4.2.1 Transition | CN5: 1.4.2.1.1 Transition | CO5: 1.4.2.1.1.1 Transition | CP5: 1.4.2.1.1.2 Transition | CQ5: 1.4.2.1.2 Transition | CR5: 1.4.2.1.2.1 Transition | CS5: 1.4.2.1.2.2 Transition | CT5: 1.4.2.2 Transition | CU5: 1.4.2.2.1 Transition | CV5: 1.4.2.2.2 Transition | CW5: 1.5 State | CX5: 1.5.1 Transition | CY5: 1.5.1.1 Transition | CZ5: 1.5.1.2 Transition | DA5: 1.5.2 Transition | DB5: 1.5.2.1 Transition | DC5: 1.5.2.2 Transition | DD5: 1.6 State | DE5: 1.6.1 Transition | DF5: 1.6.1.1 Transition | DG5: 1.6.1.1.1 Transition | DH5: 1.6.1.1.2 Transition | DI5: 1.6.1.2 Transition | DJ5: 1.6.1.2.1 Transition | DK5: 1.6.1.2.2 Transition | DL5: 1.6.2 Transition | DM5: 1.6.2.1 Transition | DN5: 1.6.2.2 Transition | DO5: 1.6 State | DP5: 1.7 State | DQ5: 1.7.1 Transition | DR5: 1.7.1.1 Transition | DS5: 1.7.1.2 Transition | DT5: 1.7.2 Transition | DU5: 1.7.2.1 Transition | DV5: 1.7.2.2 Transition | DW5: 1.7 State | DX5: 1.8 State | DY5: 1.8 State | EA5: pDRDMetabolicReferred | EB5: pDRDOphthalmicReferred
L6: No Discount | M6: Cum No Disc | Q6: No DRD | R6: Accepts Screening | S6: Screen positive | T6: Accepts Referral | U6: Does not progress | V6: Progresses to DRD Metabolic | W6: Does not Accept Referral | X6: Does not progress | Y6: Progresses to DRD Metabolic | Z6: Screen negative | AA6: Does not progress | AB6: Progresses to DRD Metabolic | AC6: Does not accept Screen | AD6: Does not progress | AE6: Progresses to DRD Metabolic | AF6: DRD metabolic | AG6: Offered Screening | AH6: Accepts Screening | AI6: Screen positive | AJ6: Accepts Referral | AK6: Does not adhere to metabolic management | AL6: DRD metabolic | AM6: DRD ophthalmic | AN6: Adheres with metabolic control | AO6: DRD metabolic treated | AP6: DRD ophthalmic | AQ6: Does not accept referral | AR6: DRD metabolic | AS6: DRD ophthalmic | AT6: Screen negative | AU6: DRD metabolic | AV6: DRD ophthalmic | AW6: Does not accept Screen | AX6: DRD metabolic | AY6: DRD ophthalmic | AZ6: Referred | BA6: Accepts Referral | BB6: Does not adhere to metabolic management | BC6: DRD metabolic | BD6: DRD ophthalmic | BE6: Adheres with metabolic control | BF6: DRD metabolic treated | BG6: DRD ophthalmic | BH6: Does not accept referral | BI6: DRD metabolic | BJ6: DRD ophthalmic | BK6: DRD Metabolic treated | BL6: Adheres with metabolic treatment | BM6: DRD metabolic treated | BN6: DRD ophthalmic | BO6: Does not adhere with metabolic treatment | BP6: DRD metabolic | BQ6: DRD ophthalmic | BR6: DRD ophthalmic | BS6: Offered Screening | BT6: Accepts Screening | BU6: Screen positive | BV6: Accepts Referral | BW6: Does not adhere to ophthalmic management | BX6: DRD ophthalmic | BY6: DRD Vision loss | BZ6: Adheres with ophthalmic management | CA6: DRD ophthalmic treated | CB6: DRD Vision loss | CC6: Does not Accept Referral | CD6: DRD ophthalmic | CE6: Progresses from DRD requiring ophthalmic control to vision loss | CF6: Screen negative | CG6: DRD ophthalmic | CH6: Progresses from DRD requiring ophthalmic control to vision loss | CI6: Does not accept Screen | CJ6: DRD ophthalmic | CK6: Progresses from DRD requiring ophthalmic control to vision loss | CL6: Referred | CM6: Accepts Referral | CN6: Does not adhere to ophthalmic management | CO6: DRD ophthalmic | CP6: Progresses from DRD requiring ophthalmic control to vision loss | CQ6: Adheres with ophthalmic management | CR6: DRD ophthalmic treated | CS6: DRD Vision loss | CT6: Does not Accept Referral | CU6: DRD ophthalmic | CV6: Progresses from DRD requiring ophthalmic control to vision loss | CW6: DRD ophthalmic treated | CX6: Adheres to ophthalmic management | CY6: DRD ophthalmic treated | CZ6: DRD Vision loss | DA6: Does not adhere with ophthalmic management | DB6: DRD ophthalmic | DC6: Progresses from DRD requiring ophthalmic control to vision loss | DD6: DRD Vision Loss | DE6: Accepts referral | DF6: Adheres to vision loss management | DG6: DRD Vision loss gets treated | DH6: Blindness | DI6: Does not adhere to vision loss management | DJ6: Persistent vision loss | DK6: Blindness | DL6: Does not accept referral | DM6: Persistent vision loss | DN6: Blindness | DO6: DRD Vision Loss | DP6: DRD Vision Loss Treated | DQ6: Adheres to vision loss management | DR6: DRD Vision loss gets treated | DS6: Blindness | DT6: Does not adhere vision loss management | DU6: Persistent vision loss | DV6: Blindness | DW6: DRD Vision Loss Treated | DX6: Blindness | DY6: Blindness
B8: 0 | D8: =1-(prevDRDMetabolic)-(prevDRDMetabolicRx)-((propDRDOphthalmic*prevDRDMetabolic))-(prevDRDOphthalmicRx)-(prevDRDVisionLoss)-(prevDRDVisionLossRx)-(0) -> 0.7612 | E8: =prevDRDMetabolic -> 0.22 | F8: =prevDRDMetabolicRx -> 0 | G8: =(propDRDOphthalmic*prevDRDMetabolic) -> 0.0088 | H8: =prevDRDOphthalmicRx -> 0 | I8: =prevDRDVisionLoss -> 0.01 | J8: =prevDRDVisionLossRx -> 0 | K8: =0 -> 0 | L8: ='1. Strategy Calcs'!DO8 + '1. Strategy Calcs'!DW8 + '1. Strategy Calcs'!DY8 -> 0 | M8: =L8 -> 0 | O8: =SUM(D8:K8) -> 1 | Q8: ='1. Strategy Calcs'!D8 -> 0.7612 | R8: =Q8*(IF(AAmodelECP=AAmodelAI,pAcceptsScreeningAI,pAcceptsScreeningECP)) -> 0.15224 | S8: =R8*(1-(IF(AAmodelECP=AAmodelAI,specScreeningAI,specScreeningECP))) -> 0.0015224 | T8: =S8*(IF(AAmodelECP=AAmodelAI,pAcceptsReferralAfterAI,pAcceptsReferralAfterECP)) -> 0.000441496 | U8: =T8*(1-(pNaturalHistoryToDRDMetabolic)) -> 0.0004194212 | V8: =T8*(pNaturalHistoryToDRDMetabolic) -> 2.20748e-05 | W8: =S8*(1-(IF(AAmodelECP=AAmodelAI,pAcceptsReferralAfterAI,pAcceptsReferralAfterECP))) -> 0.001080904 | X8: =W8*(1-(pNaturalHistoryToDRDMetabolic)) -> 0.0010268588 | Y8: =W8*(pNaturalHistoryToDRDMetabolic) -> 5.40452e-05 | Z8: =R8*(IF(AAmodelECP=AAmodelAI,specScreeningAI,specScreeningECP)) -> 0.1507176 | AA8: =Z8*(1-(pNaturalHistoryToDRDMetabolic)) -> 0.14318172 | AB8: =Z8*(pNaturalHistoryToDRDMetabolic) -> 0.00753588 | AC8: =Q8*(1-(IF(AAmodelECP=AAmodelAI,pAcceptsScreeningAI,pAcceptsScreeningECP))) -> 0.60896 | AD8: =AC8*(1-(pNaturalHistoryToDRDMetabolic)) -> 0.578512 | AE8: =AC8*(pNaturalHistoryToDRDMetabolic) -> 0.030448 | AF8: ='1. Strategy Calcs'!E8 -> 0.22 | AG8: =AF8*(1-(INDEX(pDRDMetabolicReferred_1,cycle+1))) -> 0 | AH8: =AG8*(IF(AAmodelECP=AAmodelAI,pAcceptsScreeningAI,pAcceptsScreeningECP)) -> 0 | AI8: =AH8*(IF(AAmodelECP=AAmodelAI,sensScreeningAI,sensScreeningECP)) -> 0 | AJ8: =AI8*(IF(AAmodelECP=AAmodelAI,pAcceptsReferralAfterAI,pAcceptsReferralAfterECP)) -> 0 | AK8: =AJ8*(1-(pAdheringToMetabolicManagement)) -> 0 | AL8: =AK8*(1-(pNaturalHistoryDRDMetabolicToOphth)) -> 0 | AM8: =AK8*(pNaturalHistoryDRDMetabolicToOphth) -> 0 | AN8: =AJ8*(pAdheringToMetabolicManagement) -> 0 | AO8: =AN8*(1-(pTreatedDRDMetabolicToOphth)) -> 0 | AP8: =AN8*(pTreatedDRDMetabolicToOphth) -> 0 | AQ8: =AI8*(1-(IF(AAmodelECP=AAmodelAI,pAcceptsReferralAfterAI,pAcceptsReferralAfterECP))) -> 0 | AR8: =AQ8*(1-(pNaturalHistoryDRDMetabolicToOphth)) -> 0 | AS8: =AQ8*(pNaturalHistoryDRDMetabolicToOphth) -> 0 | AT8: =AH8*(1-(IF(AAmodelECP=AAmodelAI,sensScreeningAI,sensScreeningECP))) -> 0 | AU8: =AT8*(1-(pNaturalHistoryDRDMetabolicToOphth)) -> 0 | AV8: =AT8*(pNaturalHistoryDRDMetabolicToOphth) -> 0 | AW8: =AG8*(1-(IF(AAmodelECP=AAmodelAI,pAcceptsScreeningAI,pAcceptsScreeningECP))) -> 0 | AX8: =AW8*(1-(pNaturalHistoryDRDMetabolicToOphth)) -> 0 | AY8: =AW8*(pNaturalHistoryDRDMetabolicToOphth) -> 0 | AZ8: =AF8*(INDEX(pDRDMetabolicReferred_1,cycle+1)) -> 0.22 | BA8: =AZ8*(IF(AAmodelECP=AAmodelAI,pAcceptsReferralAfterAI,pAcceptsReferralAfterECP)) -> 0.0638 | BB8: =BA8*(1-(pAdheringToMetabolicManagement)) -> 0.048488 | BC8: =BB8*(1-(pNaturalHistoryDRDMetabolicToOphth)) -> 0.04751824 | BD8: =BB8*(pNaturalHistoryDRDMetabolicToOphth) -> 0.00096976 | BE8: =BA8*(pAdheringToMetabolicManagement) -> 0.015312 | BF8: =BE8*(1-(pTreatedDRDMetabolicToOphth)) -> 0.01515888 | BG8: =BE8*(pTreatedDRDMetabolicToOphth) -> 0.00015312 | BH8: =AZ8*(1-(IF(AAmodelECP=AAmodelAI,pAcceptsReferralAfterAI,pAcceptsReferralAfterECP))) -> 0.1562 | BI8: =BH8*(1-(pNaturalHistoryDRDMetabolicToOphth)) -> 0.153076 | BJ8: =BH8*(pNaturalHistoryDRDMetabolicToOphth) -> 0.003124 | BK8: ='1. Strategy Calcs'!F8 -> 0 | BL8: =BK8*(pAdheringToMetabolicManagement) -> 0 | BM8: =BL8*(1-(pTreatedDRDMetabolicToOphth)) -> 0 | BN8: =BL8*(pTreatedDRDMetabolicToOphth) -> 0 | BO8: =BK8*(1-(pAdheringToMetabolicManagement)) -> 0 | BP8: =BO8*(1-(pNaturalHistoryDRDMetabolicToOphth)) -> 0 | BQ8: =BO8*(pNaturalHistoryDRDMetabolicToOphth) -> 0 | BR8: ='1. Strategy Calcs'!G8 -> 0.0088 | BS8: =BR8*(1-(INDEX(pDRDOphthalmicReferred_1,cycle+1))) -> 0 | BT8: =BS8*(IF(AAmodelECP=AAmodelAI,pAcceptsScreeningAI,pAcceptsScreeningECP)) -> 0 | BU8: =BT8*(IF(AAmodelECP=AAmodelAI,sensScreeningAI,sensScreeningECP)) -> 0 | BV8: =BU8*(IF(AAmodelECP=AAmodelAI,pAcceptsReferralAfterAI,pAcceptsReferralAfterECP)) -> 0 | BW8: =BV8*(1-((((1+rOddsIncAdherencetoOphthalmic)*pAdheringToMetabolicManagement)/(1+(pAdheringToMetabolicManagement*rOddsIncAdherencetoOphthalmic))))) -> 0 | BX8: =BW8*(1-(pNaturalHistoryDRDOphthToVisionLoss)) -> 0 | BY8: =BW8*(pNaturalHistoryDRDOphthToVisionLoss) -> 0 | BZ8: =BV8*((((1+rOddsIncAdherencetoOphthalmic)*pAdheringToMetabolicManagement)/(1+(pAdheringToMetabolicManagement*rOddsIncAdherencetoOphthalmic)))) -> 0 | CA8: =BZ8*(1-(pTreatedDRDOphthalmicToVisionLoss)) -> 0 | CB8: =BZ8*(pTreatedDRDOphthalmicToVisionLoss) -> 0 | CC8: =BU8*(1-(IF(AAmodelECP=AAmodelAI,pAcceptsReferralAfterAI,pAcceptsReferralAfterECP))) -> 0 | CD8: =CC8*(1-(pNaturalHistoryDRDOphthToVisionLoss)) -> 0 | CE8: =CC8*(pNaturalHistoryDRDOphthToVisionLoss) -> 0 | CF8: =BT8*(1-(IF(AAmodelECP=AAmodelAI,sensScreeningAI,sensScreeningECP))) -> 0 | CG8: =CF8*(1-(pNaturalHistoryDRDOphthToVisionLoss)) -> 0 | CH8: =CF8*(pNaturalHistoryDRDOphthToVisionLoss) -> 0 | CI8: =BS8*(1-(IF(AAmodelECP=AAmodelAI,pAcceptsScreeningAI,pAcceptsScreeningECP))) -> 0 | CJ8: =CI8*(1-(pNaturalHistoryDRDOphthToVisionLoss)) -> 0 | CK8: =CI8*(pNaturalHistoryDRDOphthToVisionLoss) -> 0 | CL8: =BR8*(INDEX(pDRDOphthalmicReferred_1,cycle+1)) -> 0.0088 | CM8: =CL8*(IF(AAmodelECP=AAmodelAI,pAcceptsReferralAfterAI,pAcceptsReferralAfterECP)) -> 0.002552 | CN8: =CM8*(1-((((1+rOddsIncAdherencetoOphthalmic)*pAdheringToMetabolicManagement)/(1+(pAdheringToMetabolicManagement*rOddsIncAdherencetoOphthalmic))))) -> 0.001880837859 | CO8: =CN8*(1-(pNaturalHistoryDRDOphthToVisionLoss)) -> 0.001739775019 | CP8: =CN8*(pNaturalHistoryDRDOphthToVisionLoss) -> 0.0001410628394 | CQ8: =CM8*((((1+rOddsIncAdherencetoOphthalmic)*pAdheringToMetabolicManagement)/(1+(pAdheringToMetabolicManagement*rOddsIncAdherencetoOphthalmic)))) -> 0.0006711621412 | CR8: =CQ8*(1-(pTreatedDRDOphthalmicToVisionLoss)) -> 0.0006577388984 | CS8: =CQ8*(pTreatedDRDOphthalmicToVisionLoss) -> 1.342324282e-05 | CT8: =CL8*(1-(IF(AAmodelECP=AAmodelAI,pAcceptsReferralAfterAI,pAcceptsReferralAfterECP))) -> 0.006248 | CU8: =CT8*(1-(pNaturalHistoryDRDOphthToVisionLoss)) -> 0.0057794 | CV8: =CT8*(pNaturalHistoryDRDOphthToVisionLoss) -> 0.0004686 | CW8: ='1. Strategy Calcs'!H8 -> 0 | CX8: =CW8*((((1+rOddsIncAdherencetoOphthalmic)*pAdheringToMetabolicManagement)/(1+(pAdheringToMetabolicManagement*rOddsIncAdherencetoOphthalmic)))) -> 0 | CY8: =CX8*(1-(pTreatedDRDOphthalmicToVisionLoss)) -> 0 | CZ8: =CX8*(pTreatedDRDOphthalmicToVisionLoss) -> 0 | DA8: =CW8*(1-((((1+rOddsIncAdherencetoOphthalmic)*pAdheringToMetabolicManagement)/(1+(pAdheringToMetabolicManagement*rOddsIncAdherencetoOphthalmic))))) -> 0 | DB8: =DA8*(1-(pNaturalHistoryDRDOphthToVisionLoss)) -> 0 | DC8: =DA8*(pNaturalHistoryDRDOphthToVisionLoss) -> 0 | DD8: ='1. Strategy Calcs'!I8 -> 0.01 | DE8: =DD8*(pDRDVisionLossAcceptsReferral) -> 0.0058 | DF8: =DE8*((((1+rOddsIncAdherencetoVisionLoss)*(((1+rOddsIncAdherencetoOphthalmic)*pAdheringToMetabolicManagement)/(1+(pAdheringToMetabolicManagement*rOddsIncAdherencetoOphthalmic))))/(1+((((1+rOddsIncAdherencetoOphthalmic)*pAdheringToMetabolicManagement)/(1+(pAdheringToMetabolicManagement*rOddsIncAdherencetoOphthalmic)))*rOddsIncAdherencetoVisionLoss)))) -> 0.002394203346 | DG8: =DF8*(1-(pTreatedDRDVisionlossToVisionLossIrreversible)) -> 0.002312800433 | DH8: =DF8*(pTreatedDRDVisionlossToVisionLossIrreversible) -> 8.140291378e-05 | DI8: =DE8*(1-((((1+rOddsIncAdherencetoVisionLoss)*(((1+rOddsIncAdherencetoOphthalmic)*pAdheringToMetabolicManagement)/(1+(pAdheringToMetabolicManagement*rOddsIncAdherencetoOphthalmic))))/(1+((((1+rOddsIncAdherencetoOphthalmic)*pAdheringToMetabolicManagement)/(1+(pAdheringToMetabolicManagement*rOddsIncAdherencetoOphthalmic)))*rOddsIncAdherencetoVisionLoss))))) -> 0.003405796654 | DJ8: =DI8*(1-(pNaturalHistoryVisionLossToVisionLossIrreversible)) -> 0.002145651892 | DK8: =DI8*(pNaturalHistoryVisionLossToVisionLossIrreversible) -> 0.001260144762 | DL8: =DD8*(1-(pDRDVisionLossAcceptsReferral)) -> 0.0042 | DM8: =DL8*(1-(pNaturalHistoryVisionLossToVisionLossIrreversible)) -> 0.002646 | DN8: =DL8*(pNaturalHistoryVisionLossToVisionLossIrreversible) -> 0.001554 | DO8: =0 -> 0 | DP8: ='1. Strategy Calcs'!J8 -> 0 | DQ8: =DP8*((((1+rOddsIncAdherencetoVisionLoss)*(((1+rOddsIncAdherencetoOphthalmic)*pAdheringToMetabolicManagement)/(1+(pAdheringToMetabolicManagement*rOddsIncAdherencetoOphthalmic))))/(1+((((1+rOddsIncAdherencetoOphthalmic)*pAdheringToMetabolicManagement)/(1+(pAdheringToMetabolicManagement*rOddsIncAdherencetoOphthalmic)))*rOddsIncAdherencetoVisionLoss)))) -> 0 | DR8: =DQ8*(1-(pTreatedDRDVisionlossToVisionLossIrreversible)) -> 0 | DS8: =DQ8*(pTreatedDRDVisionlossToVisionLossIrreversible) -> 0 | DT8: =DP8*(1-((((1+rOddsIncAdherencetoVisionLoss)*(((1+rOddsIncAdherencetoOphthalmic)*pAdheringToMetabolicManagement)/(1+(pAdheringToMetabolicManagement*rOddsIncAdherencetoOphthalmic))))/(1+((((1+rOddsIncAdherencetoOphthalmic)*pAdheringToMetabolicManagement)/(1+(pAdheringToMetabolicManagement*rOddsIncAdherencetoOphthalmic)))*rOddsIncAdherencetoVisionLoss))))) -> 0 | DU8: =DT8*(1-(pNaturalHistoryVisionLossToVisionLossIrreversible)) -> 0 | DV8: =DT8*(pNaturalHistoryVisionLossToVisionLossIrreversible) -> 0 | DW8: =0 -> 0 | DX8: ='1. Strategy Calcs'!K8 -> 0 | DY8: =0 -> 0 | EA8: =IF(cycle=0,1,0) -> 1 | EB8: 1
B9: 1 | D9: ='1. Strategy Calcs'!Q9 -> 0.72314 | E9: ='1. Strategy Calcs'!AF9 -> 0.23865424 | F9: ='1. Strategy Calcs'!BK9 -> 0.01515888 | G9: ='1. Strategy Calcs'!BR9 -> 0.01161293502 | H9: ='1. Strategy Calcs'!CW9 -> 0.0008108588984 | I9: ='1. Strategy Calcs'!DD9 -> 0.005401314731 | J9: ='1. Strategy Calcs'!DP9 -> 0.002326223676 | K9: ='1. Strategy Calcs'!DX9 -> 0.002895547676 | L9: ='1. Strategy Calcs'!DO9 + '1. Strategy Calcs'!DW9 + '1. Strategy Calcs'!DY9 -> 0 | M9: =M8 + L9 -> 0 | O9: 1 | Q9: =0 + U8 + X8 + AA8 + AD8 -> 0.72314 | R9: =Q9*(IF(AAmodelECP=AAmodelAI,pAcceptsScreeningAI,pAcceptsScreeningECP)) -> 0.144628 | S9: =R9*(1-(IF(AAmodelECP=AAmodelAI,specScreeningAI,specScreeningECP))) -> 0.00144628 | T9: =S9*(IF(AAmodelECP=AAmodelAI,pAcceptsReferralAfterAI,pAcceptsReferralAfterECP)) -> 0.0004194212 | U9: =T9*(1-(pNaturalHistoryToDRDMetabolic)) -> 0.00039845014 | V9: =T9*(pNaturalHistoryToDRDMetabolic) -> 2.097106e-05 | W9: =S9*(1-(IF(AAmodelECP=AAmodelAI,pAcceptsReferralAfterAI,pAcceptsReferralAfterECP))) -> 0.0010268588 | X9: =W9*(1-(pNaturalHistoryToDRDMetabolic)) -> 0.00097551586 | Y9: =W9*(pNaturalHistoryToDRDMetabolic) -> 5.134294e-05 | Z9: =R9*(IF(AAmodelECP=AAmodelAI,specScreeningAI,specScreeningECP)) -> 0.14318172 | AA9: =Z9*(1-(pNaturalHistoryToDRDMetabolic)) -> 0.136022634 | AB9: =Z9*(pNaturalHistoryToDRDMetabolic) -> 0.007159086 | AC9: =Q9*(1-(IF(AAmodelECP=AAmodelAI,pAcceptsScreeningAI,pAcceptsScreeningECP))) -> 0.578512 | AD9: =AC9*(1-(pNaturalHistoryToDRDMetabolic)) -> 0.5495864 | AE9: =AC9*(pNaturalHistoryToDRDMetabolic) -> 0.0289256 | AF9: =0 + '1. Strategy Calcs'!V8 + '1. Strategy Calcs'!Y8 + '1. Strategy Calcs'!AB8 + '1. Strategy Calcs'!AE8 + AL8 + AR8 + AU8 + AX8 + BC8 + BI8 + '1. Strategy Calcs'!BP8 -> 0.23865424 | AG9: =AF9*(1-(INDEX(pDRDMetabolicReferred_1,cycle+1))) -> 0.23865424 | AH9: =AG9*(IF(AAmodelECP=AAmodelAI,pAcceptsScreeningAI,pAcceptsScreeningECP)) -> 0.047730848 | AI9: =AH9*(IF(AAmodelECP=AAmodelAI,sensScreeningAI,sensScreeningECP)) -> 0.01575117984 | AJ9: =AI9*(IF(AAmodelECP=AAmodelAI,pAcceptsReferralAfterAI,pAcceptsReferralAfterECP)) -> 0.004567842154 | AK9: =AJ9*(1-(pAdheringToMetabolicManagement)) -> 0.003471560037 | AL9: =AK9*(1-(pNaturalHistoryDRDMetabolicToOphth)) -> 0.003402128836 | AM9: =AK9*(pNaturalHistoryDRDMetabolicToOphth) -> 6.943120073e-05 | AN9: =AJ9*(pAdheringToMetabolicManagement) -> 0.001096282117 | AO9: =AN9*(1-(pTreatedDRDMetabolicToOphth)) -> 0.001085319296 | AP9: =AN9*(pTreatedDRDMetabolicToOphth) -> 1.096282117e-05 | AQ9: =AI9*(1-(IF(AAmodelECP=AAmodelAI,pAcceptsReferralAfterAI,pAcceptsReferralAfterECP))) -> 0.01118333769 | AR9: =AQ9*(1-(pNaturalHistoryDRDMetabolicToOphth)) -> 0.01095967093 | AS9: =AQ9*(pNaturalHistoryDRDMetabolicToOphth) -> 0.0002236667537 | AT9: =AH9*(1-(IF(AAmodelECP=AAmodelAI,sensScreeningAI,sensScreeningECP))) -> 0.03197966816 | AU9: =AT9*(1-(pNaturalHistoryDRDMetabolicToOphth)) -> 0.0313400748 | AV9: =AT9*(pNaturalHistoryDRDMetabolicToOphth) -> 0.0006395933632 | AW9: =AG9*(1-(IF(AAmodelECP=AAmodelAI,pAcceptsScreeningAI,pAcceptsScreeningECP))) -> 0.190923392 | AX9: =AW9*(1-(pNaturalHistoryDRDMetabolicToOphth)) -> 0.1871049242 | AY9: =AW9*(pNaturalHistoryDRDMetabolicToOphth) -> 0.00381846784 | AZ9: =AF9*(INDEX(pDRDMetabolicReferred_1,cycle+1)) -> 0 | BA9: =AZ9*(IF(AAmodelECP=AAmodelAI,pAcceptsReferralAfterAI,pAcceptsReferralAfterECP)) -> 0 | BB9: =BA9*(1-(pAdheringToMetabolicManagement)) -> 0 | BC9: =BB9*(1-(pNaturalHistoryDRDMetabolicToOphth)) -> 0 | BD9: =BB9*(pNaturalHistoryDRDMetabolicToOphth) -> 0 | BE9: =BA9*(pAdheringToMetabolicManagement) -> 0 | BF9: =BE9*(1-(pTreatedDRDMetabolicToOphth)) -> 0 | BG9: =BE9*(pTreatedDRDMetabolicToOphth) -> 0 | BH9: =AZ9*(1-(IF(AAmodelECP=AAmodelAI,pAcceptsReferralAfterAI,pAcceptsReferralAfterECP))) -> 0 | BI9: =BH9*(1-(pNaturalHistoryDRDMetabolicToOphth)) -> 0 | BJ9: =BH9*(pNaturalHistoryDRDMetabolicToOphth) -> 0 | BK9: =0 + '1. Strategy Calcs'!AO8 + '1. Strategy Calcs'!BF8 + BM8 -> 0.01515888 | BL9: =BK9*(pAdheringToMetabolicManagement) -> 0.0036381312 | BM9: =BL9*(1-(pTreatedDRDMetabolicToOphth)) -> 0.003601749888 | BN9: =BL9*(pTreatedDRDMetabolicToOphth) -> 3.6381312e-05 | BO9: =BK9*(1-(pAdheringToMetabolicManagement)) -> 0.0115207488 | BP9: =BO9*(1-(pNaturalHistoryDRDMetabolicToOphth)) -> 0.01129033382 | BQ9: =BO9*(pNaturalHistoryDRDMetabolicToOphth) -> 0.000230414976 | BR9: =0 + '1. Strategy Calcs'!AM8 + '1. Strategy Calcs'!AS8 + '1. Strategy Calcs'!AV8 + '1. Strategy Calcs'!AY8 + '1. Strategy Calcs'!BD8 + '1. Strategy Calcs'!BJ8 + '1. Strategy Calcs'!BQ8 + BX8 + CD8 + CG8 + CJ8 + CO8 + CU8 + '1. Strategy Calcs'!DB8 -> 0.01161293502 | BS9: =BR9*(1-(INDEX(pDRDOphthalmicReferred_1,cycle+1))) -> 0.01161293502 | BT9: =BS9*(IF(AAmodelECP=AAmodelAI,pAcceptsScreeningAI,pAcceptsScreeningECP)) -> 0.002322587004 | BU9: =BT9*(IF(AAmodelECP=AAmodelAI,sensScreeningAI,sensScreeningECP)) -> 0.0007664537113 | BV9: =BU9*(IF(AAmodelECP=AAmodelAI,pAcceptsReferralAfterAI,pAcceptsReferralAfterECP)) -> 0.0002222715763 | BW9: =BV9*(1-((((1+rOddsIncAdherencetoOphthalmic)*pAdheringToMetabolicManagement)/(1+(pAdheringToMetabolicManagement*rOddsIncAdherencetoOphthalmic))))) -> 0.0001638153588 | BX9: =BW9*(1-(pNaturalHistoryDRDOphthToVisionLoss)) -> 0.0001515292069 | BY9: =BW9*(pNaturalHistoryDRDOphthToVisionLoss) -> 1.228615191e-05 | BZ9: =BV9*((((1+rOddsIncAdherencetoOphthalmic)*pAdheringToMetabolicManagement)/(1+(pAdheringToMetabolicManagement*rOddsIncAdherencetoOphthalmic)))) -> 5.84562175e-05 | CA9: =BZ9*(1-(pTreatedDRDOphthalmicToVisionLoss)) -> 5.728709315e-05 | CB9: =BZ9*(pTreatedDRDOphthalmicToVisionLoss) -> 1.16912435e-06 | CC9: =BU9*(1-(IF(AAmodelECP=AAmodelAI,pAcceptsReferralAfterAI,pAcceptsReferralAfterECP))) -> 0.000544182135 | CD9: =CC9*(1-(pNaturalHistoryDRDOphthToVisionLoss)) -> 0.0005033684749 | CE9: =CC9*(pNaturalHistoryDRDOphthToVisionLoss) -> 4.081366013e-05 | CF9: =BT9*(1-(IF(AAmodelECP=AAmodelAI,sensScreeningAI,sensScreeningECP))) -> 0.001556133293 | CG9: =CF9*(1-(pNaturalHistoryDRDOphthToVisionLoss)) -> 0.001439423296 | CH9: =CF9*(pNaturalHistoryDRDOphthToVisionLoss) -> 0.0001167099969 | CI9: =BS9*(1-(IF(AAmodelECP=AAmodelAI,pAcceptsScreeningAI,pAcceptsScreeningECP))) -> 0.009290348016 | CJ9: =CI9*(1-(pNaturalHistoryDRDOphthToVisionLoss)) -> 0.008593571914 | CK9: =CI9*(pNaturalHistoryDRDOphthToVisionLoss) -> 0.0006967761012 | CL9: =BR9*(INDEX(pDRDOphthalmicReferred_1,cycle+1)) -> 0 | CM9: =CL9*(IF(AAmodelECP=AAmodelAI,pAcceptsReferralAfterAI,pAcceptsReferralAfterECP)) -> 0 | CN9: =CM9*(1-((((1+rOddsIncAdherencetoOphthalmic)*pAdheringToMetabolicManagement)/(1+(pAdheringToMetabolicManagement*rOddsIncAdherencetoOphthalmic))))) -> 0 | CO9: =CN9*(1-(pNaturalHistoryDRDOphthToVisionLoss)) -> 0 | CP9: =CN9*(pNaturalHistoryDRDOphthToVisionLoss) -> 0 | CQ9: =CM9*((((1+rOddsIncAdherencetoOphthalmic)*pAdheringToMetabolicManagement)/(1+(pAdheringToMetabolicManagement*rOddsIncAdherencetoOphthalmic)))) -> 0 | CR9: =CQ9*(1-(pTreatedDRDOphthalmicToVisionLoss)) -> 0 | CS9: =CQ9*(pTreatedDRDOphthalmicToVisionLoss) -> 0 | CT9: =CL9*(1-(IF(AAmodelECP=AAmodelAI,pAcceptsReferralAfterAI,pAcceptsReferralAfterECP))) -> 0 | CU9: =CT9*(1-(pNaturalHistoryDRDOphthToVisionLoss)) -> 0 | CV9: =CT9*(pNaturalHistoryDRDOphthToVisionLoss) -> 0 | CW9: =0 + '1. Strategy Calcs'!AP8 + '1. Strategy Calcs'!BG8 + '1. Strategy Calcs'!BN8 + '1. Strategy Calcs'!CA8 + '1. Strategy Calcs'!CR8 + CY8 -> 0.0008108588984 | CX9: =CW9*((((1+rOddsIncAdherencetoOphthalmic)*pAdheringToMetabolicManagement)/(1+(pAdheringToMetabolicManagement*rOddsIncAdherencetoOphthalmic)))) -> 0.0002132514868 | CY9: =CX9*(1-(pTreatedDRDOphthalmicToVisionLoss)) -> 0.0002089864571 | CZ9: =CX9*(pTreatedDRDOphthalmicToVisionLoss) -> 4.265029737e-06 | DA9: =CW9*(1-((((1+rOddsIncAdherencetoOphthalmic)*pAdheringToMetabolicManagement)/(1+(pAdheringToMetabolicManagement*rOddsIncAdherencetoOphthalmic))))) -> 0.0005976074115 | DB9: =DA9*(1-(pNaturalHistoryDRDOphthToVisionLoss)) -> 0.0005527868557 | DC9: =DA9*(pNaturalHistoryDRDOphthToVisionLoss) -> 4.482055586e-05 | DD9: =0 + '1. Strategy Calcs'!BY8 + '1. Strategy Calcs'!CE8 + '1. Strategy Calcs'!CH8 + '1. Strategy Calcs'!CK8 + '1. Strategy Calcs'!CP8 + '1. Strategy Calcs'!CV8 + '1. Strategy Calcs'!DC8 + DJ8 + DM8 + '1. Strategy Calcs'!DU8 -> 0.005401314731 | DE9: =DD9*(pDRDVisionLossAcceptsReferral) -> 0.003132762544 | DF9: =DE9*((((1+rOddsIncAdherencetoVisionLoss)*(((1+rOddsIncAdherencetoOphthalmic)*pAdheringToMetabolicManagement)/(1+(pAdheringToMetabolicManagement*rOddsIncAdherencetoOphthalmic))))/(1+((((1+rOddsIncAdherencetoOphthalmic)*pAdheringToMetabolicManagement)/(1+(pAdheringToMetabolicManagement*rOddsIncAdherencetoOphthalmic)))*rOddsIncAdherencetoVisionLoss)))) -> 0.00129318458 | DG9: =DF9*(1-(pTreatedDRDVisionlossToVisionLossIrreversible)) -> 0.001249216305 | DH9: =DF9*(pTreatedDRDVisionlossToVisionLossIrreversible) -> 4.396827574e-05 | DI9: =DE9*(1-((((1+rOddsIncAdherencetoVisionLoss)*(((1+rOddsIncAdherencetoOphthalmic)*pAdheringToMetabolicManagement)/(1+(pAdheringToMetabolicManagement*rOddsIncAdherencetoOphthalmic))))/(1+((((1+rOddsIncAdherencetoOphthalmic)*pAdheringToMetabolicManagement)/(1+(pAdheringToMetabolicManagement*rOddsIncAdherencetoOphthalmic)))*rOddsIncAdherencetoVisionLoss))))) -> 0.001839577964 | DJ9: =DI9*(1-(pNaturalHistoryVisionLossToVisionLossIrreversible)) -> 0.001158934117 | DK9: =DI9*(pNaturalHistoryVisionLossToVisionLossIrreversible) -> 0.0006806438465 | DL9: =DD9*(1-(pDRDVisionLossAcceptsReferral)) -> 0.002268552187 | DM9: =DL9*(1-(pNaturalHistoryVisionLossToVisionLossIrreversible)) -> 0.001429187878 | DN9: =DL9*(pNaturalHistoryVisionLossToVisionLossIrreversible) -> 0.0008393643092 | DO9: =0 -> 0 | DP9: =0 + '1. Strategy Calcs'!CB8 + '1. Strategy Calcs'!CS8 + '1. Strategy Calcs'!CZ8 + '1. Strategy Calcs'!DG8 + DR8 -> 0.002326223676 | DQ9: =DP9*((((1+rOddsIncAdherencetoVisionLoss)*(((1+rOddsIncAdherencetoOphthalmic)*pAdheringToMetabolicManagement)/(1+(pAdheringToMetabolicManagement*rOddsIncAdherencetoOphthalmic))))/(1+((((1+rOddsIncAdherencetoOphthalmic)*pAdheringToMetabolicManagement)/(1+(pAdheringToMetabolicManagement*rOddsIncAdherencetoOphthalmic)))*rOddsIncAdherencetoVisionLoss)))) -> 0.0009602504325 | DR9: =DQ9*(1-(pTreatedDRDVisionlossToVisionLossIrreversible)) -> 0.0009276019178 | DS9: =DQ9*(pTreatedDRDVisionlossToVisionLossIrreversible) -> 3.26485147e-05 | DT9: =DP9*(1-((((1+rOddsIncAdherencetoVisionLoss)*(((1+rOddsIncAdherencetoOphthalmic)*pAdheringToMetabolicManagement)/(1+(pAdheringToMetabolicManagement*rOddsIncAdherencetoOphthalmic))))/(1+((((1+rOddsIncAdherencetoOphthalmic)*pAdheringToMetabolicManagement)/(1+(pAdheringToMetabolicManagement*rOddsIncAdherencetoOphthalmic)))*rOddsIncAdherencetoVisionLoss))))) -> 0.001365973243 | DU9: =DT9*(1-(pNaturalHistoryVisionLossToVisionLossIrreversible)) -> 0.0008605631431 | DV9: =DT9*(pNaturalHistoryVisionLossToVisionLossIrreversible) -> 0.0005054100999 | DW9: =0 -> 0 | DX9: =0 + '1. Strategy Calcs'!DH8 + '1. Strategy Calcs'!DK8 + '1. Strategy Calcs'!DN8 + '1. Strategy Calcs'!DS8 + '1. Strategy Calcs'!DV8 + DX8 -> 0.002895547676 | DY9: =0 -> 0 | EA9: 0 | EB9: 0
B10: 2 | D10: ='1. Strategy Calcs'!Q10 -> 0.686983 | E10: ='1. Strategy Calcs'!AF10 -> 0.2802541325 | F10: ='1. Strategy Calcs'!BK10 -> 0.004687069184 | G10: ='1. Strategy Calcs'!BR10 -> 0.01622225388 | H10: ='1. Strategy Calcs'!CW10 -> 0.0003136176834 | I10: ='1. Strategy Calcs'!DD10 -> 0.004360091604 | J10: ='1. Strategy Calcs'!DP10 -> 0.002182252377 | K10: ='1. Strategy Calcs'!DX10 -> 0.004997582722 | L10: ='1. Strategy Calcs'!DO10 + '1. Strategy Calcs'!DW10 + '1. Strategy Calcs'!DY10 -> 0 | M10: =M9 + L10 -> 0 | O10: 1 | Q10: =0 + U9 + X9 + AA9 + AD9 -> 0.686983 | R10: =Q10*(IF(AAmodelECP=AAmodelAI,pAcceptsScreeningAI,pAcceptsScreeningECP)) -> 0.1373966 | S10: =R10*(1-(IF(AAmodelECP=AAmodelAI,specScreeningAI,specScreeningECP))) -> 0.001373966 | T10: =S10*(IF(AAmodelECP=AAmodelAI,pAcceptsReferralAfterAI,pAcceptsReferralAfterECP)) -> 0.00039845014 | U10: =T10*(1-(pNaturalHistoryToDRDMetabolic)) -> 0.000378527633 | V10: =T10*(pNaturalHistoryToDRDMetabolic) -> 1.9922507e-05 | W10: =S10*(1-(IF(AAmodelECP=AAmodelAI,pAcceptsReferralAfterAI,pAcceptsReferralAfterECP))) -> 0.00097551586 | X10: =W10*(1-(pNaturalHistoryToDRDMetabolic)) -> 0.000926740067 | Y10: =W10*(pNaturalHistoryToDRDMetabolic) -> 4.8775793e-05 | Z10: =R10*(IF(AAmodelECP=AAmodelAI,specScreeningAI,specScreeningECP)) -> 0.136022634 | AA10: =Z10*(1-(pNaturalHistoryToDRDMetabolic)) -> 0.1292215023 | AB10: =Z10*(pNaturalHistoryToDRDMetabolic) -> 0.0068011317 | AC10: =Q10*(1-(IF(AAmodelECP=AAmodelAI,pAcceptsScreeningAI,pAcceptsScreeningECP))) -> 0.5495864 | AD10: =AC10*(1-(pNaturalHistoryToDRDMetabolic)) -> 0.52210708 | AE10: =AC10*(pNaturalHistoryToDRDMetabolic) -> 0.02747932 | AF10: =0 + '1. Strategy Calcs'!V9 + '1. Strategy Calcs'!Y9 + '1. Strategy Calcs'!AB9 + '1. Strategy Calcs'!AE9 + AL9 + AR9 + AU9 + AX9 + BC9 + BI9 + '1. Strategy Calcs'!BP9 -> 0.2802541325 | AG10: =AF10*(1-(INDEX(pDRDMetabolicReferred_1,cycle+1))) -> 0.2802541325 | AH10: =AG10*(IF(AAmodelECP=AAmodelAI,pAcceptsScreeningAI,pAcceptsScreeningECP)) -> 0.05605082651 | AI10: =AH10*(IF(AAmodelECP=AAmodelAI,sensScreeningAI,sensScreeningECP)) -> 0.01849677275 | AJ10: =AI10*(IF(AAmodelECP=AAmodelAI,pAcceptsReferralAfterAI,pAcceptsReferralAfterECP)) -> 0.005364064097 | AK10: =AJ10*(1-(pAdheringToMetabolicManagement)) -> 0.004076688714 | AL10: =AK10*(1-(pNaturalHistoryDRDMetabolicToOphth)) -> 0.003995154939 | AM10: =AK10*(pNaturalHistoryDRDMetabolicToOphth) -> 8.153377427e-05 | AN10: =AJ10*(pAdheringToMetabolicManagement) -> 0.001287375383 | AO10: =AN10*(1-(pTreatedDRDMetabolicToOphth)) -> 0.001274501629 | AP10: =AN10*(pTreatedDRDMetabolicToOphth) -> 1.287375383e-05 | AQ10: =AI10*(1-(IF(AAmodelECP=AAmodelAI,pAcceptsReferralAfterAI,pAcceptsReferralAfterECP))) -> 0.01313270865 | AR10: =AQ10*(1-(pNaturalHistoryDRDMetabolicToOphth)) -> 0.01287005448 | AS10: =AQ10*(pNaturalHistoryDRDMetabolicToOphth) -> 0.000262654173 | AT10: =AH10*(1-(IF(AAmodelECP=AAmodelAI,sensScreeningAI,sensScreeningECP))) -> 0.03755405376 | AU10: =AT10*(1-(pNaturalHistoryDRDMetabolicToOphth)) -> 0.03680297269 | AV10: =AT10*(pNaturalHistoryDRDMetabolicToOphth) -> 0.0007510810752 | AW10: =AG10*(1-(IF(AAmodelECP=AAmodelAI,pAcceptsScreeningAI,pAcceptsScreeningECP))) -> 0.224203306 | AX10: =AW10*(1-(pNaturalHistoryDRDMetabolicToOphth)) -> 0.2197192399 | AY10: =AW10*(pNaturalHistoryDRDMetabolicToOphth) -> 0.004484066121 | AZ10: =AF10*(INDEX(pDRDMetabolicReferred_1,cycle+1)) -> 0 | BA10: =AZ10*(IF(AAmodelECP=AAmodelAI,pAcceptsReferralAfterAI,pAcceptsReferralAfterECP)) -> 0 | BB10: =BA10*(1-(pAdheringToMetabolicManagement)) -> 0 | BC10: =BB10*(1-(pNaturalHistoryDRDMetabolicToOphth)) -> 0 | BD10: =BB10*(pNaturalHistoryDRDMetabolicToOphth) -> 0 | BE10: =BA10*(pAdheringToMetabolicManagement) -> 0 | BF10: =BE10*(1-(pTreatedDRDMetabolicToOphth)) -> 0 | BG10: =BE10*(pTreatedDRDMetabolicToOphth) -> 0 | BH10: =AZ10*(1-(IF(AAmodelECP=AAmodelAI,pAcceptsReferralAfterAI,pAcceptsReferralAfterECP))) -> 0 | BI10: =BH10*(1-(pNaturalHistoryDRDMetabolicToOphth)) -> 0 | BJ10: =BH10*(pNaturalHistoryDRDMetabolicToOphth) -> 0 | BK10: =0 + '1. Strategy Calcs'!AO9 + '1. Strategy Calcs'!BF9 + BM9 -> 0.004687069184 | BL10: =BK10*(pAdheringToMetabolicManagement) -> 0.001124896604 | BM10: =BL10*(1-(pTreatedDRDMetabolicToOphth)) -> 0.001113647638 | BN10: =BL10*(pTreatedDRDMetabolicToOphth) -> 1.124896604e-05 | BO10: =BK10*(1-(pAdheringToMetabolicManagement)) -> 0.00356217258 | BP10: =BO10*(1-(pNaturalHistoryDRDMetabolicToOphth)) -> 0.003490929128 | BQ10: =BO10*(pNaturalHistoryDRDMetabolicToOphth) -> 7.124345159e-05 | BR10: =0 + '1. Strategy Calcs'!AM9 + '1. Strategy Calcs'!AS9 + '1. Strategy Calcs'!AV9 + '1. Strategy Calcs'!AY9 + '1. Strategy Calcs'!BD9 + '1. Strategy Calcs'!BJ9 + '1. Strategy Calcs'!BQ9 + BX9 + CD9 + CG9 + CJ9 + CO9 + CU9 + '1. Strategy Calcs'!DB9 -> 0.01622225388 | BS10: =BR10*(1-(INDEX(pDRDOphthalmicReferred_1,cycle+1))) -> 0.01622225388 | BT10: =BS10*(IF(AAmodelECP=AAmodelAI,pAcceptsScreeningAI,pAcceptsScreeningECP)) -> 0.003244450776 | BU10: =BT10*(IF(AAmodelECP=AAmodelAI,sensScreeningAI,sensScreeningECP)) -> 0.001070668756 | BV10: =BU10*(IF(AAmodelECP=AAmodelAI,pAcceptsReferralAfterAI,pAcceptsReferralAfterECP)) -> 0.0003104939393 | BW10: =BV10*(1-((((1+rOddsIncAdherencetoOphthalmic)*pAdheringToMetabolicManagement)/(1+(pAdheringToMetabolicManagement*rOddsIncAdherencetoOphthalmic))))) -> 0.0002288357194 | BX10: =BW10*(1-(pNaturalHistoryDRDOphthToVisionLoss)) -> 0.0002116730405 | BY10: =BW10*(pNaturalHistoryDRDOphthToVisionLoss) -> 1.716267896e-05 | BZ10: =BV10*((((1+rOddsIncAdherencetoOphthalmic)*pAdheringToMetabolicManagement)/(1+(pAdheringToMetabolicManagement*rOddsIncAdherencetoOphthalmic)))) -> 8.165821987e-05 | CA10: =BZ10*(1-(pTreatedDRDOphthalmicToVisionLoss)) -> 8.002505548e-05 | CB10: =BZ10*(pTreatedDRDOphthalmicToVisionLoss) -> 1.633164397e-06 | CC10: =BU10*(1-(IF(AAmodelECP=AAmodelAI,pAcceptsReferralAfterAI,pAcceptsReferralAfterECP))) -> 0.0007601748169 | CD10: =CC10*(1-(pNaturalHistoryDRDOphthToVisionLoss)) -> 0.0007031617056 | CE10: =CC10*(pNaturalHistoryDRDOphthToVisionLoss) -> 5.701311127e-05 | CF10: =BT10*(1-(IF(AAmodelECP=AAmodelAI,sensScreeningAI,sensScreeningECP))) -> 0.00217378202 | CG10: =CF10*(1-(pNaturalHistoryDRDOphthToVisionLoss)) -> 0.002010748369 | CH10: =CF10*(pNaturalHistoryDRDOphthToVisionLoss) -> 0.0001630336515 | CI10: =BS10*(1-(IF(AAmodelECP=AAmodelAI,pAcceptsScreeningAI,pAcceptsScreeningECP))) -> 0.0129778031 | CJ10: =CI10*(1-(pNaturalHistoryDRDOphthToVisionLoss)) -> 0.01200446787 | CK10: =CI10*(pNaturalHistoryDRDOphthToVisionLoss) -> 0.0009733352329 | CL10: =BR10*(INDEX(pDRDOphthalmicReferred_1,cycle+1)) -> 0 | CM10: =CL10*(IF(AAmodelECP=AAmodelAI,pAcceptsReferralAfterAI,pAcceptsReferralAfterECP)) -> 0 | CN10: =CM10*(1-((((1+rOddsIncAdherencetoOphthalmic)*pAdheringToMetabolicManagement)/(1+(pAdheringToMetabolicManagement*rOddsIncAdherencetoOphthalmic))))) -> 0 | CO10: =CN10*(1-(pNaturalHistoryDRDOphthToVisionLoss)) -> 0 | CP10: =CN10*(pNaturalHistoryDRDOphthToVisionLoss) -> 0 | CQ10: =CM10*((((1+rOddsIncAdherencetoOphthalmic)*pAdheringToMetabolicManagement)/(1+(pAdheringToMetabolicManagement*rOddsIncAdherencetoOphthalmic)))) -> 0 | CR10: =CQ10*(1-(pTreatedDRDOphthalmicToVisionLoss)) -> 0 | CS10: =CQ10*(pTreatedDRDOphthalmicToVisionLoss) -> 0 | CT10: =CL10*(1-(IF(AAmodelECP=AAmodelAI,pAcceptsReferralAfterAI,pAcceptsReferralAfterECP))) -> 0 | CU10: =CT10*(1-(pNaturalHistoryDRDOphthToVisionLoss)) -> 0 | CV10: =CT10*(pNaturalHistoryDRDOphthToVisionLoss) -> 0 | CW10: =0 + '1. Strategy Calcs'!AP9 + '1. Strategy Calcs'!BG9 + '1. Strategy Calcs'!BN9 + '1. Strategy Calcs'!CA9 + '1. Strategy Calcs'!CR9 + CY9 -> 0.0003136176834 | CX10: =CW10*((((1+rOddsIncAdherencetoOphthalmic)*pAdheringToMetabolicManagement)/(1+(pAdheringToMetabolicManagement*rOddsIncAdherencetoOphthalmic)))) -> 8.247974762e-05 | CY10: =CX10*(1-(pTreatedDRDOphthalmicToVisionLoss)) -> 8.083015267e-05 | CZ10: =CX10*(pTreatedDRDOphthalmicToVisionLoss) -> 1.649594952e-06 | DA10: =CW10*(1-((((1+rOddsIncAdherencetoOphthalmic)*pAdheringToMetabolicManagement)/(1+(pAdheringToMetabolicManagement*rOddsIncAdherencetoOphthalmic))))) -> 0.0002311379358 | DB10: =DA10*(1-(pNaturalHistoryDRDOphthToVisionLoss)) -> 0.0002138025906 | DC10: =DA10*(pNaturalHistoryDRDOphthToVisionLoss) -> 1.733534519e-05 | DD10: =0 + '1. Strategy Calcs'!BY9 + '1. Strategy Calcs'!CE9 + '1. Strategy Calcs'!CH9 + '1. Strategy Calcs'!CK9 + '1. Strategy Calcs'!CP9 + '1. Strategy Calcs'!CV9 + '1. Strategy Calcs'!DC9 + DJ9 + DM9 + '1. Strategy Calcs'!DU9 -> 0.004360091604 | DE10: =DD10*(pDRDVisionLossAcceptsReferral) -> 0.00252885313 | DF10: =DE10*((((1+rOddsIncAdherencetoVisionLoss)*(((1+rOddsIncAdherencetoOphthalmic)*pAdheringToMetabolicManagement)/(1+(pAdheringToMetabolicManagement*rOddsIncAdherencetoOphthalmic))))/(1+((((1+rOddsIncAdherencetoOphthalmic)*pAdheringToMetabolicManagement)/(1+(pAdheringToMetabolicManagement*rOddsIncAdherencetoOphthalmic)))*rOddsIncAdherencetoVisionLoss)))) -> 0.001043894591 | DG10: =DF10*(1-(pTreatedDRDVisionlossToVisionLossIrreversible)) -> 0.001008402175 | DH10: =DF10*(pTreatedDRDVisionlossToVisionLossIrreversible) -> 3.549241609e-05 | DI10: =DE10*(1-((((1+rOddsIncAdherencetoVisionLoss)*(((1+rOddsIncAdherencetoOphthalmic)*pAdheringToMetabolicManagement)/(1+(pAdheringToMetabolicManagement*rOddsIncAdherencetoOphthalmic))))/(1+((((1+rOddsIncAdherencetoOphthalmic)*pAdheringToMetabolicManagement)/(1+(pAdheringToMetabolicManagement*rOddsIncAdherencetoOphthalmic)))*rOddsIncAdherencetoVisionLoss))))) -> 0.001484958539 | DJ10: =DI10*(1-(pNaturalHistoryVisionLossToVisionLossIrreversible)) -> 0.0009355238798 | DK10: =DI10*(pNaturalHistoryVisionLossToVisionLossIrreversible) -> 0.0005494346596 | DL10: =DD10*(1-(pDRDVisionLossAcceptsReferral)) -> 0.001831238474 | DM10: =DL10*(1-(pNaturalHistoryVisionLossToVisionLossIrreversible)) -> 0.001153680238 | DN10: =DL10*(pNaturalHistoryVisionLossToVisionLossIrreversible) -> 0.0006775582353 | DO10: =0 -> 0 | DP10: =0 + '1. Strategy Calcs'!CB9 + '1. Strategy Calcs'!CS9 + '1. Strategy Calcs'!CZ9 + '1. Strategy Calcs'!DG9 + DR9 -> 0.002182252377 | DQ10: =DP10*((((1+rOddsIncAdherencetoVisionLoss)*(((1+rOddsIncAdherencetoOphthalmic)*pAdheringToMetabolicManagement)/(1+(pAdheringToMetabolicManagement*rOddsIncAdherencetoOphthalmic))))/(1+((((1+rOddsIncAdherencetoOphthalmic)*pAdheringToMetabolicManagement)/(1+(pAdheringToMetabolicManagement*rOddsIncAdherencetoOphthalmic)))*rOddsIncAdherencetoVisionLoss)))) -> 0.0009008199902 | DR10: =DQ10*(1-(pTreatedDRDVisionlossToVisionLossIrreversible)) -> 0.0008701921105 | DS10: =DQ10*(pTreatedDRDVisionlossToVisionLossIrreversible) -> 3.062787967e-05 | DT10: =DP10*(1-((((1+rOddsIncAdherencetoVisionLoss)*(((1+rOddsIncAdherencetoOphthalmic)*pAdheringToMetabolicManagement)/(1+(pAdheringToMetabolicManagement*rOddsIncAdherencetoOphthalmic))))/(1+((((1+rOddsIncAdherencetoOphthalmic)*pAdheringToMetabolicManagement)/(1+(pAdheringToMetabolicManagement*rOddsIncAdherencetoOphthalmic)))*rOddsIncAdherencetoVisionLoss))))) -> 0.001281432386 | DU10: =DT10*(1-(pNaturalHistoryVisionLossToVisionLossIrreversible)) -> 0.0008073024035 | DV10: =DT10*(pNaturalHistoryVisionLossToVisionLossIrreversible) -> 0.000474129983 | DW10: =0 -> 0 | DX10: =0 + '1. Strategy Calcs'!DH9 + '1. Strategy Calcs'!DK9 + '1. Strategy Calcs'!DN9 + '1. Strategy Calcs'!DS9 + '1. Strategy Calcs'!DV9 + DX9 -> 0.004997582722 | DY10: =0 -> 0 | EA10: 0 | EB10: 0
B11: 3 | D11: ='1. Strategy Calcs'!Q11 -> 0.65263385 | E11: ='1. Strategy Calcs'!AF11 -> 0.3112275012 | F11: ='1. Strategy Calcs'!BK11 -> 0.002388149267 | G11: ='1. Strategy Calcs'!BR11 -> 0.02079443217 | H11: ='1. Strategy Calcs'!CW11 -> 0.000184977928 | I11: ='1. Strategy Calcs'!DD11 -> 0.004124386541 | J11: ='1. Strategy Calcs'!DP11 -> 0.001881877045 | K11: ='1. Strategy Calcs'!DX11 -> 0.006764825895 | L11: ='1. Strategy Calcs'!DO11 + '1. Strategy Calcs'!DW11 + '1. Strategy Calcs'!DY11 -> 0 | M11: =M10 + L11 -> 0 | O11: 1 | Q11: =0 + U10 + X10 + AA10 + AD10 -> 0.65263385 | R11: =Q11*(IF(AAmodelECP=AAmodelAI,pAcceptsScreeningAI,pAcceptsScreeningECP)) -> 0.13052677 | S11: =R11*(1-(IF(AAmodelECP=AAmodelAI,specScreeningAI,specScreeningECP))) -> 0.0013052677 | T11: =S11*(IF(AAmodelECP=AAmodelAI,pAcceptsReferralAfterAI,pAcceptsReferralAfterECP)) -> 0.000378527633 | U11: =T11*(1-(pNaturalHistoryToDRDMetabolic)) -> 0.0003596012514 | V11: =T11*(pNaturalHistoryToDRDMetabolic) -> 1.892638165e-05 | W11: =S11*(1-(IF(AAmodelECP=AAmodelAI,pAcceptsReferralAfterAI,pAcceptsReferralAfterECP))) -> 0.000926740067 | X11: =W11*(1-(pNaturalHistoryToDRDMetabolic)) -> 0.0008804030637 | Y11: =W11*(pNaturalHistoryToDRDMetabolic) -> 4.633700335e-05 | Z11: =R11*(IF(AAmodelECP=AAmodelAI,specScreeningAI,specScreeningECP)) -> 0.1292215023 | AA11: =Z11*(1-(pNaturalHistoryToDRDMetabolic)) -> 0.1227604272 | AB11: =Z11*(pNaturalHistoryToDRDMetabolic) -> 0.006461075115 | AC11: =Q11*(1-(IF(AAmodelECP=AAmodelAI,pAcceptsScreeningAI,pAcceptsScreeningECP))) -> 0.52210708 | AD11: =AC11*(1-(pNaturalHistoryToDRDMetabolic)) -> 0.496001726 | AE11: =AC11*(pNaturalHistoryToDRDMetabolic) -> 0.026105354 | AF11: =0 + '1. Strategy Calcs'!V10 + '1. Strategy Calcs'!Y10 + '1. Strategy Calcs'!AB10 + '1. Strategy Calcs'!AE10 + AL10 + AR10 + AU10 + AX10 + BC10 + BI10 + '1. Strategy Calcs'!BP10 -> 0.3112275012 | AG11: =AF11*(1-(INDEX(pDRDMetabolicReferred_1,cycle+1))) -> 0.3112275012 | AH11: =AG11*(IF(AAmodelECP=AAmodelAI,pAcceptsScreeningAI,pAcceptsScreeningECP)) -> 0.06224550023 | AI11: =AH11*(IF(AAmodelECP=AAmodelAI,sensScreeningAI,sensScreeningECP)) -> 0.02054101508 | AJ11: =AI11*(IF(AAmodelECP=AAmodelAI,pAcceptsReferralAfterAI,pAcceptsReferralAfterECP)) -> 0.005956894372 | AK11: =AJ11*(1-(pAdheringToMetabolicManagement)) -> 0.004527239723 | AL11: =AK11*(1-(pNaturalHistoryDRDMetabolicToOphth)) -> 0.004436694928 | AM11: =AK11*(pNaturalHistoryDRDMetabolicToOphth) -> 9.054479445e-05 | AN11: =AJ11*(pAdheringToMetabolicManagement) -> 0.001429654649 | AO11: =AN11*(1-(pTreatedDRDMetabolicToOphth)) -> 0.001415358103 | AP11: =AN11*(pTreatedDRDMetabolicToOphth) -> 1.429654649e-05 | AQ11: =AI11*(1-(IF(AAmodelECP=AAmodelAI,pAcceptsReferralAfterAI,pAcceptsReferralAfterECP))) -> 0.0145841207 | AR11: =AQ11*(1-(pNaturalHistoryDRDMetabolicToOphth)) -> 0.01429243829 | AS11: =AQ11*(pNaturalHistoryDRDMetabolicToOphth) -> 0.0002916824141 | AT11: =AH11*(1-(IF(AAmodelECP=AAmodelAI,sensScreeningAI,sensScreeningECP))) -> 0.04170448515 | AU11: =AT11*(1-(pNaturalHistoryDRDMetabolicToOphth)) -> 0.04087039545 | AV11: =AT11*(pNaturalHistoryDRDMetabolicToOphth) -> 0.0008340897031 | AW11: =AG11*(1-(IF(AAmodelECP=AAmodelAI,pAcceptsScreeningAI,pAcceptsScreeningECP))) -> 0.2489820009 | AX11: =AW11*(1-(pNaturalHistoryDRDMetabolicToOphth)) -> 0.2440023609 | AY11: =AW11*(pNaturalHistoryDRDMetabolicToOphth) -> 0.004979640018 | AZ11: =AF11*(INDEX(pDRDMetabolicReferred_1,cycle+1)) -> 0 | BA11: =AZ11*(IF(AAmodelECP=AAmodelAI,pAcceptsReferralAfterAI,pAcceptsReferralAfterECP)) -> 0 | BB11: =BA11*(1-(pAdheringToMetabolicManagement)) -> 0 | BC11: =BB11*(1-(pNaturalHistoryDRDMetabolicToOphth)) -> 0 | BD11: =BB11*(pNaturalHistoryDRDMetabolicToOphth) -> 0 | BE11: =BA11*(pAdheringToMetabolicManagement) -> 0 | BF11: =BE11*(1-(pTreatedDRDMetabolicToOphth)) -> 0 | BG11: =BE11*(pTreatedDRDMetabolicToOphth) -> 0 | BH11: =AZ11*(1-(IF(AAmodelECP=AAmodelAI,pAcceptsReferralAfterAI,pAcceptsReferralAfterECP))) -> 0 | BI11: =BH11*(1-(pNaturalHistoryDRDMetabolicToOphth)) -> 0 | BJ11: =BH11*(pNaturalHistoryDRDMetabolicToOphth) -> 0 | BK11: =0 + '1. Strategy Calcs'!AO10 + '1. Strategy Calcs'!BF10 + BM10 -> 0.002388149267 | BL11: =BK11*(pAdheringToMetabolicManagement) -> 0.0005731558242 | BM11: =BL11*(1-(pTreatedDRDMetabolicToOphth)) -> 0.000567424266 | BN11: =BL11*(pTreatedDRDMetabolicToOphth) -> 5.731558242e-06 | BO11: =BK11*(1-(pAdheringToMetabolicManagement)) -> 0.001814993443 | BP11: =BO11*(1-(pNaturalHistoryDRDMetabolicToOphth)) -> 0.001778693574 | BQ11: =BO11*(pNaturalHistoryDRDMetabolicToOphth) -> 3.629986887e-05 | BR11: =0 + '1. Strategy Calcs'!AM10 + '1. Strategy Calcs'!AS10 + '1. Strategy Calcs'!AV10 + '1. Strategy Calcs'!AY10 + '1. Strategy Calcs'!BD10 + '1. Strategy Calcs'!BJ10 + '1. Strategy Calcs'!BQ10 + BX10 + CD10 + CG10 + CJ10 + CO10 + CU10 + '1. Strategy Calcs'!DB10 -> 0.02079443217 | BS11: =BR11*(1-(INDEX(pDRDOphthalmicReferred_1,cycle+1))) -> 0.02079443217 | BT11: =BS11*(IF(AAmodelECP=AAmodelAI,pAcceptsScreeningAI,pAcceptsScreeningECP)) -> 0.004158886434 | BU11: =BT11*(IF(AAmodelECP=AAmodelAI,sensScreeningAI,sensScreeningECP)) -> 0.001372432523 | BV11: =BU11*(IF(AAmodelECP=AAmodelAI,pAcceptsReferralAfterAI,pAcceptsReferralAfterECP)) -> 0.0003980054318 | BW11: =BV11*(1-((((1+rOddsIncAdherencetoOphthalmic)*pAdheringToMetabolicManagement)/(1+(pAdheringToMetabolicManagement*rOddsIncAdherencetoOphthalmic))))) -> 0.0002933321646 | BX11: =BW11*(1-(pNaturalHistoryDRDOphthToVisionLoss)) -> 0.0002713322523 | BY11: =BW11*(pNaturalHistoryDRDOphthToVisionLoss) -> 2.199991235e-05 | BZ11: =BV11*((((1+rOddsIncAdherencetoOphthalmic)*pAdheringToMetabolicManagement)/(1+(pAdheringToMetabolicManagement*rOddsIncAdherencetoOphthalmic)))) -> 0.0001046732672 | CA11: =BZ11*(1-(pTreatedDRDOphthalmicToVisionLoss)) -> 0.0001025798018 | CB11: =BZ11*(pTreatedDRDOphthalmicToVisionLoss) -> 2.093465343e-06 | CC11: =BU11*(1-(IF(AAmodelECP=AAmodelAI,pAcceptsReferralAfterAI,pAcceptsReferralAfterECP))) -> 0.0009744270916 | CD11: =CC11*(1-(pNaturalHistoryDRDOphthToVisionLoss)) -> 0.0009013450597 | CE11: =CC11*(pNaturalHistoryDRDOphthToVisionLoss) -> 7.308203187e-05 | CF11: =BT11*(1-(IF(AAmodelECP=AAmodelAI,sensScreeningAI,sensScreeningECP))) -> 0.002786453911 | CG11: =CF11*(1-(pNaturalHistoryDRDOphthToVisionLoss)) -> 0.002577469868 | CH11: =CF11*(pNaturalHistoryDRDOphthToVisionLoss) -> 0.0002089840433 | CI11: =BS11*(1-(IF(AAmodelECP=AAmodelAI,pAcceptsScreeningAI,pAcceptsScreeningECP))) -> 0.01663554574 | CJ11: =CI11*(1-(pNaturalHistoryDRDOphthToVisionLoss)) -> 0.01538787981 | CK11: =CI11*(pNaturalHistoryDRDOphthToVisionLoss) -> 0.00124766593 | CL11: =BR11*(INDEX(pDRDOphthalmicReferred_1,cycle+1)) -> 0 | CM11: =CL11*(IF(AAmodelECP=AAmodelAI,pAcceptsReferralAfterAI,pAcceptsReferralAfterECP)) -> 0 | CN11: =CM11*(1-((((1+rOddsIncAdherencetoOphthalmic)*pAdheringToMetabolicManagement)/(1+(pAdheringToMetabolicManagement*rOddsIncAdherencetoOphthalmic))))) -> 0 | CO11: =CN11*(1-(pNaturalHistoryDRDOphthToVisionLoss)) -> 0 | CP11: =CN11*(pNaturalHistoryDRDOphthToVisionLoss) -> 0 | CQ11: =CM11*((((1+rOddsIncAdherencetoOphthalmic)*pAdheringToMetabolicManagement)/(1+(pAdheringToMetabolicManagement*rOddsIncAdherencetoOphthalmic)))) -> 0 | CR11: =CQ11*(1-(pTreatedDRDOphthalmicToVisionLoss)) -> 0 | CS11: =CQ11*(pTreatedDRDOphthalmicToVisionLoss) -> 0 | CT11: =CL11*(1-(IF(AAmodelECP=AAmodelAI,pAcceptsReferralAfterAI,pAcceptsReferralAfterECP))) -> 0 | CU11: =CT11*(1-(pNaturalHistoryDRDOphthToVisionLoss)) -> 0 | CV11: =CT11*(pNaturalHistoryDRDOphthToVisionLoss) -> 0 | CW11: =0 + '1. Strategy Calcs'!AP10 + '1. Strategy Calcs'!BG10 + '1. Strategy Calcs'!BN10 + '1. Strategy Calcs'!CA10 + '1. Strategy Calcs'!CR10 + CY10 -> 0.000184977928 | CX11: =CW11*((((1+rOddsIncAdherencetoOphthalmic)*pAdheringToMetabolicManagement)/(1+(pAdheringToMetabolicManagement*rOddsIncAdherencetoOphthalmic)))) -> 4.864819053e-05 | CY11: =CX11*(1-(pTreatedDRDOphthalmicToVisionLoss)) -> 4.767522672e-05 | CZ11: =CX11*(pTreatedDRDOphthalmicToVisionLoss) -> 9.729638107e-07 | DA11: =CW11*(1-((((1+rOddsIncAdherencetoOphthalmic)*pAdheringToMetabolicManagement)/(1+(pAdheringToMetabolicManagement*rOddsIncAdherencetoOphthalmic))))) -> 0.0001363297375 | DB11: =DA11*(1-(pNaturalHistoryDRDOphthToVisionLoss)) -> 0.0001261050072 | DC11: =DA11*(pNaturalHistoryDRDOphthToVisionLoss) -> 1.022473031e-05 | DD11: =0 + '1. Strategy Calcs'!BY10 + '1. Strategy Calcs'!CE10 + '1. Strategy Calcs'!CH10 + '1. Strategy Calcs'!CK10 + '1. Strategy Calcs'!CP10 + '1. Strategy Calcs'!CV10 + '1. Strategy Calcs'!DC10 + DJ10 + DM10 + '1. Strategy Calcs'!DU10 -> 0.004124386541 | DE11: =DD11*(pDRDVisionLossAcceptsReferral) -> 0.002392144194 | DF11: =DE11*((((1+rOddsIncAdherencetoVisionLoss)*(((1+rOddsIncAdherencetoOphthalmic)*pAdheringToMetabolicManagement)/(1+(pAdheringToMetabolicManagement*rOddsIncAdherencetoOphthalmic))))/(1+((((1+rOddsIncAdherencetoOphthalmic)*pAdheringToMetabolicManagement)/(1+(pAdheringToMetabolicManagement*rOddsIncAdherencetoOphthalmic)))*rOddsIncAdherencetoVisionLoss)))) -> 0.000987462006 | DG11: =DF11*(1-(pTreatedDRDVisionlossToVisionLossIrreversible)) -> 0.0009538882978 | DH11: =DF11*(pTreatedDRDVisionlossToVisionLossIrreversible) -> 3.35737082e-05 | DI11: =DE11*(1-((((1+rOddsIncAdherencetoVisionLoss)*(((1+rOddsIncAdherencetoOphthalmic)*pAdheringToMetabolicManagement)/(1+(pAdheringToMetabolicManagement*rOddsIncAdherencetoOphthalmic))))/(1+((((1+rOddsIncAdherencetoOphthalmic)*pAdheringToMetabolicManagement)/(1+(pAdheringToMetabolicManagement*rOddsIncAdherencetoOphthalmic)))*rOddsIncAdherencetoVisionLoss))))) -> 0.001404682188 | DJ11: =DI11*(1-(pNaturalHistoryVisionLossToVisionLossIrreversible)) -> 0.0008849497785 | DK11: =DI11*(pNaturalHistoryVisionLossToVisionLossIrreversible) -> 0.0005197324096 | DL11: =DD11*(1-(pDRDVisionLossAcceptsReferral)) -> 0.001732242347 | DM11: =DL11*(1-(pNaturalHistoryVisionLossToVisionLossIrreversible)) -> 0.001091312679 | DN11: =DL11*(pNaturalHistoryVisionLossToVisionLossIrreversible) -> 0.0006409296685 | DO11: =0 -> 0 | DP11: =0 + '1. Strategy Calcs'!CB10 + '1. Strategy Calcs'!CS10 + '1. Strategy Calcs'!CZ10 + '1. Strategy Calcs'!DG10 + DR10 -> 0.001881877045 | DQ11: =DP11*((((1+rOddsIncAdherencetoVisionLoss)*(((1+rOddsIncAdherencetoOphthalmic)*pAdheringToMetabolicManagement)/(1+(pAdheringToMetabolicManagement*rOddsIncAdherencetoOphthalmic))))/(1+((((1+rOddsIncAdherencetoOphthalmic)*pAdheringToMetabolicManagement)/(1+(pAdheringToMetabolicManagement*rOddsIncAdherencetoOphthalmic)))*rOddsIncAdherencetoVisionLoss)))) -> 0.0007768269514 | DR11: =DQ11*(1-(pTreatedDRDVisionlossToVisionLossIrreversible)) -> 0.000750414835 | DS11: =DQ11*(pTreatedDRDVisionlossToVisionLossIrreversible) -> 2.641211635e-05 | DT11: =DP11*(1-((((1+rOddsIncAdherencetoVisionLoss)*(((1+rOddsIncAdherencetoOphthalmic)*pAdheringToMetabolicManagement)/(1+(pAdheringToMetabolicManagement*rOddsIncAdherencetoOphthalmic))))/(1+((((1+rOddsIncAdherencetoOphthalmic)*pAdheringToMetabolicManagement)/(1+(pAdheringToMetabolicManagement*rOddsIncAdherencetoOphthalmic)))*rOddsIncAdherencetoVisionLoss))))) -> 0.001105050093 | DU11: =DT11*(1-(pNaturalHistoryVisionLossToVisionLossIrreversible)) -> 0.0006961815588 | DV11: =DT11*(pNaturalHistoryVisionLossToVisionLossIrreversible) -> 0.0004088685345 | DW11: =0 -> 0 | DX11: =0 + '1. Strategy Calcs'!DH10 + '1. Strategy Calcs'!DK10 + '1. Strategy Calcs'!DN10 + '1. Strategy Calcs'!DS10 + '1. Strategy Calcs'!DV10 + DX10 -> 0.006764825895 | DY11: =0 -> 0 | EA11: 0 | EB11: 0
B12: 4 | D12: ='1. Strategy Calcs'!Q12 -> 0.6200021575 | E12: ='1. Strategy Calcs'!AF12 -> 0.3380122756 | F12: ='1. Strategy Calcs'!BK12 -> 0.001982782369 | G12: ='1. Strategy Calcs'!BR12 -> 0.02549638879 | H12: ='1. Strategy Calcs'!CW12 -> 0.0001702831333 | I12: ='1. Strategy Calcs'!DD12 -> 0.004234400664 | J12: ='1. Strategy Calcs'!DP12 -> 0.001707369562 | K12: ='1. Strategy Calcs'!DX12 -> 0.008394342333 | L12: ='1. Strategy Calcs'!DO12 + '1. Strategy Calcs'!DW12 + '1. Strategy Calcs'!DY12 -> 0 | M12: =M11 + L12 -> 0 | O12: 1 | Q12: =0 + U11 + X11 + AA11 + AD11 -> 0.6200021575 | R12: =Q12*(IF(AAmodelECP=AAmodelAI,pAcceptsScreeningAI,pAcceptsScreeningECP)) -> 0.1240004315 | S12: =R12*(1-(IF(AAmodelECP=AAmodelAI,specScreeningAI,specScreeningECP))) -> 0.001240004315 | T12: =S12*(IF(AAmodelECP=AAmodelAI,pAcceptsReferralAfterAI,pAcceptsReferralAfterECP)) -> 0.0003596012514 | U12: =T12*(1-(pNaturalHistoryToDRDMetabolic)) -> 0.0003416211888 | V12: =T12*(pNaturalHistoryToDRDMetabolic) -> 1.798006257e-05 | W12: =S12*(1-(IF(AAmodelECP=AAmodelAI,pAcceptsReferralAfterAI,pAcceptsReferralAfterECP))) -> 0.0008804030637 | X12: =W12*(1-(pNaturalHistoryToDRDMetabolic)) -> 0.0008363829105 | Y12: =W12*(pNaturalHistoryToDRDMetabolic) -> 4.402015318e-05 | Z12: =R12*(IF(AAmodelECP=AAmodelAI,specScreeningAI,specScreeningECP)) -> 0.1227604272 | AA12: =Z12*(1-(pNaturalHistoryToDRDMetabolic)) -> 0.1166224058 | AB12: =Z12*(pNaturalHistoryToDRDMetabolic) -> 0.006138021359 | AC12: =Q12*(1-(IF(AAmodelECP=AAmodelAI,pAcceptsScreeningAI,pAcceptsScreeningECP))) -> 0.496001726 | AD12: =AC12*(1-(pNaturalHistoryToDRDMetabolic)) -> 0.4712016397 | AE12: =AC12*(pNaturalHistoryToDRDMetabolic) -> 0.0248000863 | AF12: =0 + '1. Strategy Calcs'!V11 + '1. Strategy Calcs'!Y11 + '1. Strategy Calcs'!AB11 + '1. Strategy Calcs'!AE11 + AL11 + AR11 + AU11 + AX11 + BC11 + BI11 + '1. Strategy Calcs'!BP11 -> 0.3380122756 | AG12: =AF12*(1-(INDEX(pDRDMetabolicReferred_1,cycle+1))) -> 0.3380122756 | AH12: =AG12*(IF(AAmodelECP=AAmodelAI,pAcceptsScreeningAI,pAcceptsScreeningECP)) -> 0.06760245513 | AI12: =AH12*(IF(AAmodelECP=AAmodelAI,sensScreeningAI,sensScreeningECP)) -> 0.02230881019 | AJ12: =AI12*(IF(AAmodelECP=AAmodelAI,pAcceptsReferralAfterAI,pAcceptsReferralAfterECP)) -> 0.006469554956 | AK12: =AJ12*(1-(pAdheringToMetabolicManagement)) -> 0.004916861766 | AL12: =AK12*(1-(pNaturalHistoryDRDMetabolicToOphth)) -> 0.004818524531 | AM12: =AK12*(pNaturalHistoryDRDMetabolicToOphth) -> 9.833723533e-05 | AN12: =AJ12*(pAdheringToMetabolicManagement) -> 0.001552693189 | AO12: =AN12*(1-(pTreatedDRDMetabolicToOphth)) -> 0.001537166258 | AP12: =AN12*(pTreatedDRDMetabolicToOphth) -> 1.552693189e-05 | AQ12: =AI12*(1-(IF(AAmodelECP=AAmodelAI,pAcceptsReferralAfterAI,pAcceptsReferralAfterECP))) -> 0.01583925524 | AR12: =AQ12*(1-(pNaturalHistoryDRDMetabolicToOphth)) -> 0.01552247013 | AS12: =AQ12*(pNaturalHistoryDRDMetabolicToOphth) -> 0.0003167851047 | AT12: =AH12*(1-(IF(AAmodelECP=AAmodelAI,sensScreeningAI,sensScreeningECP))) -> 0.04529364494 | AU12: =AT12*(1-(pNaturalHistoryDRDMetabolicToOphth)) -> 0.04438777204 | AV12: =AT12*(pNaturalHistoryDRDMetabolicToOphth) -> 0.0009058728987 | AW12: =AG12*(1-(IF(AAmodelECP=AAmodelAI,pAcceptsScreeningAI,pAcceptsScreeningECP))) -> 0.2704098205 | AX12: =AW12*(1-(pNaturalHistoryDRDMetabolicToOphth)) -> 0.2650016241 | AY12: =AW12*(pNaturalHistoryDRDMetabolicToOphth) -> 0.00540819641 | AZ12: =AF12*(INDEX(pDRDMetabolicReferred_1,cycle+1)) -> 0 | BA12: =AZ12*(IF(AAmodelECP=AAmodelAI,pAcceptsReferralAfterAI,pAcceptsReferralAfterECP)) -> 0 | BB12: =BA12*(1-(pAdheringToMetabolicManagement)) -> 0 | BC12: =BB12*(1-(pNaturalHistoryDRDMetabolicToOphth)) -> 0 | BD12: =BB12*(pNaturalHistoryDRDMetabolicToOphth) -> 0 | BE12: =BA12*(pAdheringToMetabolicManagement) -> 0 | BF12: =BE12*(1-(pTreatedDRDMetabolicToOphth)) -> 0 | BG12: =BE12*(pTreatedDRDMetabolicToOphth) -> 0 | BH12: =AZ12*(1-(IF(AAmodelECP=AAmodelAI,pAcceptsReferralAfterAI,pAcceptsReferralAfterECP))) -> 0 | BI12: =BH12*(1-(pNaturalHistoryDRDMetabolicToOphth)) -> 0 | BJ12: =BH12*(pNaturalHistoryDRDMetabolicToOphth) -> 0 | BK12: =0 + '1. Strategy Calcs'!AO11 + '1. Strategy Calcs'!BF11 + BM11 -> 0.001982782369 | BL12: =BK12*(pAdheringToMetabolicManagement) -> 0.0004758677685 | BM12: =BL12*(1-(pTreatedDRDMetabolicToOphth)) -> 0.0004711090908 | BN12: =BL12*(pTreatedDRDMetabolicToOphth) -> 4.758677685e-06 | BO12: =BK12*(1-(pAdheringToMetabolicManagement)) -> 0.0015069146 | BP12: =BO12*(1-(pNaturalHistoryDRDMetabolicToOphth)) -> 0.001476776308 | BQ12: =BO12*(pNaturalHistoryDRDMetabolicToOphth) -> 3.013829201e-05 | BR12: =0 + '1. Strategy Calcs'!AM11 + '1. Strategy Calcs'!AS11 + '1. Strategy Calcs'!AV11 + '1. Strategy Calcs'!AY11 + '1. Strategy Calcs'!BD11 + '1. Strategy Calcs'!BJ11 + '1. Strategy Calcs'!BQ11 + BX11 + CD11 + CG11 + CJ11 + CO11 + CU11 + '1. Strategy Calcs'!DB11 -> 0.02549638879 | BS12: =BR12*(1-(INDEX(pDRDOphthalmicReferred_1,cycle+1))) -> 0.02549638879 | BT12: =BS12*(IF(AAmodelECP=AAmodelAI,pAcceptsScreeningAI,pAcceptsScreeningECP)) -> 0.005099277759 | BU12: =BT12*(IF(AAmodelECP=AAmodelAI,sensScreeningAI,sensScreeningECP)) -> 0.00168276166 | BV12: =BU12*(IF(AAmodelECP=AAmodelAI,pAcceptsReferralAfterAI,pAcceptsReferralAfterECP)) -> 0.0004880008815 | BW12: =BV12*(1-((((1+rOddsIncAdherencetoOphthalmic)*pAdheringToMetabolicManagement)/(1+(pAdheringToMetabolicManagement*rOddsIncAdherencetoOphthalmic))))) -> 0.0003596592998 | BX12: =BW12*(1-(pNaturalHistoryDRDOphthToVisionLoss)) -> 0.0003326848523 | BY12: =BW12*(pNaturalHistoryDRDOphthToVisionLoss) -> 2.697444748e-05 | BZ12: =BV12*((((1+rOddsIncAdherencetoOphthalmic)*pAdheringToMetabolicManagement)/(1+(pAdheringToMetabolicManagement*rOddsIncAdherencetoOphthalmic)))) -> 0.0001283415817 | CA12: =BZ12*(1-(pTreatedDRDOphthalmicToVisionLoss)) -> 0.0001257747501 | CB12: =BZ12*(pTreatedDRDOphthalmicToVisionLoss) -> 2.566831634e-06 | CC12: =BU12*(1-(IF(AAmodelECP=AAmodelAI,pAcceptsReferralAfterAI,pAcceptsReferralAfterECP))) -> 0.001194760779 | CD12: =CC12*(1-(pNaturalHistoryDRDOphthToVisionLoss)) -> 0.00110515372 | CE12: =CC12*(pNaturalHistoryDRDOphthToVisionLoss) -> 8.960705841e-05 | CF12: =BT12*(1-(IF(AAmodelECP=AAmodelAI,sensScreeningAI,sensScreeningECP))) -> 0.003416516098 | CG12: =CF12*(1-(pNaturalHistoryDRDOphthToVisionLoss)) -> 0.003160277391 | CH12: =CF12*(pNaturalHistoryDRDOphthToVisionLoss) -> 0.0002562387074 | CI12: =BS12*(1-(IF(AAmodelECP=AAmodelAI,pAcceptsScreeningAI,pAcceptsScreeningECP))) -> 0.02039711103 | CJ12: =CI12*(1-(pNaturalHistoryDRDOphthToVisionLoss)) -> 0.01886732771 | CK12: =CI12*(pNaturalHistoryDRDOphthToVisionLoss) -> 0.001529783328 | CL12: =BR12*(INDEX(pDRDOphthalmicReferred_1,cycle+1)) -> 0 | CM12: =CL12*(IF(AAmodelECP=AAmodelAI,pAcceptsReferralAfterAI,pAcceptsReferralAfterECP)) -> 0 | CN12: =CM12*(1-((((1+rOddsIncAdherencetoOphthalmic)*pAdheringToMetabolicManagement)/(1+(pAdheringToMetabolicManagement*rOddsIncAdherencetoOphthalmic))))) -> 0 | CO12: =CN12*(1-(pNaturalHistoryDRDOphthToVisionLoss)) -> 0 | CP12: =CN12*(pNaturalHistoryDRDOphthToVisionLoss) -> 0 | CQ12: =CM12*((((1+rOddsIncAdherencetoOphthalmic)*pAdheringToMetabolicManagement)/(1+(pAdheringToMetabolicManagement*rOddsIncAdherencetoOphthalmic)))) -> 0 | CR12: =CQ12*(1-(pTreatedDRDOphthalmicToVisionLoss)) -> 0 | CS12: =CQ12*(pTreatedDRDOphthalmicToVisionLoss) -> 0 | CT12: =CL12*(1-(IF(AAmodelECP=AAmodelAI,pAcceptsReferralAfterAI,pAcceptsReferralAfterECP))) -> 0 | CU12: =CT12*(1-(pNaturalHistoryDRDOphthToVisionLoss)) -> 0 | CV12: =CT12*(pNaturalHistoryDRDOphthToVisionLoss) -> 0 | CW12: =0 + '1. Strategy Calcs'!AP11 + '1. Strategy Calcs'!BG11 + '1. Strategy Calcs'!BN11 + '1. Strategy Calcs'!CA11 + '1. Strategy Calcs'!CR11 + CY11 -> 0.0001702831333 | CX12: =CW12*((((1+rOddsIncAdherencetoOphthalmic)*pAdheringToMetabolicManagement)/(1+(pAdheringToMetabolicManagement*rOddsIncAdherencetoOphthalmic)))) -> 4.478353932e-05 | CY12: =CX12*(1-(pTreatedDRDOphthalmicToVisionLoss)) -> 4.388786853e-05 | CZ12: =CX12*(pTreatedDRDOphthalmicToVisionLoss) -> 8.956707864e-07 | DA12: =CW12*(1-((((1+rOddsIncAdherencetoOphthalmic)*pAdheringToMetabolicManagement)/(1+(pAdheringToMetabolicManagement*rOddsIncAdherencetoOphthalmic))))) -> 0.000125499594 | DB12: =DA12*(1-(pNaturalHistoryDRDOphthToVisionLoss)) -> 0.0001160871244 | DC12: =DA12*(pNaturalHistoryDRDOphthToVisionLoss) -> 9.412469547e-06 | DD12: =0 + '1. Strategy Calcs'!BY11 + '1. Strategy Calcs'!CE11 + '1. Strategy Calcs'!CH11 + '1. Strategy Calcs'!CK11 + '1. Strategy Calcs'!CP11 + '1. Strategy Calcs'!CV11 + '1. Strategy Calcs'!DC11 + DJ11 + DM11 + '1. Strategy Calcs'!DU11 -> 0.004234400664 | DE12: =DD12*(pDRDVisionLossAcceptsReferral) -> 0.002455952385 | DF12: =DE12*((((1+rOddsIncAdherencetoVisionLoss)*(((1+rOddsIncAdherencetoOphthalmic)*pAdheringToMetabolicManagement)/(1+(pAdheringToMetabolicManagement*rOddsIncAdherencetoOphthalmic))))/(1+((((1+rOddsIncAdherencetoOphthalmic)*pAdheringToMetabolicManagement)/(1+(pAdheringToMetabolicManagement*rOddsIncAdherencetoOphthalmic)))*rOddsIncAdherencetoVisionLoss)))) -> 0.001013801624 | DG12: =DF12*(1-(pTreatedDRDVisionlossToVisionLossIrreversible)) -> 0.0009793323689 | DH12: =DF12*(pTreatedDRDVisionlossToVisionLossIrreversible) -> 3.446925522e-05 | DI12: =DE12*(1-((((1+rOddsIncAdherencetoVisionLoss)*(((1+rOddsIncAdherencetoOphthalmic)*pAdheringToMetabolicManagement)/(1+(pAdheringToMetabolicManagement*rOddsIncAdherencetoOphthalmic))))/(1+((((1+rOddsIncAdherencetoOphthalmic)*pAdheringToMetabolicManagement)/(1+(pAdheringToMetabolicManagement*rOddsIncAdherencetoOphthalmic)))*rOddsIncAdherencetoVisionLoss))))) -> 0.001442150761 | DJ12: =DI12*(1-(pNaturalHistoryVisionLossToVisionLossIrreversible)) -> 0.0009085549796 | DK12: =DI12*(pNaturalHistoryVisionLossToVisionLossIrreversible) -> 0.0005335957817 | DL12: =DD12*(1-(pDRDVisionLossAcceptsReferral)) -> 0.001778448279 | DM12: =DL12*(1-(pNaturalHistoryVisionLossToVisionLossIrreversible)) -> 0.001120422416 | DN12: =DL12*(pNaturalHistoryVisionLossToVisionLossIrreversible) -> 0.0006580258632 | DO12: =0 -> 0 | DP12: =0 + '1. Strategy Calcs'!CB11 + '1. Strategy Calcs'!CS11 + '1. Strategy Calcs'!CZ11 + '1. Strategy Calcs'!DG11 + DR11 -> 0.001707369562 | DQ12: =DP12*((((1+rOddsIncAdherencetoVisionLoss)*(((1+rOddsIncAdherencetoOphthalmic)*pAdheringToMetabolicManagement)/(1+(pAdheringToMetabolicManagement*rOddsIncAdherencetoOphthalmic))))/(1+((((1+rOddsIncAdherencetoOphthalmic)*pAdheringToMetabolicManagement)/(1+(pAdheringToMetabolicManagement*rOddsIncAdherencetoOphthalmic)))*rOddsIncAdherencetoVisionLoss)))) -> 0.0007047913653 | DR12: =DQ12*(1-(pTreatedDRDVisionlossToVisionLossIrreversible)) -> 0.0006808284589 | DS12: =DQ12*(pTreatedDRDVisionlossToVisionLossIrreversible) -> 2.396290642e-05 | DT12: =DP12*(1-((((1+rOddsIncAdherencetoVisionLoss)*(((1+rOddsIncAdherencetoOphthalmic)*pAdheringToMetabolicManagement)/(1+(pAdheringToMetabolicManagement*rOddsIncAdherencetoOphthalmic))))/(1+((((1+rOddsIncAdherencetoOphthalmic)*pAdheringToMetabolicManagement)/(1+(pAdheringToMetabolicManagement*rOddsIncAdherencetoOphthalmic)))*rOddsIncAdherencetoVisionLoss))))) -> 0.001002578197 | DU12: =DT12*(1-(pNaturalHistoryVisionLossToVisionLossIrreversible)) -> 0.0006316242639 | DV12: =DT12*(pNaturalHistoryVisionLossToVisionLossIrreversible) -> 0.0003709539328 | DW12: =0 -> 0 | DX12: =0 + '1. Strategy Calcs'!DH11 + '1. Strategy Calcs'!DK11 + '1. Strategy Calcs'!DN11 + '1. Strategy Calcs'!DS11 + '1. Strategy Calcs'!DV11 + DX11 -> 0.008394342333 | DY12: =0 -> 0 | EA12: 0 | EB12: 0
B13: 5 | D13: ='1. Strategy Calcs'!Q13 -> 0.5890020496 | E13: ='1. Strategy Calcs'!AF13 -> 0.362207275 | F13: ='1. Strategy Calcs'!BK13 -> 0.002008275348 | G13: ='1. Strategy Calcs'!BR13 -> 0.03034086074 | H13: ='1. Strategy Calcs'!CW13 -> 0.0001899482282 | I13: ='1. Strategy Calcs'!DD13 -> 0.00457261767 | J13: ='1. Strategy Calcs'!DP13 -> 0.00166362333 | K13: ='1. Strategy Calcs'!DX13 -> 0.01001535007 | L13: ='1. Strategy Calcs'!DO13 + '1. Strategy Calcs'!DW13 + '1. Strategy Calcs'!DY13 -> 1625.159107 | M13: =M12 + L13 -> 1625.159107 | O13: 1 | Q13: =0 + U12 + X12 + AA12 + AD12 -> 0.5890020496 | AF13: =0 + '1. Strategy Calcs'!V12 + '1. Strategy Calcs'!Y12 + '1. Strategy Calcs'!AB12 + '1. Strategy Calcs'!AE12 + AL12 + AR12 + AU12 + AX12 + BC12 + BI12 + '1. Strategy Calcs'!BP12 -> 0.362207275 | BK13: =0 + '1. Strategy Calcs'!AO12 + '1. Strategy Calcs'!BF12 + BM12 -> 0.002008275348 | BR13: =0 + '1. Strategy Calcs'!AM12 + '1. Strategy Calcs'!AS12 + '1. Strategy Calcs'!AV12 + '1. Strategy Calcs'!AY12 + '1. Strategy Calcs'!BD12 + '1. Strategy Calcs'!BJ12 + '1. Strategy Calcs'!BQ12 + BX12 + CD12 + CG12 + CJ12 + CO12 + CU12 + '1. Strategy Calcs'!DB12 -> 0.03034086074 | CW13: =0 + '1. Strategy Calcs'!AP12 + '1. Strategy Calcs'!BG12 + '1. Strategy Calcs'!BN12 + '1. Strategy Calcs'!CA12 + '1. Strategy Calcs'!CR12 + CY12 -> 0.0001899482282 | DD13: =0 + '1. Strategy Calcs'!BY12 + '1. Strategy Calcs'!CE12 + '1. Strategy Calcs'!CH12 + '1. Strategy Calcs'!CK12 + '1. Strategy Calcs'!CP12 + '1. Strategy Calcs'!CV12 + '1. Strategy Calcs'!DC12 + DJ12 + DM12 + '1. Strategy Calcs'!DU12 -> 0.00457261767 | DO13: =DD13*(100000) -> 457.261767 | DP13: =0 + '1. Strategy Calcs'!CB12 + '1. Strategy Calcs'!CS12 + '1. Strategy Calcs'!CZ12 + '1. Strategy Calcs'!DG12 + DR12 -> 0.00166362333 | DW13: =DP13*(100000) -> 166.362333 | DX13: =0 + '1. Strategy Calcs'!DH12 + '1. Strategy Calcs'!DK12 + '1. Strategy Calcs'!DN12 + '1. Strategy Calcs'!DS12 + '1. Strategy Calcs'!DV12 + DX12 -> 0.01001535007 | DY13: =DX13*(100000) -> 1001.535007 | EA13: 0 | EB13: 0
B15: Total | L15: =SUM(L8:L13) -> 1625.159107 | M15: =M13 -> 1625.159107

Sheet 2. Strategy Calcs (hidden)
B1: Strategy | C1: 2 | D1: AI
B2: States | C2: All
Q3: No DRD - State 2.1 | AF3: DRD metabolic - State 2.2 | BK3: DRD Metabolic treated - State 2.3 | BR3: DRD ophthalmic - State 2.4 | CW3: DRD ophthalmic treated - State 2.5 | DD3: DRD Vision Loss - State 2.6 | DP3: DRD Vision Loss Treated - State 2.7 | DX3: Blindness - State 2.8
D4: Cohort State Proportions | Q4: Cohort % | AF4: Cohort % | BK4: Cohort % | BR4: Cohort % | CW4: Cohort % | DD4: Cohort % | DO4: Payoff 4 - Vision Loss | DP4: Cohort % | DW4: Payoff 4 - Vision Loss | DX4: Cohort % | DY4: Payoff 4 - Vision Loss
B5: Cycle | D5: No DRD | E5: DRD metabolic | F5: DRD Metabolic treated | G5: DRD ophthalmic | H5: DRD ophthalmic treated | I5: DRD Vision Loss | J5: DRD Vision Loss Treated | K5: Blindness | L5: Payoff 4 - Vision Loss | O5: Checksum of Cohort % | Q5: 2.1 State | R5: 2.1.1 Transition | S5: 2.1.1.1 Transition | T5: 2.1.1.1.1 Transition | U5: 2.1.1.1.1.1 Transition | V5: 2.1.1.1.1.2 Transition | W5: 2.1.1.1.2 Transition | X5: 2.1.1.1.2.1 Transition | Y5: 2.1.1.1.2.2 Transition | Z5: 2.1.1.2 Transition | AA5: 2.1.1.2.1 Transition | AB5: 2.1.1.2.2 Transition | AC5: 2.1.2 Transition | AD5: 2.1.2.1 Transition | AE5: 2.1.2.2 Transition | AF5: 2.2 State | AG5: 2.2.1 Transition | AH5: 2.2.1.1 Transition | AI5: 2.2.1.1.1 Transition | AJ5: 2.2.1.1.1.1 Transition | AK5: 2.2.1.1.1.1.1 Transition | AL5: 2.2.1.1.1.1.1.1 Transition | AM5: 2.2.1.1.1.1.1.2 Transition | AN5: 2.2.1.1.1.1.2 Transition | AO5: 2.2.1.1.1.1.2.1 Transition | AP5: 2.2.1.1.1.1.2.2 Transition | AQ5: 2.2.1.1.1.2 Transition | AR5: 2.2.1.1.1.2.1 Transition | AS5: 2.2.1.1.1.2.2 Transition | AT5: 2.2.1.1.2 Transition | AU5: 2.2.1.1.2.1 Transition | AV5: 2.2.1.1.2.2 Transition | AW5: 2.2.1.2 Transition | AX5: 2.2.1.2.1 Transition | AY5: 2.2.1.2.2 Transition | AZ5: 2.2.2 Transition | BA5: 2.2.2.1 Transition | BB5: 2.2.2.1.1 Transition | BC5: 2.2.2.1.1.1 Transition | BD5: 2.2.2.1.1.2 Transition | BE5: 2.2.2.1.2 Transition | BF5: 2.2.2.1.2.1 Transition | BG5: 2.2.2.1.2.2 Transition | BH5: 2.2.2.2 Transition | BI5: 2.2.2.2.1 Transition | BJ5: 2.2.2.2.2 Transition | BK5: 2.3 State | BL5: 2.3.1 Transition | BM5: 2.3.1.1 Transition | BN5: 2.3.1.2 Transition | BO5: 2.3.2 Transition | BP5: 2.3.2.1 Transition | BQ5: 2.3.2.2 Transition | BR5: 2.4 State | BS5: 2.4.1 Transition | BT5: 2.4.1.1 Transition | BU5: 2.4.1.1.1 Transition | BV5: 2.4.1.1.1.1 Transition | BW5: 2.4.1.1.1.1.1 Transition | BX5: 2.4.1.1.1.1.1.1 Transition | BY5: 2.4.1.1.1.1.1.2 Transition | BZ5: 2.4.1.1.1.1.2 Transition | CA5: 2.4.1.1.1.1.2.1 Transition | CB5: 2.4.1.1.1.1.2.2 Transition | CC5: 2.4.1.1.1.2 Transition | CD5: 2.4.1.1.1.2.1 Transition | CE5: 2.4.1.1.1.2.2 Transition | CF5: 2.4.1.1.2 Transition | CG5: 2.4.1.1.2.1 Transition | CH5: 2.4.1.1.2.2 Transition | CI5: 2.4.1.2 Transition | CJ5: 2.4.1.2.1 Transition | CK5: 2.4.1.2.2 Transition | CL5: 2.4.2 Transition | CM5: 2.4.2.1 Transition | CN5: 2.4.2.1.1 Transition | CO5: 2.4.2.1.1.1 Transition | CP5: 2.4.2.1.1.2 Transition | CQ5: 2.4.2.1.2 Transition | CR5: 2.4.2.1.2.1 Transition | CS5: 2.4.2.1.2.2 Transition | CT5: 2.4.2.2 Transition | CU5: 2.4.2.2.1 Transition | CV5: 2.4.2.2.2 Transition | CW5: 2.5 State | CX5: 2.5.1 Transition | CY5: 2.5.1.1 Transition | CZ5: 2.5.1.2 Transition | DA5: 2.5.2 Transition | DB5: 2.5.2.1 Transition | DC5: 2.5.2.2 Transition | DD5: 2.6 State | DE5: 2.6.1 Transition | DF5: 2.6.1.1 Transition | DG5: 2.6.1.1.1 Transition | DH5: 2.6.1.1.2 Transition | DI5: 2.6.1.2 Transition | DJ5: 2.6.1.2.1 Transition | DK5: 2.6.1.2.2 Transition | DL5: 2.6.2 Transition | DM5: 2.6.2.1 Transition | DN5: 2.6.2.2 Transition | DO5: 2.6 State | DP5: 2.7 State | DQ5: 2.7.1 Transition | DR5: 2.7.1.1 Transition | DS5: 2.7.1.2 Transition | DT5: 2.7.2 Transition | DU5: 2.7.2.1 Transition | DV5: 2.7.2.2 Transition | DW5: 2.7 State | DX5: 2.8 State | DY5: 2.8 State | EA5: pDRDMetabolicReferred | EB5: pDRDOphthalmicReferred
L6: No Discount | M6: Cum No Disc | Q6: No DRD | R6: Accepts Screening | S6: Screen positive | T6: Accepts Referral | U6: Does not progress | V6: Progresses to DRD Metabolic | W6: Does not Accept Referral | X6: Does not progress | Y6: Progresses to DRD Metabolic | Z6: Screen negative | AA6: Does not progress | AB6: Progresses to DRD Metabolic | AC6: Does not accept Screen | AD6: Does not progress | AE6: Progresses to DRD Metabolic | AF6: DRD metabolic | AG6: Offered Screening | AH6: Accepts Screening | AI6: Screen positive | AJ6: Accepts Referral | AK6: Does not adhere to metabolic management | AL6: DRD metabolic | AM6: DRD ophthalmic | AN6: Adheres with metabolic control | AO6: DRD metabolic treated | AP6: DRD ophthalmic | AQ6: Does not accept referral | AR6: DRD metabolic | AS6: DRD ophthalmic | AT6: Screen negative | AU6: DRD metabolic | AV6: DRD ophthalmic | AW6: Does not accept Screen | AX6: DRD metabolic | AY6: DRD ophthalmic | AZ6: Referred | BA6: Accepts Referral | BB6: Does not adhere to metabolic management | BC6: DRD metabolic | BD6: DRD ophthalmic | BE6: Adheres with metabolic control | BF6: DRD metabolic treated | BG6: DRD ophthalmic | BH6: Does not accept referral | BI6: DRD metabolic | BJ6: DRD ophthalmic | BK6: DRD Metabolic treated | BL6: Adheres with metabolic treatment | BM6: DRD metabolic treated | BN6: DRD ophthalmic | BO6: Does not adhere with metabolic treatment | BP6: DRD metabolic | BQ6: DRD ophthalmic | BR6: DRD ophthalmic | BS6: Offered Screening | BT6: Accepts Screening | BU6: Screen positive | BV6: Accepts Referral | BW6: Does not adhere to ophthalmic management | BX6: DRD ophthalmic | BY6: DRD Vision loss | BZ6: Adheres with ophthalmic management | CA6: DRD ophthalmic treated | CB6: DRD Vision loss | CC6: Does not Accept Referral | CD6: DRD ophthalmic | CE6: Progresses from DRD requiring ophthalmic control to vision loss | CF6: Screen negative | CG6: DRD ophthalmic | CH6: Progresses from DRD requiring ophthalmic control to vision loss | CI6: Does not accept Screen | CJ6: DRD ophthalmic | CK6: Progresses from DRD requiring ophthalmic control to vision loss | CL6: Referred | CM6: Accepts Referral | CN6: Does not adhere to ophthalmic management | CO6: DRD ophthalmic | CP6: Progresses from DRD requiring ophthalmic control to vision loss | CQ6: Adheres with ophthalmic management | CR6: DRD ophthalmic treated | CS6: DRD Vision loss | CT6: Does not Accept Referral | CU6: DRD ophthalmic | CV6: Progresses from DRD requiring ophthalmic control to vision loss | CW6: DRD ophthalmic treated | CX6: Adheres to ophthalmic management | CY6: DRD ophthalmic treated | CZ6: DRD Vision loss | DA6: Does not adhere with ophthalmic management | DB6: DRD ophthalmic | DC6: Progresses from DRD requiring ophthalmic control to vision loss | DD6: DRD Vision Loss | DE6: Accepts referral | DF6: Adheres to vision loss management | DG6: DRD Vision loss gets treated | DH6: Blindness | DI6: Does not adhere to vision loss management | DJ6: Persistent vision loss | DK6: Blindness | DL6: Does not accept referral | DM6: Persistent vision loss | DN6: Blindness | DO6: DRD Vision Loss | DP6: DRD Vision Loss Treated | DQ6: Adheres to vision loss management | DR6: DRD Vision loss gets treated | DS6: Blindness | DT6: Does not adhere vision loss management | DU6: Persistent vision loss | DV6: Blindness | DW6: DRD Vision Loss Treated | DX6: Blindness | DY6: Blindness
B8: 0 | D8: =1-(prevDRDMetabolic)-(prevDRDMetabolicRx)-((propDRDOphthalmic*prevDRDMetabolic))-(prevDRDOphthalmicRx)-(prevDRDVisionLoss)-(prevDRDVisionLossRx)-(0) -> 0.7612 | E8: =prevDRDMetabolic -> 0.22 | F8: =prevDRDMetabolicRx -> 0 | G8: =(propDRDOphthalmic*prevDRDMetabolic) -> 0.0088 | H8: =prevDRDOphthalmicRx -> 0 | I8: =prevDRDVisionLoss -> 0.01 | J8: =prevDRDVisionLossRx -> 0 | K8: =0 -> 0 | L8: ='2. Strategy Calcs'!DO8 + '2. Strategy Calcs'!DW8 + '2. Strategy Calcs'!DY8 -> 0 | M8: =L8 -> 0 | O8: =SUM(D8:K8) -> 1 | Q8: ='2. Strategy Calcs'!D8 -> 0.7612 | R8: =Q8*(IF(AAmodelAI=AAmodelAI,pAcceptsScreeningAI,pAcceptsScreeningECP)) -> 0.72314 | S8: =R8*(1-(IF(AAmodelAI=AAmodelAI,specScreeningAI,specScreeningECP))) -> 0.0650826 | T8: =S8*(IF(AAmodelAI=AAmodelAI,pAcceptsReferralAfterAI,pAcceptsReferralAfterECP)) -> 0.04881195 | U8: =T8*(1-(pNaturalHistoryToDRDMetabolic)) -> 0.0463713525 | V8: =T8*(pNaturalHistoryToDRDMetabolic) -> 0.0024405975 | W8: =S8*(1-(IF(AAmodelAI=AAmodelAI,pAcceptsReferralAfterAI,pAcceptsReferralAfterECP))) -> 0.01627065 | X8: =W8*(1-(pNaturalHistoryToDRDMetabolic)) -> 0.0154571175 | Y8: =W8*(pNaturalHistoryToDRDMetabolic) -> 0.0008135325 | Z8: =R8*(IF(AAmodelAI=AAmodelAI,specScreeningAI,specScreeningECP)) -> 0.6580574 | AA8: =Z8*(1-(pNaturalHistoryToDRDMetabolic)) -> 0.62515453 | AB8: =Z8*(pNaturalHistoryToDRDMetabolic) -> 0.03290287 | AC8: =Q8*(1-(IF(AAmodelAI=AAmodelAI,pAcceptsScreeningAI,pAcceptsScreeningECP))) -> 0.03806 | AD8: =AC8*(1-(pNaturalHistoryToDRDMetabolic)) -> 0.036157 | AE8: =AC8*(pNaturalHistoryToDRDMetabolic) -> 0.001903 | AF8: ='2. Strategy Calcs'!E8 -> 0.22 | AG8: =AF8*(1-(INDEX(pDRDMetabolicReferred_2,cycle+1))) -> 0 | AH8: =AG8*(IF(AAmodelAI=AAmodelAI,pAcceptsScreeningAI,pAcceptsScreeningECP)) -> 0 | AI8: =AH8*(IF(AAmodelAI=AAmodelAI,sensScreeningAI,sensScreeningECP)) -> 0 | AJ8: =AI8*(IF(AAmodelAI=AAmodelAI,pAcceptsReferralAfterAI,pAcceptsReferralAfterECP)) -> 0 | AK8: =AJ8*(1-(pAdheringToMetabolicManagement)) -> 0 | AL8: =AK8*(1-(pNaturalHistoryDRDMetabolicToOphth)) -> 0 | AM8: =AK8*(pNaturalHistoryDRDMetabolicToOphth) -> 0 | AN8: =AJ8*(pAdheringToMetabolicManagement) -> 0 | AO8: =AN8*(1-(pTreatedDRDMetabolicToOphth)) -> 0 | AP8: =AN8*(pTreatedDRDMetabolicToOphth) -> 0 | AQ8: =AI8*(1-(IF(AAmodelAI=AAmodelAI,pAcceptsReferralAfterAI,pAcceptsReferralAfterECP))) -> 0 | AR8: =AQ8*(1-(pNaturalHistoryDRDMetabolicToOphth)) -> 0 | AS8: =AQ8*(pNaturalHistoryDRDMetabolicToOphth) -> 0 | AT8: =AH8*(1-(IF(AAmodelAI=AAmodelAI,sensScreeningAI,sensScreeningECP))) -> 0 | AU8: =AT8*(1-(pNaturalHistoryDRDMetabolicToOphth)) -> 0 | AV8: =AT8*(pNaturalHistoryDRDMetabolicToOphth) -> 0 | AW8: =AG8*(1-(IF(AAmodelAI=AAmodelAI,pAcceptsScreeningAI,pAcceptsScreeningECP))) -> 0 | AX8: =AW8*(1-(pNaturalHistoryDRDMetabolicToOphth)) -> 0 | AY8: =AW8*(pNaturalHistoryDRDMetabolicToOphth) -> 0 | AZ8: =AF8*(INDEX(pDRDMetabolicReferred_2,cycle+1)) -> 0.22 | BA8: =AZ8*(IF(AAmodelAI=AAmodelAI,pAcceptsReferralAfterAI,pAcceptsReferralAfterECP)) -> 0.165 | BB8: =BA8*(1-(pAdheringToMetabolicManagement)) -> 0.1254 | BC8: =BB8*(1-(pNaturalHistoryDRDMetabolicToOphth)) -> 0.122892 | BD8: =BB8*(pNaturalHistoryDRDMetabolicToOphth) -> 0.002508 | BE8: =BA8*(pAdheringToMetabolicManagement) -> 0.0396 | BF8: =BE8*(1-(pTreatedDRDMetabolicToOphth)) -> 0.039204 | BG8: =BE8*(pTreatedDRDMetabolicToOphth) -> 0.000396 | BH8: =AZ8*(1-(IF(AAmodelAI=AAmodelAI,pAcceptsReferralAfterAI,pAcceptsReferralAfterECP))) -> 0.055 | BI8: =BH8*(1-(pNaturalHistoryDRDMetabolicToOphth)) -> 0.0539 | BJ8: =BH8*(pNaturalHistoryDRDMetabolicToOphth) -> 0.0011 | BK8: ='2. Strategy Calcs'!F8 -> 0 | BL8: =BK8*(pAdheringToMetabolicManagement) -> 0 | BM8: =BL8*(1-(pTreatedDRDMetabolicToOphth)) -> 0 | BN8: =BL8*(pTreatedDRDMetabolicToOphth) -> 0 | BO8: =BK8*(1-(pAdheringToMetabolicManagement)) -> 0 | BP8: =BO8*(1-(pNaturalHistoryDRDMetabolicToOphth)) -> 0 | BQ8: =BO8*(pNaturalHistoryDRDMetabolicToOphth) -> 0 | BR8: ='2. Strategy Calcs'!G8 -> 0.0088 | BS8: =BR8*(1-(INDEX(pDRDOphthalmicReferred_2,cycle+1))) -> 0 | BT8: =BS8*(IF(AAmodelAI=AAmodelAI,pAcceptsScreeningAI,pAcceptsScreeningECP)) -> 0 | BU8: =BT8*(IF(AAmodelAI=AAmodelAI,sensScreeningAI,sensScreeningECP)) -> 0 | BV8: =BU8*(IF(AAmodelAI=AAmodelAI,pAcceptsReferralAfterAI,pAcceptsReferralAfterECP)) -> 0 | BW8: =BV8*(1-((((1+rOddsIncAdherencetoOphthalmic)*pAdheringToMetabolicManagement)/(1+(pAdheringToMetabolicManagement*rOddsIncAdherencetoOphthalmic))))) -> 0 | BX8: =BW8*(1-(pNaturalHistoryDRDOphthToVisionLoss)) -> 0 | BY8: =BW8*(pNaturalHistoryDRDOphthToVisionLoss) -> 0 | BZ8: =BV8*((((1+rOddsIncAdherencetoOphthalmic)*pAdheringToMetabolicManagement)/(1+(pAdheringToMetabolicManagement*rOddsIncAdherencetoOphthalmic)))) -> 0 | CA8: =BZ8*(1-(pTreatedDRDOphthalmicToVisionLoss)) -> 0 | CB8: =BZ8*(pTreatedDRDOphthalmicToVisionLoss) -> 0 | CC8: =BU8*(1-(IF(AAmodelAI=AAmodelAI,pAcceptsReferralAfterAI,pAcceptsReferralAfterECP))) -> 0 | CD8: =CC8*(1-(pNaturalHistoryDRDOphthToVisionLoss)) -> 0 | CE8: =CC8*(pNaturalHistoryDRDOphthToVisionLoss) -> 0 | CF8: =BT8*(1-(IF(AAmodelAI=AAmodelAI,sensScreeningAI,sensScreeningECP))) -> 0 | CG8: =CF8*(1-(pNaturalHistoryDRDOphthToVisionLoss)) -> 0 | CH8: =CF8*(pNaturalHistoryDRDOphthToVisionLoss) -> 0 | CI8: =BS8*(1-(IF(AAmodelAI=AAmodelAI,pAcceptsScreeningAI,pAcceptsScreeningECP))) -> 0 | CJ8: =CI8*(1-(pNaturalHistoryDRDOphthToVisionLoss)) -> 0 | CK8: =CI8*(pNaturalHistoryDRDOphthToVisionLoss) -> 0 | CL8: =BR8*(INDEX(pDRDOphthalmicReferred_2,cycle+1)) -> 0.0088 | CM8: =CL8*(IF(AAmodelAI=AAmodelAI,pAcceptsReferralAfterAI,pAcceptsReferralAfterECP)) -> 0.0066 | CN8: =CM8*(1-((((1+rOddsIncAdherencetoOphthalmic)*pAdheringToMetabolicManagement)/(1+(pAdheringToMetabolicManagement*rOddsIncAdherencetoOphthalmic))))) -> 0.004864235842 | CO8: =CN8*(1-(pNaturalHistoryDRDOphthToVisionLoss)) -> 0.004499418154 | CP8: =CN8*(pNaturalHistoryDRDOphthToVisionLoss) -> 0.0003648176881 | CQ8: =CM8*((((1+rOddsIncAdherencetoOphthalmic)*pAdheringToMetabolicManagement)/(1+(pAdheringToMetabolicManagement*rOddsIncAdherencetoOphthalmic)))) -> 0.001735764158 | CR8: =CQ8*(1-(pTreatedDRDOphthalmicToVisionLoss)) -> 0.001701048875 | CS8: =CQ8*(pTreatedDRDOphthalmicToVisionLoss) -> 3.471528317e-05 | CT8: =CL8*(1-(IF(AAmodelAI=AAmodelAI,pAcceptsReferralAfterAI,pAcceptsReferralAfterECP))) -> 0.0022 | CU8: =CT8*(1-(pNaturalHistoryDRDOphthToVisionLoss)) -> 0.002035 | CV8: =CT8*(pNaturalHistoryDRDOphthToVisionLoss) -> 0.000165 | CW8: ='2. Strategy Calcs'!H8 -> 0 | CX8: =CW8*((((1+rOddsIncAdherencetoOphthalmic)*pAdheringToMetabolicManagement)/(1+(pAdheringToMetabolicManagement*rOddsIncAdherencetoOphthalmic)))) -> 0 | CY8: =CX8*(1-(pTreatedDRDOphthalmicToVisionLoss)) -> 0 | CZ8: =CX8*(pTreatedDRDOphthalmicToVisionLoss) -> 0 | DA8: =CW8*(1-((((1+rOddsIncAdherencetoOphthalmic)*pAdheringToMetabolicManagement)/(1+(pAdheringToMetabolicManagement*rOddsIncAdherencetoOphthalmic))))) -> 0 | DB8: =DA8*(1-(pNaturalHistoryDRDOphthToVisionLoss)) -> 0 | DC8: =DA8*(pNaturalHistoryDRDOphthToVisionLoss) -> 0 | DD8: ='2. Strategy Calcs'!I8 -> 0.01 | DE8: =DD8*(pDRDVisionLossAcceptsReferral) -> 0.0058 | DF8: =DE8*((((1+rOddsIncAdherencetoVisionLoss)*(((1+rOddsIncAdherencetoOphthalmic)*pAdheringToMetabolicManagement)/(1+(pAdheringToMetabolicManagement*rOddsIncAdherencetoOphthalmic))))/(1+((((1+rOddsIncAdherencetoOphthalmic)*pAdheringToMetabolicManagement)/(1+(pAdheringToMetabolicManagement*rOddsIncAdherencetoOphthalmic)))*rOddsIncAdherencetoVisionLoss)))) -> 0.002394203346 | DG8: =DF8*(1-(pTreatedDRDVisionlossToVisionLossIrreversible)) -> 0.002312800433 | DH8: =DF8*(pTreatedDRDVisionlossToVisionLossIrreversible) -> 8.140291378e-05 | DI8: =DE8*(1-((((1+rOddsIncAdherencetoVisionLoss)*(((1+rOddsIncAdherencetoOphthalmic)*pAdheringToMetabolicManagement)/(1+(pAdheringToMetabolicManagement*rOddsIncAdherencetoOphthalmic))))/(1+((((1+rOddsIncAdherencetoOphthalmic)*pAdheringToMetabolicManagement)/(1+(pAdheringToMetabolicManagement*rOddsIncAdherencetoOphthalmic)))*rOddsIncAdherencetoVisionLoss))))) -> 0.003405796654 | DJ8: =DI8*(1-(pNaturalHistoryVisionLossToVisionLossIrreversible)) -> 0.002145651892 | DK8: =DI8*(pNaturalHistoryVisionLossToVisionLossIrreversible) -> 0.001260144762 | DL8: =DD8*(1-(pDRDVisionLossAcceptsReferral)) -> 0.0042 | DM8: =DL8*(1-(pNaturalHistoryVisionLossToVisionLossIrreversible)) -> 0.002646 | DN8: =DL8*(pNaturalHistoryVisionLossToVisionLossIrreversible) -> 0.001554 | DO8: =0 -> 0 | DP8: ='2. Strategy Calcs'!J8 -> 0 | DQ8: =DP8*((((1+rOddsIncAdherencetoVisionLoss)*(((1+rOddsIncAdherencetoOphthalmic)*pAdheringToMetabolicManagement)/(1+(pAdheringToMetabolicManagement*rOddsIncAdherencetoOphthalmic))))/(1+((((1+rOddsIncAdherencetoOphthalmic)*pAdheringToMetabolicManagement)/(1+(pAdheringToMetabolicManagement*rOddsIncAdherencetoOphthalmic)))*rOddsIncAdherencetoVisionLoss)))) -> 0 | DR8: =DQ8*(1-(pTreatedDRDVisionlossToVisionLossIrreversible)) -> 0 | DS8: =DQ8*(pTreatedDRDVisionlossToVisionLossIrreversible) -> 0 | DT8: =DP8*(1-((((1+rOddsIncAdherencetoVisionLoss)*(((1+rOddsIncAdherencetoOphthalmic)*pAdheringToMetabolicManagement)/(1+(pAdheringToMetabolicManagement*rOddsIncAdherencetoOphthalmic))))/(1+((((1+rOddsIncAdherencetoOphthalmic)*pAdheringToMetabolicManagement)/(1+(pAdheringToMetabolicManagement*rOddsIncAdherencetoOphthalmic)))*rOddsIncAdherencetoVisionLoss))))) -> 0 | DU8: =DT8*(1-(pNaturalHistoryVisionLossToVisionLossIrreversible)) -> 0 | DV8: =DT8*(pNaturalHistoryVisionLossToVisionLossIrreversible) -> 0 | DW8: =0 -> 0 | DX8: ='2. Strategy Calcs'!K8 -> 0 | DY8: =0 -> 0 | EA8: =IF(cycle=0,1,0) -> 1 | EB8: 1
B9: 1 | D9: ='2. Strategy Calcs'!Q9 -> 0.72314 | E9: ='2. Strategy Calcs'!AF9 -> 0.214852 | F9: ='2. Strategy Calcs'!BK9 -> 0.039204 | G9: ='2. Strategy Calcs'!BR9 -> 0.01014241815 | H9: ='2. Strategy Calcs'!CW9 -> 0.002097048875 | I9: ='2. Strategy Calcs'!DD9 -> 0.00532146958 | J9: ='2. Strategy Calcs'!DP9 -> 0.002347515716 | K9: ='2. Strategy Calcs'!DX9 -> 0.002895547676 | L9: ='2. Strategy Calcs'!DO9 + '2. Strategy Calcs'!DW9 + '2. Strategy Calcs'!DY9 -> 0 | M9: =M8 + L9 -> 0 | O9: 1 | Q9: =0 + U8 + X8 + AA8 + AD8 -> 0.72314 | R9: =Q9*(IF(AAmodelAI=AAmodelAI,pAcceptsScreeningAI,pAcceptsScreeningECP)) -> 0.686983 | S9: =R9*(1-(IF(AAmodelAI=AAmodelAI,specScreeningAI,specScreeningECP))) -> 0.06182847 | T9: =S9*(IF(AAmodelAI=AAmodelAI,pAcceptsReferralAfterAI,pAcceptsReferralAfterECP)) -> 0.0463713525 | U9: =T9*(1-(pNaturalHistoryToDRDMetabolic)) -> 0.04405278487 | V9: =T9*(pNaturalHistoryToDRDMetabolic) -> 0.002318567625 | W9: =S9*(1-(IF(AAmodelAI=AAmodelAI,pAcceptsReferralAfterAI,pAcceptsReferralAfterECP))) -> 0.0154571175 | X9: =W9*(1-(pNaturalHistoryToDRDMetabolic)) -> 0.01468426162 | Y9: =W9*(pNaturalHistoryToDRDMetabolic) -> 0.000772855875 | Z9: =R9*(IF(AAmodelAI=AAmodelAI,specScreeningAI,specScreeningECP)) -> 0.62515453 | AA9: =Z9*(1-(pNaturalHistoryToDRDMetabolic)) -> 0.5938968035 | AB9: =Z9*(pNaturalHistoryToDRDMetabolic) -> 0.0312577265 | AC9: =Q9*(1-(IF(AAmodelAI=AAmodelAI,pAcceptsScreeningAI,pAcceptsScreeningECP))) -> 0.036157 | AD9: =AC9*(1-(pNaturalHistoryToDRDMetabolic)) -> 0.03434915 | AE9: =AC9*(pNaturalHistoryToDRDMetabolic) -> 0.00180785 | AF9: =0 + '2. Strategy Calcs'!V8 + '2. Strategy Calcs'!Y8 + '2. Strategy Calcs'!AB8 + '2. Strategy Calcs'!AE8 + AL8 + AR8 + AU8 + AX8 + BC8 + BI8 + '2. Strategy Calcs'!BP8 -> 0.214852 | AG9: =AF9*(1-(INDEX(pDRDMetabolicReferred_2,cycle+1))) -> 0.214852 | AH9: =AG9*(IF(AAmodelAI=AAmodelAI,pAcceptsScreeningAI,pAcceptsScreeningECP)) -> 0.2041094 | AI9: =AH9*(IF(AAmodelAI=AAmodelAI,sensScreeningAI,sensScreeningECP)) -> 0.177575178 | AJ9: =AI9*(IF(AAmodelAI=AAmodelAI,pAcceptsReferralAfterAI,pAcceptsReferralAfterECP)) -> 0.1331813835 | AK9: =AJ9*(1-(pAdheringToMetabolicManagement)) -> 0.1012178515 | AL9: =AK9*(1-(pNaturalHistoryDRDMetabolicToOphth)) -> 0.09919349443 | AM9: =AK9*(pNaturalHistoryDRDMetabolicToOphth) -> 0.002024357029 | AN9: =AJ9*(pAdheringToMetabolicManagement) -> 0.03196353204 | AO9: =AN9*(1-(pTreatedDRDMetabolicToOphth)) -> 0.03164389672 | AP9: =AN9*(pTreatedDRDMetabolicToOphth) -> 0.0003196353204 | AQ9: =AI9*(1-(IF(AAmodelAI=AAmodelAI,pAcceptsReferralAfterAI,pAcceptsReferralAfterECP))) -> 0.0443937945 | AR9: =AQ9*(1-(pNaturalHistoryDRDMetabolicToOphth)) -> 0.04350591861 | AS9: =AQ9*(pNaturalHistoryDRDMetabolicToOphth) -> 0.00088787589 | AT9: =AH9*(1-(IF(AAmodelAI=AAmodelAI,sensScreeningAI,sensScreeningECP))) -> 0.026534222 | AU9: =AT9*(1-(pNaturalHistoryDRDMetabolicToOphth)) -> 0.02600353756 | AV9: =AT9*(pNaturalHistoryDRDMetabolicToOphth) -> 0.00053068444 | AW9: =AG9*(1-(IF(AAmodelAI=AAmodelAI,pAcceptsScreeningAI,pAcceptsScreeningECP))) -> 0.0107426 | AX9: =AW9*(1-(pNaturalHistoryDRDMetabolicToOphth)) -> 0.010527748 | AY9: =AW9*(pNaturalHistoryDRDMetabolicToOphth) -> 0.000214852 | AZ9: =AF9*(INDEX(pDRDMetabolicReferred_2,cycle+1)) -> 0 | BA9: =AZ9*(IF(AAmodelAI=AAmodelAI,pAcceptsReferralAfterAI,pAcceptsReferralAfterECP)) -> 0 | BB9: =BA9*(1-(pAdheringToMetabolicManagement)) -> 0 | BC9: =BB9*(1-(pNaturalHistoryDRDMetabolicToOphth)) -> 0 | BD9: =BB9*(pNaturalHistoryDRDMetabolicToOphth) -> 0 | BE9: =BA9*(pAdheringToMetabolicManagement) -> 0 | BF9: =BE9*(1-(pTreatedDRDMetabolicToOphth)) -> 0 | BG9: =BE9*(pTreatedDRDMetabolicToOphth) -> 0 | BH9: =AZ9*(1-(IF(AAmodelAI=AAmodelAI,pAcceptsReferralAfterAI,pAcceptsReferralAfterECP))) -> 0 | BI9: =BH9*(1-(pNaturalHistoryDRDMetabolicToOphth)) -> 0 | BJ9: =BH9*(pNaturalHistoryDRDMetabolicToOphth) -> 0 | BK9: =0 + '2. Strategy Calcs'!AO8 + '2. Strategy Calcs'!BF8 + BM8 -> 0.039204 | BL9: =BK9*(pAdheringToMetabolicManagement) -> 0.00940896 | BM9: =BL9*(1-(pTreatedDRDMetabolicToOphth)) -> 0.0093148704 | BN9: =BL9*(pTreatedDRDMetabolicToOphth) -> 9.40896e-05 | BO9: =BK9*(1-(pAdheringToMetabolicManagement)) -> 0.02979504 | BP9: =BO9*(1-(pNaturalHistoryDRDMetabolicToOphth)) -> 0.0291991392 | BQ9: =BO9*(pNaturalHistoryDRDMetabolicToOphth) -> 0.0005959008 | BR9: =0 + '2. Strategy Calcs'!AM8 + '2. Strategy Calcs'!AS8 + '2. Strategy Calcs'!AV8 + '2. Strategy Calcs'!AY8 + '2. Strategy Calcs'!BD8 + '2. Strategy Calcs'!BJ8 + '2. Strategy Calcs'!BQ8 + BX8 + CD8 + CG8 + CJ8 + CO8 + CU8 + '2. Strategy Calcs'!DB8 -> 0.01014241815 | BS9: =BR9*(1-(INDEX(pDRDOphthalmicReferred_2,cycle+1))) -> 0.01014241815 | BT9: =BS9*(IF(AAmodelAI=AAmodelAI,pAcceptsScreeningAI,pAcceptsScreeningECP)) -> 0.009635297246 | BU9: =BT9*(IF(AAmodelAI=AAmodelAI,sensScreeningAI,sensScreeningECP)) -> 0.008382708604 | BV9: =BU9*(IF(AAmodelAI=AAmodelAI,pAcceptsReferralAfterAI,pAcceptsReferralAfterECP)) -> 0.006287031453 | BW9: =BV9*(1-((((1+rOddsIncAdherencetoOphthalmic)*pAdheringToMetabolicManagement)/(1+(pAdheringToMetabolicManagement*rOddsIncAdherencetoOphthalmic))))) -> 0.004633576323 | BX9: =BW9*(1-(pNaturalHistoryDRDOphthToVisionLoss)) -> 0.004286058099 | BY9: =BW9*(pNaturalHistoryDRDOphthToVisionLoss) -> 0.0003475182242 | BZ9: =BV9*((((1+rOddsIncAdherencetoOphthalmic)*pAdheringToMetabolicManagement)/(1+(pAdheringToMetabolicManagement*rOddsIncAdherencetoOphthalmic)))) -> 0.00165345513 | CA9: =BZ9*(1-(pTreatedDRDOphthalmicToVisionLoss)) -> 0.001620386027 | CB9: =BZ9*(pTreatedDRDOphthalmicToVisionLoss) -> 3.30691026e-05 | CC9: =BU9*(1-(IF(AAmodelAI=AAmodelAI,pAcceptsReferralAfterAI,pAcceptsReferralAfterECP))) -> 0.002095677151 | CD9: =CC9*(1-(pNaturalHistoryDRDOphthToVisionLoss)) -> 0.001938501365 | CE9: =CC9*(pNaturalHistoryDRDOphthToVisionLoss) -> 0.0001571757863 | CF9: =BT9*(1-(IF(AAmodelAI=AAmodelAI,sensScreeningAI,sensScreeningECP))) -> 0.001252588642 | CG9: =CF9*(1-(pNaturalHistoryDRDOphthToVisionLoss)) -> 0.001158644494 | CH9: =CF9*(pNaturalHistoryDRDOphthToVisionLoss) -> 9.394414815e-05 | CI9: =BS9*(1-(IF(AAmodelAI=AAmodelAI,pAcceptsScreeningAI,pAcceptsScreeningECP))) -> 0.0005071209077 | CJ9: =CI9*(1-(pNaturalHistoryDRDOphthToVisionLoss)) -> 0.0004690868396 | CK9: =CI9*(pNaturalHistoryDRDOphthToVisionLoss) -> 3.803406808e-05 | CL9: =BR9*(INDEX(pDRDOphthalmicReferred_2,cycle+1)) -> 0 | CM9: =CL9*(IF(AAmodelAI=AAmodelAI,pAcceptsReferralAfterAI,pAcceptsReferralAfterECP)) -> 0 | CN9: =CM9*(1-((((1+rOddsIncAdherencetoOphthalmic)*pAdheringToMetabolicManagement)/(1+(pAdheringToMetabolicManagement*rOddsIncAdherencetoOphthalmic))))) -> 0 | CO9: =CN9*(1-(pNaturalHistoryDRDOphthToVisionLoss)) -> 0 | CP9: =CN9*(pNaturalHistoryDRDOphthToVisionLoss) -> 0 | CQ9: =CM9*((((1+rOddsIncAdherencetoOphthalmic)*pAdheringToMetabolicManagement)/(1+(pAdheringToMetabolicManagement*rOddsIncAdherencetoOphthalmic)))) -> 0 | CR9: =CQ9*(1-(pTreatedDRDOphthalmicToVisionLoss)) -> 0 | CS9: =CQ9*(pTreatedDRDOphthalmicToVisionLoss) -> 0 | CT9: =CL9*(1-(IF(AAmodelAI=AAmodelAI,pAcceptsReferralAfterAI,pAcceptsReferralAfterECP))) -> 0 | CU9: =CT9*(1-(pNaturalHistoryDRDOphthToVisionLoss)) -> 0 | CV9: =CT9*(pNaturalHistoryDRDOphthToVisionLoss) -> 0 | CW9: =0 + '2. Strategy Calcs'!AP8 + '2. Strategy Calcs'!BG8 + '2. Strategy Calcs'!BN8 + '2. Strategy Calcs'!CA8 + '2. Strategy Calcs'!CR8 + CY8 -> 0.002097048875 | CX9: =CW9*((((1+rOddsIncAdherencetoOphthalmic)*pAdheringToMetabolicManagement)/(1+(pAdheringToMetabolicManagement*rOddsIncAdherencetoOphthalmic)))) -> 0.000551512466 | CY9: =CX9*(1-(pTreatedDRDOphthalmicToVisionLoss)) -> 0.0005404822167 | CZ9: =CX9*(pTreatedDRDOphthalmicToVisionLoss) -> 1.103024932e-05 | DA9: =CW9*(1-((((1+rOddsIncAdherencetoOphthalmic)*pAdheringToMetabolicManagement)/(1+(pAdheringToMetabolicManagement*rOddsIncAdherencetoOphthalmic))))) -> 0.001545536409 | DB9: =DA9*(1-(pNaturalHistoryDRDOphthToVisionLoss)) -> 0.001429621178 | DC9: =DA9*(pNaturalHistoryDRDOphthToVisionLoss) -> 0.0001159152307 | DD9: =0 + '2. Strategy Calcs'!BY8 + '2. Strategy Calcs'!CE8 + '2. Strategy Calcs'!CH8 + '2. Strategy Calcs'!CK8 + '2. Strategy Calcs'!CP8 + '2. Strategy Calcs'!CV8 + '2. Strategy Calcs'!DC8 + DJ8 + DM8 + '2. Strategy Calcs'!DU8 -> 0.00532146958 | DE9: =DD9*(pDRDVisionLossAcceptsReferral) -> 0.003086452356 | DF9: =DE9*((((1+rOddsIncAdherencetoVisionLoss)*(((1+rOddsIncAdherencetoOphthalmic)*pAdheringToMetabolicManagement)/(1+(pAdheringToMetabolicManagement*rOddsIncAdherencetoOphthalmic))))/(1+((((1+rOddsIncAdherencetoOphthalmic)*pAdheringToMetabolicManagement)/(1+(pAdheringToMetabolicManagement*rOddsIncAdherencetoOphthalmic)))*rOddsIncAdherencetoVisionLoss)))) -> 0.001274068028 | DG9: =DF9*(1-(pTreatedDRDVisionlossToVisionLossIrreversible)) -> 0.001230749715 | DH9: =DF9*(pTreatedDRDVisionlossToVisionLossIrreversible) -> 4.331831294e-05 | DI9: =DE9*(1-((((1+rOddsIncAdherencetoVisionLoss)*(((1+rOddsIncAdherencetoOphthalmic)*pAdheringToMetabolicManagement)/(1+(pAdheringToMetabolicManagement*rOddsIncAdherencetoOphthalmic))))/(1+((((1+rOddsIncAdherencetoOphthalmic)*pAdheringToMetabolicManagement)/(1+(pAdheringToMetabolicManagement*rOddsIncAdherencetoOphthalmic)))*rOddsIncAdherencetoVisionLoss))))) -> 0.001812384329 | DJ9: =DI9*(1-(pNaturalHistoryVisionLossToVisionLossIrreversible)) -> 0.001141802127 | DK9: =DI9*(pNaturalHistoryVisionLossToVisionLossIrreversible) -> 0.0006705822016 | DL9: =DD9*(1-(pDRDVisionLossAcceptsReferral)) -> 0.002235017224 | DM9: =DL9*(1-(pNaturalHistoryVisionLossToVisionLossIrreversible)) -> 0.001408060851 | DN9: =DL9*(pNaturalHistoryVisionLossToVisionLossIrreversible) -> 0.0008269563727 | DO9: =0 -> 0 | DP9: =0 + '2. Strategy Calcs'!CB8 + '2. Strategy Calcs'!CS8 + '2. Strategy Calcs'!CZ8 + '2. Strategy Calcs'!DG8 + DR8 -> 0.002347515716 | DQ9: =DP9*((((1+rOddsIncAdherencetoVisionLoss)*(((1+rOddsIncAdherencetoOphthalmic)*pAdheringToMetabolicManagement)/(1+(pAdheringToMetabolicManagement*rOddsIncAdherencetoOphthalmic))))/(1+((((1+rOddsIncAdherencetoOphthalmic)*pAdheringToMetabolicManagement)/(1+(pAdheringToMetabolicManagement*rOddsIncAdherencetoOphthalmic)))*rOddsIncAdherencetoVisionLoss)))) -> 0.0009690396522 | DR9: =DQ9*(1-(pTreatedDRDVisionlossToVisionLossIrreversible)) -> 0.000936092304 | DS9: =DQ9*(pTreatedDRDVisionlossToVisionLossIrreversible) -> 3.294734817e-05 | DT9: =DP9*(1-((((1+rOddsIncAdherencetoVisionLoss)*(((1+rOddsIncAdherencetoOphthalmic)*pAdheringToMetabolicManagement)/(1+(pAdheringToMetabolicManagement*rOddsIncAdherencetoOphthalmic))))/(1+((((1+rOddsIncAdherencetoOphthalmic)*pAdheringToMetabolicManagement)/(1+(pAdheringToMetabolicManagement*rOddsIncAdherencetoOphthalmic)))*rOddsIncAdherencetoVisionLoss))))) -> 0.001378476064 | DU9: =DT9*(1-(pNaturalHistoryVisionLossToVisionLossIrreversible)) -> 0.0008684399201 | DV9: =DT9*(pNaturalHistoryVisionLossToVisionLossIrreversible) -> 0.0005100361435 | DW9: =0 -> 0 | DX9: =0 + '2. Strategy Calcs'!DH8 + '2. Strategy Calcs'!DK8 + '2. Strategy Calcs'!DN8 + '2. Strategy Calcs'!DS8 + '2. Strategy Calcs'!DV8 + DX8 -> 0.002895547676 | DY9: =0 -> 0 | EA9: 0 | EB9: 0
B10: 2 | D10: ='2. Strategy Calcs'!Q10 -> 0.686983 | E10: ='2. Strategy Calcs'!AF10 -> 0.2445868378 | F10: ='2. Strategy Calcs'!BK10 -> 0.04095876712 | G10: ='2. Strategy Calcs'!BR10 -> 0.01353558213 | H10: ='2. Strategy Calcs'!CW10 -> 0.002574593164 | I10: ='2. Strategy Calcs'!DD10 -> 0.004170890355 | J10: ='2. Strategy Calcs'!DP10 -> 0.002210941371 | K10: ='2. Strategy Calcs'!DX10 -> 0.004979388055 | L10: ='2. Strategy Calcs'!DO10 + '2. Strategy Calcs'!DW10 + '2. Strategy Calcs'!DY10 -> 0 | M10: =M9 + L10 -> 0 | O10: 1 | Q10: =0 + U9 + X9 + AA9 + AD9 -> 0.686983 | R10: =Q10*(IF(AAmodelAI=AAmodelAI,pAcceptsScreeningAI,pAcceptsScreeningECP)) -> 0.65263385 | S10: =R10*(1-(IF(AAmodelAI=AAmodelAI,specScreeningAI,specScreeningECP))) -> 0.0587370465 | T10: =S10*(IF(AAmodelAI=AAmodelAI,pAcceptsReferralAfterAI,pAcceptsReferralAfterECP)) -> 0.04405278487 | U10: =T10*(1-(pNaturalHistoryToDRDMetabolic)) -> 0.04185014563 | V10: =T10*(pNaturalHistoryToDRDMetabolic) -> 0.002202639244 | W10: =S10*(1-(IF(AAmodelAI=AAmodelAI,pAcceptsReferralAfterAI,pAcceptsReferralAfterECP))) -> 0.01468426162 | X10: =W10*(1-(pNaturalHistoryToDRDMetabolic)) -> 0.01395004854 | Y10: =W10*(pNaturalHistoryToDRDMetabolic) -> 0.0007342130812 | Z10: =R10*(IF(AAmodelAI=AAmodelAI,specScreeningAI,specScreeningECP)) -> 0.5938968035 | AA10: =Z10*(1-(pNaturalHistoryToDRDMetabolic)) -> 0.5642019633 | AB10: =Z10*(pNaturalHistoryToDRDMetabolic) -> 0.02969484017 | AC10: =Q10*(1-(IF(AAmodelAI=AAmodelAI,pAcceptsScreeningAI,pAcceptsScreeningECP))) -> 0.03434915 | AD10: =AC10*(1-(pNaturalHistoryToDRDMetabolic)) -> 0.0326316925 | AE10: =AC10*(pNaturalHistoryToDRDMetabolic) -> 0.0017174575 | AF10: =0 + '2. Strategy Calcs'!V9 + '2. Strategy Calcs'!Y9 + '2. Strategy Calcs'!AB9 + '2. Strategy Calcs'!AE9 + AL9 + AR9 + AU9 + AX9 + BC9 + BI9 + '2. Strategy Calcs'!BP9 -> 0.2445868378 | AG10: =AF10*(1-(INDEX(pDRDMetabolicReferred_2,cycle+1))) -> 0.2445868378 | AH10: =AG10*(IF(AAmodelAI=AAmodelAI,pAcceptsScreeningAI,pAcceptsScreeningECP)) -> 0.2323574959 | AI10: =AH10*(IF(AAmodelAI=AAmodelAI,sensScreeningAI,sensScreeningECP)) -> 0.2021510214 | AJ10: =AI10*(IF(AAmodelAI=AAmodelAI,pAcceptsReferralAfterAI,pAcceptsReferralAfterECP)) -> 0.1516132661 | AK10: =AJ10*(1-(pAdheringToMetabolicManagement)) -> 0.1152260822 | AL10: =AK10*(1-(pNaturalHistoryDRDMetabolicToOphth)) -> 0.1129215606 | AM10: =AK10*(pNaturalHistoryDRDMetabolicToOphth) -> 0.002304521644 | AN10: =AJ10*(pAdheringToMetabolicManagement) -> 0.03638718386 | AO10: =AN10*(1-(pTreatedDRDMetabolicToOphth)) -> 0.03602331202 | AP10: =AN10*(pTreatedDRDMetabolicToOphth) -> 0.0003638718386 | AQ10: =AI10*(1-(IF(AAmodelAI=AAmodelAI,pAcceptsReferralAfterAI,pAcceptsReferralAfterECP))) -> 0.05053775536 | AR10: =AQ10*(1-(pNaturalHistoryDRDMetabolicToOphth)) -> 0.04952700025 | AS10: =AQ10*(pNaturalHistoryDRDMetabolicToOphth) -> 0.001010755107 | AT10: =AH10*(1-(IF(AAmodelAI=AAmodelAI,sensScreeningAI,sensScreeningECP))) -> 0.03020647447 | AU10: =AT10*(1-(pNaturalHistoryDRDMetabolicToOphth)) -> 0.02960234498 | AV10: =AT10*(pNaturalHistoryDRDMetabolicToOphth) -> 0.0006041294894 | AW10: =AG10*(1-(IF(AAmodelAI=AAmodelAI,pAcceptsScreeningAI,pAcceptsScreeningECP))) -> 0.01222934189 | AX10: =AW10*(1-(pNaturalHistoryDRDMetabolicToOphth)) -> 0.01198475505 | AY10: =AW10*(pNaturalHistoryDRDMetabolicToOphth) -> 0.0002445868378 | AZ10: =AF10*(INDEX(pDRDMetabolicReferred_2,cycle+1)) -> 0 | BA10: =AZ10*(IF(AAmodelAI=AAmodelAI,pAcceptsReferralAfterAI,pAcceptsReferralAfterECP)) -> 0 | BB10: =BA10*(1-(pAdheringToMetabolicManagement)) -> 0 | BC10: =BB10*(1-(pNaturalHistoryDRDMetabolicToOphth)) -> 0 | BD10: =BB10*(pNaturalHistoryDRDMetabolicToOphth) -> 0 | BE10: =BA10*(pAdheringToMetabolicManagement) -> 0 | BF10: =BE10*(1-(pTreatedDRDMetabolicToOphth)) -> 0 | BG10: =BE10*(pTreatedDRDMetabolicToOphth) -> 0 | BH10: =AZ10*(1-(IF(AAmodelAI=AAmodelAI,pAcceptsReferralAfterAI,pAcceptsReferralAfterECP))) -> 0 | BI10: =BH10*(1-(pNaturalHistoryDRDMetabolicToOphth)) -> 0 | BJ10: =BH10*(pNaturalHistoryDRDMetabolicToOphth) -> 0 | BK10: =0 + '2. Strategy Calcs'!AO9 + '2. Strategy Calcs'!BF9 + BM9 -> 0.04095876712 | BL10: =BK10*(pAdheringToMetabolicManagement) -> 0.009830104109 | BM10: =BL10*(1-(pTreatedDRDMetabolicToOphth)) -> 0.009731803068 | BN10: =BL10*(pTreatedDRDMetabolicToOphth) -> 9.830104109e-05 | BO10: =BK10*(1-(pAdheringToMetabolicManagement)) -> 0.03112866301 | BP10: =BO10*(1-(pNaturalHistoryDRDMetabolicToOphth)) -> 0.03050608975 | BQ10: =BO10*(pNaturalHistoryDRDMetabolicToOphth) -> 0.0006225732602 | BR10: =0 + '2. Strategy Calcs'!AM9 + '2. Strategy Calcs'!AS9 + '2. Strategy Calcs'!AV9 + '2. Strategy Calcs'!AY9 + '2. Strategy Calcs'!BD9 + '2. Strategy Calcs'!BJ9 + '2. Strategy Calcs'!BQ9 + BX9 + CD9 + CG9 + CJ9 + CO9 + CU9 + '2. Strategy Calcs'!DB9 -> 0.01353558213 | BS10: =BR10*(1-(INDEX(pDRDOphthalmicReferred_2,cycle+1))) -> 0.01353558213 | BT10: =BS10*(IF(AAmodelAI=AAmodelAI,pAcceptsScreeningAI,pAcceptsScreeningECP)) -> 0.01285880303 | BU10: =BT10*(IF(AAmodelAI=AAmodelAI,sensScreeningAI,sensScreeningECP)) -> 0.01118715863 | BV10: =BU10*(IF(AAmodelAI=AAmodelAI,pAcceptsReferralAfterAI,pAcceptsReferralAfterECP)) -> 0.008390368976 | BW10: =BV10*(1-((((1+rOddsIncAdherencetoOphthalmic)*pAdheringToMetabolicManagement)/(1+(pAdheringToMetabolicManagement*rOddsIncAdherencetoOphthalmic))))) -> 0.006183747499 | BX10: =BW10*(1-(pNaturalHistoryDRDOphthToVisionLoss)) -> 0.005719966437 | BY10: =BW10*(pNaturalHistoryDRDOphthToVisionLoss) -> 0.0004637810625 | BZ10: =BV10*((((1+rOddsIncAdherencetoOphthalmic)*pAdheringToMetabolicManagement)/(1+(pAdheringToMetabolicManagement*rOddsIncAdherencetoOphthalmic)))) -> 0.002206621476 | CA10: =BZ10*(1-(pTreatedDRDOphthalmicToVisionLoss)) -> 0.002162489047 | CB10: =BZ10*(pTreatedDRDOphthalmicToVisionLoss) -> 4.413242952e-05 | CC10: =BU10*(1-(IF(AAmodelAI=AAmodelAI,pAcceptsReferralAfterAI,pAcceptsReferralAfterECP))) -> 0.002796789659 | CD10: =CC10*(1-(pNaturalHistoryDRDOphthToVisionLoss)) -> 0.002587030434 | CE10: =CC10*(pNaturalHistoryDRDOphthToVisionLoss) -> 0.0002097592244 | CF10: =BT10*(1-(IF(AAmodelAI=AAmodelAI,sensScreeningAI,sensScreeningECP))) -> 0.001671644394 | CG10: =CF10*(1-(pNaturalHistoryDRDOphthToVisionLoss)) -> 0.001546271064 | CH10: =CF10*(pNaturalHistoryDRDOphthToVisionLoss) -> 0.0001253733295 | CI10: =BS10*(1-(IF(AAmodelAI=AAmodelAI,pAcceptsScreeningAI,pAcceptsScreeningECP))) -> 0.0006767791067 | CJ10: =CI10*(1-(pNaturalHistoryDRDOphthToVisionLoss)) -> 0.0006260206737 | CK10: =CI10*(pNaturalHistoryDRDOphthToVisionLoss) -> 5.0758433e-05 | CL10: =BR10*(INDEX(pDRDOphthalmicReferred_2,cycle+1)) -> 0 | CM10: =CL10*(IF(AAmodelAI=AAmodelAI,pAcceptsReferralAfterAI,pAcceptsReferralAfterECP)) -> 0 | CN10: =CM10*(1-((((1+rOddsIncAdherencetoOphthalmic)*pAdheringToMetabolicManagement)/(1+(pAdheringToMetabolicManagement*rOddsIncAdherencetoOphthalmic))))) -> 0 | CO10: =CN10*(1-(pNaturalHistoryDRDOphthToVisionLoss)) -> 0 | CP10: =CN10*(pNaturalHistoryDRDOphthToVisionLoss) -> 0 | CQ10: =CM10*((((1+rOddsIncAdherencetoOphthalmic)*pAdheringToMetabolicManagement)/(1+(pAdheringToMetabolicManagement*rOddsIncAdherencetoOphthalmic)))) -> 0 | CR10: =CQ10*(1-(pTreatedDRDOphthalmicToVisionLoss)) -> 0 | CS10: =CQ10*(pTreatedDRDOphthalmicToVisionLoss) -> 0 | CT10: =CL10*(1-(IF(AAmodelAI=AAmodelAI,pAcceptsReferralAfterAI,pAcceptsReferralAfterECP))) -> 0 | CU10: =CT10*(1-(pNaturalHistoryDRDOphthToVisionLoss)) -> 0 | CV10: =CT10*(pNaturalHistoryDRDOphthToVisionLoss) -> 0 | CW10: =0 + '2. Strategy Calcs'!AP9 + '2. Strategy Calcs'!BG9 + '2. Strategy Calcs'!BN9 + '2. Strategy Calcs'!CA9 + '2. Strategy Calcs'!CR9 + CY9 -> 0.002574593164 | CX10: =CW10*((((1+rOddsIncAdherencetoOphthalmic)*pAdheringToMetabolicManagement)/(1+(pAdheringToMetabolicManagement*rOddsIncAdherencetoOphthalmic)))) -> 0.0006771040208 | CY10: =CX10*(1-(pTreatedDRDOphthalmicToVisionLoss)) -> 0.0006635619403 | CZ10: =CX10*(pTreatedDRDOphthalmicToVisionLoss) -> 1.354208042e-05 | DA10: =CW10*(1-((((1+rOddsIncAdherencetoOphthalmic)*pAdheringToMetabolicManagement)/(1+(pAdheringToMetabolicManagement*rOddsIncAdherencetoOphthalmic))))) -> 0.001897489144 | DB10: =DA10*(1-(pNaturalHistoryDRDOphthToVisionLoss)) -> 0.001755177458 | DC10: =DA10*(pNaturalHistoryDRDOphthToVisionLoss) -> 0.0001423116858 | DD10: =0 + '2. Strategy Calcs'!BY9 + '2. Strategy Calcs'!CE9 + '2. Strategy Calcs'!CH9 + '2. Strategy Calcs'!CK9 + '2. Strategy Calcs'!CP9 + '2. Strategy Calcs'!CV9 + '2. Strategy Calcs'!DC9 + DJ9 + DM9 + '2. Strategy Calcs'!DU9 -> 0.004170890355 | DE10: =DD10*(pDRDVisionLossAcceptsReferral) -> 0.002419116406 | DF10: =DE10*((((1+rOddsIncAdherencetoVisionLoss)*(((1+rOddsIncAdherencetoOphthalmic)*pAdheringToMetabolicManagement)/(1+(pAdheringToMetabolicManagement*rOddsIncAdherencetoOphthalmic))))/(1+((((1+rOddsIncAdherencetoOphthalmic)*pAdheringToMetabolicManagement)/(1+(pAdheringToMetabolicManagement*rOddsIncAdherencetoOphthalmic)))*rOddsIncAdherencetoVisionLoss)))) -> 0.0009985959647 | DG10: =DF10*(1-(pTreatedDRDVisionlossToVisionLossIrreversible)) -> 0.0009646437019 | DH10: =DF10*(pTreatedDRDVisionlossToVisionLossIrreversible) -> 3.39522628e-05 | DI10: =DE10*(1-((((1+rOddsIncAdherencetoVisionLoss)*(((1+rOddsIncAdherencetoOphthalmic)*pAdheringToMetabolicManagement)/(1+(pAdheringToMetabolicManagement*rOddsIncAdherencetoOphthalmic))))/(1+((((1+rOddsIncAdherencetoOphthalmic)*pAdheringToMetabolicManagement)/(1+(pAdheringToMetabolicManagement*rOddsIncAdherencetoOphthalmic)))*rOddsIncAdherencetoVisionLoss))))) -> 0.001420520441 | DJ10: =DI10*(1-(pNaturalHistoryVisionLossToVisionLossIrreversible)) -> 0.0008949278781 | DK10: =DI10*(pNaturalHistoryVisionLossToVisionLossIrreversible) -> 0.0005255925634 | DL10: =DD10*(1-(pDRDVisionLossAcceptsReferral)) -> 0.001751773949 | DM10: =DL10*(1-(pNaturalHistoryVisionLossToVisionLossIrreversible)) -> 0.001103617588 | DN10: =DL10*(pNaturalHistoryVisionLossToVisionLossIrreversible) -> 0.0006481563612 | DO10: =0 -> 0 | DP10: =0 + '2. Strategy Calcs'!CB9 + '2. Strategy Calcs'!CS9 + '2. Strategy Calcs'!CZ9 + '2. Strategy Calcs'!DG9 + DR9 -> 0.002210941371 | DQ10: =DP10*((((1+rOddsIncAdherencetoVisionLoss)*(((1+rOddsIncAdherencetoOphthalmic)*pAdheringToMetabolicManagement)/(1+(pAdheringToMetabolicManagement*rOddsIncAdherencetoOphthalmic))))/(1+((((1+rOddsIncAdherencetoOphthalmic)*pAdheringToMetabolicManagement)/(1+(pAdheringToMetabolicManagement*rOddsIncAdherencetoOphthalmic)))*rOddsIncAdherencetoVisionLoss)))) -> 0.0009126626256 | DR10: =DQ10*(1-(pTreatedDRDVisionlossToVisionLossIrreversible)) -> 0.0008816320963 | DS10: =DQ10*(pTreatedDRDVisionlossToVisionLossIrreversible) -> 3.103052927e-05 | DT10: =DP10*(1-((((1+rOddsIncAdherencetoVisionLoss)*(((1+rOddsIncAdherencetoOphthalmic)*pAdheringToMetabolicManagement)/(1+(pAdheringToMetabolicManagement*rOddsIncAdherencetoOphthalmic))))/(1+((((1+rOddsIncAdherencetoOphthalmic)*pAdheringToMetabolicManagement)/(1+(pAdheringToMetabolicManagement*rOddsIncAdherencetoOphthalmic)))*rOddsIncAdherencetoVisionLoss))))) -> 0.001298278745 | DU10: =DT10*(1-(pNaturalHistoryVisionLossToVisionLossIrreversible)) -> 0.0008179156094 | DV10: =DT10*(pNaturalHistoryVisionLossToVisionLossIrreversible) -> 0.0004803631357 | DW10: =0 -> 0 | DX10: =0 + '2. Strategy Calcs'!DH9 + '2. Strategy Calcs'!DK9 + '2. Strategy Calcs'!DN9 + '2. Strategy Calcs'!DS9 + '2. Strategy Calcs'!DV9 + DX9 -> 0.004979388055 | DY10: =0 -> 0 | EA10: 0 | EB10: 0
B11: 3 | D11: ='2. Strategy Calcs'!Q11 -> 0.65263385 | E11: ='2. Strategy Calcs'!AF11 -> 0.2688909006 | F11: ='2. Strategy Calcs'!BK11 -> 0.04575511509 | G11: ='2. Strategy Calcs'!BR11 -> 0.01702103241 | H11: ='2. Strategy Calcs'!CW11 -> 0.003288223867 | I11: ='2. Strategy Calcs'!DD11 -> 0.003808444811 | J11: ='2. Strategy Calcs'!DP11 -> 0.001903950308 | K11: ='2. Strategy Calcs'!DX11 -> 0.006698482907 | L11: ='2. Strategy Calcs'!DO11 + '2. Strategy Calcs'!DW11 + '2. Strategy Calcs'!DY11 -> 0 | M11: =M10 + L11 -> 0 | O11: 1 | Q11: =0 + U10 + X10 + AA10 + AD10 -> 0.65263385 | R11: =Q11*(IF(AAmodelAI=AAmodelAI,pAcceptsScreeningAI,pAcceptsScreeningECP)) -> 0.6200021575 | S11: =R11*(1-(IF(AAmodelAI=AAmodelAI,specScreeningAI,specScreeningECP))) -> 0.05580019417 | T11: =S11*(IF(AAmodelAI=AAmodelAI,pAcceptsReferralAfterAI,pAcceptsReferralAfterECP)) -> 0.04185014563 | U11: =T11*(1-(pNaturalHistoryToDRDMetabolic)) -> 0.03975763835 | V11: =T11*(pNaturalHistoryToDRDMetabolic) -> 0.002092507282 | W11: =S11*(1-(IF(AAmodelAI=AAmodelAI,pAcceptsReferralAfterAI,pAcceptsReferralAfterECP))) -> 0.01395004854 | X11: =W11*(1-(pNaturalHistoryToDRDMetabolic)) -> 0.01325254612 | Y11: =W11*(pNaturalHistoryToDRDMetabolic) -> 0.0006975024272 | Z11: =R11*(IF(AAmodelAI=AAmodelAI,specScreeningAI,specScreeningECP)) -> 0.5642019633 | AA11: =Z11*(1-(pNaturalHistoryToDRDMetabolic)) -> 0.5359918652 | AB11: =Z11*(pNaturalHistoryToDRDMetabolic) -> 0.02821009817 | AC11: =Q11*(1-(IF(AAmodelAI=AAmodelAI,pAcceptsScreeningAI,pAcceptsScreeningECP))) -> 0.0326316925 | AD11: =AC11*(1-(pNaturalHistoryToDRDMetabolic)) -> 0.03100010788 | AE11: =AC11*(pNaturalHistoryToDRDMetabolic) -> 0.001631584625 | AF11: =0 + '2. Strategy Calcs'!V10 + '2. Strategy Calcs'!Y10 + '2. Strategy Calcs'!AB10 + '2. Strategy Calcs'!AE10 + AL10 + AR10 + AU10 + AX10 + BC10 + BI10 + '2. Strategy Calcs'!BP10 -> 0.2688909006 | AG11: =AF11*(1-(INDEX(pDRDMetabolicReferred_2,cycle+1))) -> 0.2688909006 | AH11: =AG11*(IF(AAmodelAI=AAmodelAI,pAcceptsScreeningAI,pAcceptsScreeningECP)) -> 0.2554463556 | AI11: =AH11*(IF(AAmodelAI=AAmodelAI,sensScreeningAI,sensScreeningECP)) -> 0.2222383294 | AJ11: =AI11*(IF(AAmodelAI=AAmodelAI,pAcceptsReferralAfterAI,pAcceptsReferralAfterECP)) -> 0.166678747 | AK11: =AJ11*(1-(pAdheringToMetabolicManagement)) -> 0.1266758477 | AL11: =AK11*(1-(pNaturalHistoryDRDMetabolicToOphth)) -> 0.1241423308 | AM11: =AK11*(pNaturalHistoryDRDMetabolicToOphth) -> 0.002533516955 | AN11: =AJ11*(pAdheringToMetabolicManagement) -> 0.04000289928 | AO11: =AN11*(1-(pTreatedDRDMetabolicToOphth)) -> 0.03960287029 | AP11: =AN11*(pTreatedDRDMetabolicToOphth) -> 0.0004000289928 | AQ11: =AI11*(1-(IF(AAmodelAI=AAmodelAI,pAcceptsReferralAfterAI,pAcceptsReferralAfterECP))) -> 0.05555958234 | AR11: =AQ11*(1-(pNaturalHistoryDRDMetabolicToOphth)) -> 0.05444839069 | AS11: =AQ11*(pNaturalHistoryDRDMetabolicToOphth) -> 0.001111191647 | AT11: =AH11*(1-(IF(AAmodelAI=AAmodelAI,sensScreeningAI,sensScreeningECP))) -> 0.03320802623 | AU11: =AT11*(1-(pNaturalHistoryDRDMetabolicToOphth)) -> 0.0325438657 | AV11: =AT11*(pNaturalHistoryDRDMetabolicToOphth) -> 0.0006641605245 | AW11: =AG11*(1-(IF(AAmodelAI=AAmodelAI,pAcceptsScreeningAI,pAcceptsScreeningECP))) -> 0.01344454503 | AX11: =AW11*(1-(pNaturalHistoryDRDMetabolicToOphth)) -> 0.01317565413 | AY11: =AW11*(pNaturalHistoryDRDMetabolicToOphth) -> 0.0002688909006 | AZ11: =AF11*(INDEX(pDRDMetabolicReferred_2,cycle+1)) -> 0 | BA11: =AZ11*(IF(AAmodelAI=AAmodelAI,pAcceptsReferralAfterAI,pAcceptsReferralAfterECP)) -> 0 | BB11: =BA11*(1-(pAdheringToMetabolicManagement)) -> 0 | BC11: =BB11*(1-(pNaturalHistoryDRDMetabolicToOphth)) -> 0 | BD11: =BB11*(pNaturalHistoryDRDMetabolicToOphth) -> 0 | BE11: =BA11*(pAdheringToMetabolicManagement) -> 0 | BF11: =BE11*(1-(pTreatedDRDMetabolicToOphth)) -> 0 | BG11: =BE11*(pTreatedDRDMetabolicToOphth) -> 0 | BH11: =AZ11*(1-(IF(AAmodelAI=AAmodelAI,pAcceptsReferralAfterAI,pAcceptsReferralAfterECP))) -> 0 | BI11: =BH11*(1-(pNaturalHistoryDRDMetabolicToOphth)) -> 0 | BJ11: =BH11*(pNaturalHistoryDRDMetabolicToOphth) -> 0 | BK11: =0 + '2. Strategy Calcs'!AO10 + '2. Strategy Calcs'!BF10 + BM10 -> 0.04575511509 | BL11: =BK11*(pAdheringToMetabolicManagement) -> 0.01098122762 | BM11: =BL11*(1-(pTreatedDRDMetabolicToOphth)) -> 0.01087141535 | BN11: =BL11*(pTreatedDRDMetabolicToOphth) -> 0.0001098122762 | BO11: =BK11*(1-(pAdheringToMetabolicManagement)) -> 0.03477388747 | BP11: =BO11*(1-(pNaturalHistoryDRDMetabolicToOphth)) -> 0.03407840972 | BQ11: =BO11*(pNaturalHistoryDRDMetabolicToOphth) -> 0.0006954777493 | BR11: =0 + '2. Strategy Calcs'!AM10 + '2. Strategy Calcs'!AS10 + '2. Strategy Calcs'!AV10 + '2. Strategy Calcs'!AY10 + '2. Strategy Calcs'!BD10 + '2. Strategy Calcs'!BJ10 + '2. Strategy Calcs'!BQ10 + BX10 + CD10 + CG10 + CJ10 + CO10 + CU10 + '2. Strategy Calcs'!DB10 -> 0.01702103241 | BS11: =BR11*(1-(INDEX(pDRDOphthalmicReferred_2,cycle+1))) -> 0.01702103241 | BT11: =BS11*(IF(AAmodelAI=AAmodelAI,pAcceptsScreeningAI,pAcceptsScreeningECP)) -> 0.01616998079 | BU11: =BT11*(IF(AAmodelAI=AAmodelAI,sensScreeningAI,sensScreeningECP)) -> 0.01406788328 | BV11: =BU11*(IF(AAmodelAI=AAmodelAI,pAcceptsReferralAfterAI,pAcceptsReferralAfterECP)) -> 0.01055091246 | BW11: =BV11*(1-((((1+rOddsIncAdherencetoOphthalmic)*pAdheringToMetabolicManagement)/(1+(pAdheringToMetabolicManagement*rOddsIncAdherencetoOphthalmic))))) -> 0.007776079782 | BX11: =BW11*(1-(pNaturalHistoryDRDOphthToVisionLoss)) -> 0.007192873799 | BY11: =BW11*(pNaturalHistoryDRDOphthToVisionLoss) -> 0.0005832059837 | BZ11: =BV11*((((1+rOddsIncAdherencetoOphthalmic)*pAdheringToMetabolicManagement)/(1+(pAdheringToMetabolicManagement*rOddsIncAdherencetoOphthalmic)))) -> 0.00277483268 | CA11: =BZ11*(1-(pTreatedDRDOphthalmicToVisionLoss)) -> 0.002719336027 | CB11: =BZ11*(pTreatedDRDOphthalmicToVisionLoss) -> 5.54966536e-05 | CC11: =BU11*(1-(IF(AAmodelAI=AAmodelAI,pAcceptsReferralAfterAI,pAcceptsReferralAfterECP))) -> 0.003516970821 | CD11: =CC11*(1-(pNaturalHistoryDRDOphthToVisionLoss)) -> 0.003253198009 | CE11: =CC11*(pNaturalHistoryDRDOphthToVisionLoss) -> 0.0002637728116 | CF11: =BT11*(1-(IF(AAmodelAI=AAmodelAI,sensScreeningAI,sensScreeningECP))) -> 0.002102097502 | CG11: =CF11*(1-(pNaturalHistoryDRDOphthToVisionLoss)) -> 0.001944440189 | CH11: =CF11*(pNaturalHistoryDRDOphthToVisionLoss) -> 0.0001576573127 | CI11: =BS11*(1-(IF(AAmodelAI=AAmodelAI,pAcceptsScreeningAI,pAcceptsScreeningECP))) -> 0.0008510516203 | CJ11: =CI11*(1-(pNaturalHistoryDRDOphthToVisionLoss)) -> 0.0007872227488 | CK11: =CI11*(pNaturalHistoryDRDOphthToVisionLoss) -> 6.382887152e-05 | CL11: =BR11*(INDEX(pDRDOphthalmicReferred_2,cycle+1)) -> 0 | CM11: =CL11*(IF(AAmodelAI=AAmodelAI,pAcceptsReferralAfterAI,pAcceptsReferralAfterECP)) -> 0 | CN11: =CM11*(1-((((1+rOddsIncAdherencetoOphthalmic)*pAdheringToMetabolicManagement)/(1+(pAdheringToMetabolicManagement*rOddsIncAdherencetoOphthalmic))))) -> 0 | CO11: =CN11*(1-(pNaturalHistoryDRDOphthToVisionLoss)) -> 0 | CP11: =CN11*(pNaturalHistoryDRDOphthToVisionLoss) -> 0 | CQ11: =CM11*((((1+rOddsIncAdherencetoOphthalmic)*pAdheringToMetabolicManagement)/(1+(pAdheringToMetabolicManagement*rOddsIncAdherencetoOphthalmic)))) -> 0 | CR11: =CQ11*(1-(pTreatedDRDOphthalmicToVisionLoss)) -> 0 | CS11: =CQ11*(pTreatedDRDOphthalmicToVisionLoss) -> 0 | CT11: =CL11*(1-(IF(AAmodelAI=AAmodelAI,pAcceptsReferralAfterAI,pAcceptsReferralAfterECP))) -> 0 | CU11: =CT11*(1-(pNaturalHistoryDRDOphthToVisionLoss)) -> 0 | CV11: =CT11*(pNaturalHistoryDRDOphthToVisionLoss) -> 0 | CW11: =0 + '2. Strategy Calcs'!AP10 + '2. Strategy Calcs'!BG10 + '2. Strategy Calcs'!BN10 + '2. Strategy Calcs'!CA10 + '2. Strategy Calcs'!CR10 + CY10 -> 0.003288223867 | CX11: =CW11*((((1+rOddsIncAdherencetoOphthalmic)*pAdheringToMetabolicManagement)/(1+(pAdheringToMetabolicManagement*rOddsIncAdherencetoOphthalmic)))) -> 0.00086478502 | CY11: =CX11*(1-(pTreatedDRDOphthalmicToVisionLoss)) -> 0.0008474893196 | CZ11: =CX11*(pTreatedDRDOphthalmicToVisionLoss) -> 1.72957004e-05 | DA11: =CW11*(1-((((1+rOddsIncAdherencetoOphthalmic)*pAdheringToMetabolicManagement)/(1+(pAdheringToMetabolicManagement*rOddsIncAdherencetoOphthalmic))))) -> 0.002423438847 | DB11: =DA11*(1-(pNaturalHistoryDRDOphthToVisionLoss)) -> 0.002241680933 | DC11: =DA11*(pNaturalHistoryDRDOphthToVisionLoss) -> 0.0001817579135 | DD11: =0 + '2. Strategy Calcs'!BY10 + '2. Strategy Calcs'!CE10 + '2. Strategy Calcs'!CH10 + '2. Strategy Calcs'!CK10 + '2. Strategy Calcs'!CP10 + '2. Strategy Calcs'!CV10 + '2. Strategy Calcs'!DC10 + DJ10 + DM10 + '2. Strategy Calcs'!DU10 -> 0.003808444811 | DE11: =DD11*(pDRDVisionLossAcceptsReferral) -> 0.00220889799 | DF11: =DE11*((((1+rOddsIncAdherencetoVisionLoss)*(((1+rOddsIncAdherencetoOphthalmic)*pAdheringToMetabolicManagement)/(1+(pAdheringToMetabolicManagement*rOddsIncAdherencetoOphthalmic))))/(1+((((1+rOddsIncAdherencetoOphthalmic)*pAdheringToMetabolicManagement)/(1+(pAdheringToMetabolicManagement*rOddsIncAdherencetoOphthalmic)))*rOddsIncAdherencetoVisionLoss)))) -> 0.0009118191311 | DG11: =DF11*(1-(pTreatedDRDVisionlossToVisionLossIrreversible)) -> 0.0008808172806 | DH11: =DF11*(pTreatedDRDVisionlossToVisionLossIrreversible) -> 3.100185046e-05 | DI11: =DE11*(1-((((1+rOddsIncAdherencetoVisionLoss)*(((1+rOddsIncAdherencetoOphthalmic)*pAdheringToMetabolicManagement)/(1+(pAdheringToMetabolicManagement*rOddsIncAdherencetoOphthalmic))))/(1+((((1+rOddsIncAdherencetoOphthalmic)*pAdheringToMetabolicManagement)/(1+(pAdheringToMetabolicManagement*rOddsIncAdherencetoOphthalmic)))*rOddsIncAdherencetoVisionLoss))))) -> 0.001297078859 | DJ11: =DI11*(1-(pNaturalHistoryVisionLossToVisionLossIrreversible)) -> 0.0008171596813 | DK11: =DI11*(pNaturalHistoryVisionLossToVisionLossIrreversible) -> 0.0004799191779 | DL11: =DD11*(1-(pDRDVisionLossAcceptsReferral)) -> 0.001599546821 | DM11: =DL11*(1-(pNaturalHistoryVisionLossToVisionLossIrreversible)) -> 0.001007714497 | DN11: =DL11*(pNaturalHistoryVisionLossToVisionLossIrreversible) -> 0.0005918323236 | DO11: =0 -> 0 | DP11: =0 + '2. Strategy Calcs'!CB10 + '2. Strategy Calcs'!CS10 + '2. Strategy Calcs'!CZ10 + '2. Strategy Calcs'!DG10 + DR10 -> 0.001903950308 | DQ11: =DP11*((((1+rOddsIncAdherencetoVisionLoss)*(((1+rOddsIncAdherencetoOphthalmic)*pAdheringToMetabolicManagement)/(1+(pAdheringToMetabolicManagement*rOddsIncAdherencetoOphthalmic))))/(1+((((1+rOddsIncAdherencetoOphthalmic)*pAdheringToMetabolicManagement)/(1+(pAdheringToMetabolicManagement*rOddsIncAdherencetoOphthalmic)))*rOddsIncAdherencetoVisionLoss)))) -> 0.000785938655 | DR11: =DQ11*(1-(pTreatedDRDVisionlossToVisionLossIrreversible)) -> 0.0007592167408 | DS11: =DQ11*(pTreatedDRDVisionlossToVisionLossIrreversible) -> 2.672191427e-05 | DT11: =DP11*(1-((((1+rOddsIncAdherencetoVisionLoss)*(((1+rOddsIncAdherencetoOphthalmic)*pAdheringToMetabolicManagement)/(1+(pAdheringToMetabolicManagement*rOddsIncAdherencetoOphthalmic))))/(1+((((1+rOddsIncAdherencetoOphthalmic)*pAdheringToMetabolicManagement)/(1+(pAdheringToMetabolicManagement*rOddsIncAdherencetoOphthalmic)))*rOddsIncAdherencetoVisionLoss))))) -> 0.001118011653 | DU11: =DT11*(1-(pNaturalHistoryVisionLossToVisionLossIrreversible)) -> 0.0007043473414 | DV11: =DT11*(pNaturalHistoryVisionLossToVisionLossIrreversible) -> 0.0004136643116 | DW11: =0 -> 0 | DX11: =0 + '2. Strategy Calcs'!DH10 + '2. Strategy Calcs'!DK10 + '2. Strategy Calcs'!DN10 + '2. Strategy Calcs'!DS10 + '2. Strategy Calcs'!DV10 + DX10 -> 0.006698482907 | DY11: =0 -> 0 | EA11: 0 | EB11: 0
B12: 4 | D12: ='2. Strategy Calcs'!Q12 -> 0.6200021575 | E12: ='2. Strategy Calcs'!AF12 -> 0.2910203435 | F12: ='2. Strategy Calcs'!BK12 -> 0.05047428564 | G12: ='2. Strategy Calcs'!BR12 -> 0.02069265346 | H12: ='2. Strategy Calcs'!CW12 -> 0.004076666615 | I12: ='2. Strategy Calcs'!DD12 -> 0.003779444413 | J12: ='2. Strategy Calcs'!DP12 -> 0.001712826375 | K12: ='2. Strategy Calcs'!DX12 -> 0.008241622485 | L12: ='2. Strategy Calcs'!DO12 + '2. Strategy Calcs'!DW12 + '2. Strategy Calcs'!DY12 -> 0 | M12: =M11 + L12 -> 0 | O12: 1 | Q12: =0 + U11 + X11 + AA11 + AD11 -> 0.6200021575 | R12: =Q12*(IF(AAmodelAI=AAmodelAI,pAcceptsScreeningAI,pAcceptsScreeningECP)) -> 0.5890020496 | S12: =R12*(1-(IF(AAmodelAI=AAmodelAI,specScreeningAI,specScreeningECP))) -> 0.05301018447 | T12: =S12*(IF(AAmodelAI=AAmodelAI,pAcceptsReferralAfterAI,pAcceptsReferralAfterECP)) -> 0.03975763835 | U12: =T12*(1-(pNaturalHistoryToDRDMetabolic)) -> 0.03776975643 | V12: =T12*(pNaturalHistoryToDRDMetabolic) -> 0.001987881917 | W12: =S12*(1-(IF(AAmodelAI=AAmodelAI,pAcceptsReferralAfterAI,pAcceptsReferralAfterECP))) -> 0.01325254612 | X12: =W12*(1-(pNaturalHistoryToDRDMetabolic)) -> 0.01258991881 | Y12: =W12*(pNaturalHistoryToDRDMetabolic) -> 0.0006626273058 | Z12: =R12*(IF(AAmodelAI=AAmodelAI,specScreeningAI,specScreeningECP)) -> 0.5359918652 | AA12: =Z12*(1-(pNaturalHistoryToDRDMetabolic)) -> 0.5091922719 | AB12: =Z12*(pNaturalHistoryToDRDMetabolic) -> 0.02679959326 | AC12: =Q12*(1-(IF(AAmodelAI=AAmodelAI,pAcceptsScreeningAI,pAcceptsScreeningECP))) -> 0.03100010788 | AD12: =AC12*(1-(pNaturalHistoryToDRDMetabolic)) -> 0.02945010248 | AE12: =AC12*(pNaturalHistoryToDRDMetabolic) -> 0.001550005394 | AF12: =0 + '2. Strategy Calcs'!V11 + '2. Strategy Calcs'!Y11 + '2. Strategy Calcs'!AB11 + '2. Strategy Calcs'!AE11 + AL11 + AR11 + AU11 + AX11 + BC11 + BI11 + '2. Strategy Calcs'!BP11 -> 0.2910203435 | AG12: =AF12*(1-(INDEX(pDRDMetabolicReferred_2,cycle+1))) -> 0.2910203435 | AH12: =AG12*(IF(AAmodelAI=AAmodelAI,pAcceptsScreeningAI,pAcceptsScreeningECP)) -> 0.2764693263 | AI12: =AH12*(IF(AAmodelAI=AAmodelAI,sensScreeningAI,sensScreeningECP)) -> 0.2405283139 | AJ12: =AI12*(IF(AAmodelAI=AAmodelAI,pAcceptsReferralAfterAI,pAcceptsReferralAfterECP)) -> 0.1803962354 | AK12: =AJ12*(1-(pAdheringToMetabolicManagement)) -> 0.1371011389 | AL12: =AK12*(1-(pNaturalHistoryDRDMetabolicToOphth)) -> 0.1343591162 | AM12: =AK12*(pNaturalHistoryDRDMetabolicToOphth) -> 0.002742022779 | AN12: =AJ12*(pAdheringToMetabolicManagement) -> 0.04329509651 | AO12: =AN12*(1-(pTreatedDRDMetabolicToOphth)) -> 0.04286214554 | AP12: =AN12*(pTreatedDRDMetabolicToOphth) -> 0.0004329509651 | AQ12: =AI12*(1-(IF(AAmodelAI=AAmodelAI,pAcceptsReferralAfterAI,pAcceptsReferralAfterECP))) -> 0.06013207848 | AR12: =AQ12*(1-(pNaturalHistoryDRDMetabolicToOphth)) -> 0.05892943691 | AS12: =AQ12*(pNaturalHistoryDRDMetabolicToOphth) -> 0.00120264157 | AT12: =AH12*(1-(IF(AAmodelAI=AAmodelAI,sensScreeningAI,sensScreeningECP))) -> 0.03594101242 | AU12: =AT12*(1-(pNaturalHistoryDRDMetabolicToOphth)) -> 0.03522219218 | AV12: =AT12*(pNaturalHistoryDRDMetabolicToOphth) -> 0.0007188202485 | AW12: =AG12*(1-(IF(AAmodelAI=AAmodelAI,pAcceptsScreeningAI,pAcceptsScreeningECP))) -> 0.01455101718 | AX12: =AW12*(1-(pNaturalHistoryDRDMetabolicToOphth)) -> 0.01425999683 | AY12: =AW12*(pNaturalHistoryDRDMetabolicToOphth) -> 0.0002910203435 | AZ12: =AF12*(INDEX(pDRDMetabolicReferred_2,cycle+1)) -> 0 | BA12: =AZ12*(IF(AAmodelAI=AAmodelAI,pAcceptsReferralAfterAI,pAcceptsReferralAfterECP)) -> 0 | BB12: =BA12*(1-(pAdheringToMetabolicManagement)) -> 0 | BC12: =BB12*(1-(pNaturalHistoryDRDMetabolicToOphth)) -> 0 | BD12: =BB12*(pNaturalHistoryDRDMetabolicToOphth) -> 0 | BE12: =BA12*(pAdheringToMetabolicManagement) -> 0 | BF12: =BE12*(1-(pTreatedDRDMetabolicToOphth)) -> 0 | BG12: =BE12*(pTreatedDRDMetabolicToOphth) -> 0 | BH12: =AZ12*(1-(IF(AAmodelAI=AAmodelAI,pAcceptsReferralAfterAI,pAcceptsReferralAfterECP))) -> 0 | BI12: =BH12*(1-(pNaturalHistoryDRDMetabolicToOphth)) -> 0 | BJ12: =BH12*(pNaturalHistoryDRDMetabolicToOphth) -> 0 | BK12: =0 + '2. Strategy Calcs'!AO11 + '2. Strategy Calcs'!BF11 + BM11 -> 0.05047428564 | BL12: =BK12*(pAdheringToMetabolicManagement) -> 0.01211382855 | BM12: =BL12*(1-(pTreatedDRDMetabolicToOphth)) -> 0.01199269027 | BN12: =BL12*(pTreatedDRDMetabolicToOphth) -> 0.0001211382855 | BO12: =BK12*(1-(pAdheringToMetabolicManagement)) -> 0.03836045708 | BP12: =BO12*(1-(pNaturalHistoryDRDMetabolicToOphth)) -> 0.03759324794 | BQ12: =BO12*(pNaturalHistoryDRDMetabolicToOphth) -> 0.0007672091417 | BR12: =0 + '2. Strategy Calcs'!AM11 + '2. Strategy Calcs'!AS11 + '2. Strategy Calcs'!AV11 + '2. Strategy Calcs'!AY11 + '2. Strategy Calcs'!BD11 + '2. Strategy Calcs'!BJ11 + '2. Strategy Calcs'!BQ11 + BX11 + CD11 + CG11 + CJ11 + CO11 + CU11 + '2. Strategy Calcs'!DB11 -> 0.02069265346 | BS12: =BR12*(1-(INDEX(pDRDOphthalmicReferred_2,cycle+1))) -> 0.02069265346 | BT12: =BS12*(IF(AAmodelAI=AAmodelAI,pAcceptsScreeningAI,pAcceptsScreeningECP)) -> 0.01965802078 | BU12: =BT12*(IF(AAmodelAI=AAmodelAI,sensScreeningAI,sensScreeningECP)) -> 0.01710247808 | BV12: =BU12*(IF(AAmodelAI=AAmodelAI,pAcceptsReferralAfterAI,pAcceptsReferralAfterECP)) -> 0.01282685856 | BW12: =BV12*(1-((((1+rOddsIncAdherencetoOphthalmic)*pAdheringToMetabolicManagement)/(1+(pAdheringToMetabolicManagement*rOddsIncAdherencetoOphthalmic))))) -> 0.009453464416 | BX12: =BW12*(1-(pNaturalHistoryDRDOphthToVisionLoss)) -> 0.008744454585 | BY12: =BW12*(pNaturalHistoryDRDOphthToVisionLoss) -> 0.0007090098312 | BZ12: =BV12*((((1+rOddsIncAdherencetoOphthalmic)*pAdheringToMetabolicManagement)/(1+(pAdheringToMetabolicManagement*rOddsIncAdherencetoOphthalmic)))) -> 0.003373394144 | CA12: =BZ12*(1-(pTreatedDRDOphthalmicToVisionLoss)) -> 0.003305926261 | CB12: =BZ12*(pTreatedDRDOphthalmicToVisionLoss) -> 6.746788289e-05 | CC12: =BU12*(1-(IF(AAmodelAI=AAmodelAI,pAcceptsReferralAfterAI,pAcceptsReferralAfterECP))) -> 0.00427561952 | CD12: =CC12*(1-(pNaturalHistoryDRDOphthToVisionLoss)) -> 0.003954948056 | CE12: =CC12*(pNaturalHistoryDRDOphthToVisionLoss) -> 0.000320671464 | CF12: =BT12*(1-(IF(AAmodelAI=AAmodelAI,sensScreeningAI,sensScreeningECP))) -> 0.002555542702 | CG12: =CF12*(1-(pNaturalHistoryDRDOphthToVisionLoss)) -> 0.002363876999 | CH12: =CF12*(pNaturalHistoryDRDOphthToVisionLoss) -> 0.0001916657026 | CI12: =BS12*(1-(IF(AAmodelAI=AAmodelAI,pAcceptsScreeningAI,pAcceptsScreeningECP))) -> 0.001034632673 | CJ12: =CI12*(1-(pNaturalHistoryDRDOphthToVisionLoss)) -> 0.0009570352223 | CK12: =CI12*(pNaturalHistoryDRDOphthToVisionLoss) -> 7.759745046e-05 | CL12: =BR12*(INDEX(pDRDOphthalmicReferred_2,cycle+1)) -> 0 | CM12: =CL12*(IF(AAmodelAI=AAmodelAI,pAcceptsReferralAfterAI,pAcceptsReferralAfterECP)) -> 0 | CN12: =CM12*(1-((((1+rOddsIncAdherencetoOphthalmic)*pAdheringToMetabolicManagement)/(1+(pAdheringToMetabolicManagement*rOddsIncAdherencetoOphthalmic))))) -> 0 | CO12: =CN12*(1-(pNaturalHistoryDRDOphthToVisionLoss)) -> 0 | CP12: =CN12*(pNaturalHistoryDRDOphthToVisionLoss) -> 0 | CQ12: =CM12*((((1+rOddsIncAdherencetoOphthalmic)*pAdheringToMetabolicManagement)/(1+(pAdheringToMetabolicManagement*rOddsIncAdherencetoOphthalmic)))) -> 0 | CR12: =CQ12*(1-(pTreatedDRDOphthalmicToVisionLoss)) -> 0 | CS12: =CQ12*(pTreatedDRDOphthalmicToVisionLoss) -> 0 | CT12: =CL12*(1-(IF(AAmodelAI=AAmodelAI,pAcceptsReferralAfterAI,pAcceptsReferralAfterECP))) -> 0 | CU12: =CT12*(1-(pNaturalHistoryDRDOphthToVisionLoss)) -> 0 | CV12: =CT12*(pNaturalHistoryDRDOphthToVisionLoss) -> 0 | CW12: =0 + '2. Strategy Calcs'!AP11 + '2. Strategy Calcs'!BG11 + '2. Strategy Calcs'!BN11 + '2. Strategy Calcs'!CA11 + '2. Strategy Calcs'!CR11 + CY11 -> 0.004076666615 | CX12: =CW12*((((1+rOddsIncAdherencetoOphthalmic)*pAdheringToMetabolicManagement)/(1+(pAdheringToMetabolicManagement*rOddsIncAdherencetoOphthalmic)))) -> 0.001072141181 | CY12: =CX12*(1-(pTreatedDRDOphthalmicToVisionLoss)) -> 0.001050698358 | CZ12: =CX12*(pTreatedDRDOphthalmicToVisionLoss) -> 2.144282362e-05 | DA12: =CW12*(1-((((1+rOddsIncAdherencetoOphthalmic)*pAdheringToMetabolicManagement)/(1+(pAdheringToMetabolicManagement*rOddsIncAdherencetoOphthalmic))))) -> 0.003004525434 | DB12: =DA12*(1-(pNaturalHistoryDRDOphthToVisionLoss)) -> 0.002779186027 | DC12: =DA12*(pNaturalHistoryDRDOphthToVisionLoss) -> 0.0002253394076 | DD12: =0 + '2. Strategy Calcs'!BY11 + '2. Strategy Calcs'!CE11 + '2. Strategy Calcs'!CH11 + '2. Strategy Calcs'!CK11 + '2. Strategy Calcs'!CP11 + '2. Strategy Calcs'!CV11 + '2. Strategy Calcs'!DC11 + DJ11 + DM11 + '2. Strategy Calcs'!DU11 -> 0.003779444413 | DE12: =DD12*(pDRDVisionLossAcceptsReferral) -> 0.002192077759 | DF12: =DE12*((((1+rOddsIncAdherencetoVisionLoss)*(((1+rOddsIncAdherencetoOphthalmic)*pAdheringToMetabolicManagement)/(1+(pAdheringToMetabolicManagement*rOddsIncAdherencetoOphthalmic))))/(1+((((1+rOddsIncAdherencetoOphthalmic)*pAdheringToMetabolicManagement)/(1+(pAdheringToMetabolicManagement*rOddsIncAdherencetoOphthalmic)))*rOddsIncAdherencetoVisionLoss)))) -> 0.000904875846 | DG12: =DF12*(1-(pTreatedDRDVisionlossToVisionLossIrreversible)) -> 0.0008741100673 | DH12: =DF12*(pTreatedDRDVisionlossToVisionLossIrreversible) -> 3.076577877e-05 | DI12: =DE12*(1-((((1+rOddsIncAdherencetoVisionLoss)*(((1+rOddsIncAdherencetoOphthalmic)*pAdheringToMetabolicManagement)/(1+(pAdheringToMetabolicManagement*rOddsIncAdherencetoOphthalmic))))/(1+((((1+rOddsIncAdherencetoOphthalmic)*pAdheringToMetabolicManagement)/(1+(pAdheringToMetabolicManagement*rOddsIncAdherencetoOphthalmic)))*rOddsIncAdherencetoVisionLoss))))) -> 0.001287201913 | DJ12: =DI12*(1-(pNaturalHistoryVisionLossToVisionLossIrreversible)) -> 0.0008109372053 | DK12: =DI12*(pNaturalHistoryVisionLossToVisionLossIrreversible) -> 0.0004762647079 | DL12: =DD12*(1-(pDRDVisionLossAcceptsReferral)) -> 0.001587366653 | DM12: =DL12*(1-(pNaturalHistoryVisionLossToVisionLossIrreversible)) -> 0.001000040992 | DN12: =DL12*(pNaturalHistoryVisionLossToVisionLossIrreversible) -> 0.0005873256617 | DO12: =0 -> 0 | DP12: =0 + '2. Strategy Calcs'!CB11 + '2. Strategy Calcs'!CS11 + '2. Strategy Calcs'!CZ11 + '2. Strategy Calcs'!DG11 + DR11 -> 0.001712826375 | DQ12: =DP12*((((1+rOddsIncAdherencetoVisionLoss)*(((1+rOddsIncAdherencetoOphthalmic)*pAdheringToMetabolicManagement)/(1+(pAdheringToMetabolicManagement*rOddsIncAdherencetoOphthalmic))))/(1+((((1+rOddsIncAdherencetoOphthalmic)*pAdheringToMetabolicManagement)/(1+(pAdheringToMetabolicManagement*rOddsIncAdherencetoOphthalmic)))*rOddsIncAdherencetoVisionLoss)))) -> 0.0007070439034 | DR12: =DQ12*(1-(pTreatedDRDVisionlossToVisionLossIrreversible)) -> 0.0006830044107 | DS12: =DQ12*(pTreatedDRDVisionlossToVisionLossIrreversible) -> 2.403949272e-05 | DT12: =DP12*(1-((((1+rOddsIncAdherencetoVisionLoss)*(((1+rOddsIncAdherencetoOphthalmic)*pAdheringToMetabolicManagement)/(1+(pAdheringToMetabolicManagement*rOddsIncAdherencetoOphthalmic))))/(1+((((1+rOddsIncAdherencetoOphthalmic)*pAdheringToMetabolicManagement)/(1+(pAdheringToMetabolicManagement*rOddsIncAdherencetoOphthalmic)))*rOddsIncAdherencetoVisionLoss))))) -> 0.001005782472 | DU12: =DT12*(1-(pNaturalHistoryVisionLossToVisionLossIrreversible)) -> 0.0006336429573 | DV12: =DT12*(pNaturalHistoryVisionLossToVisionLossIrreversible) -> 0.0003721395146 | DW12: =0 -> 0 | DX12: =0 + '2. Strategy Calcs'!DH11 + '2. Strategy Calcs'!DK11 + '2. Strategy Calcs'!DN11 + '2. Strategy Calcs'!DS11 + '2. Strategy Calcs'!DV11 + DX11 -> 0.008241622485 | DY12: =0 -> 0 | EA12: 0 | EB12: 0
B13: 5 | D13: ='2. Strategy Calcs'!Q13 -> 0.5890020496 | E13: ='2. Strategy Calcs'!AF13 -> 0.3113640979 | F13: ='2. Strategy Calcs'!BK13 -> 0.05485483581 | G13: ='2. Strategy Calcs'!BR13 -> 0.02452121497 | H13: ='2. Strategy Calcs'!CW13 -> 0.00491071387 | I13: ='2. Strategy Calcs'!DD13 -> 0.00396890501 | J13: ='2. Strategy Calcs'!DP13 -> 0.001646025184 | K13: ='2. Strategy Calcs'!DX13 -> 0.00973215764 | L13: ='2. Strategy Calcs'!DO13 + '2. Strategy Calcs'!DW13 + '2. Strategy Calcs'!DY13 -> 1534.708784 | M13: =M12 + L13 -> 1534.708784 | O13: 1 | Q13: =0 + U12 + X12 + AA12 + AD12 -> 0.5890020496 | AF13: =0 + '2. Strategy Calcs'!V12 + '2. Strategy Calcs'!Y12 + '2. Strategy Calcs'!AB12 + '2. Strategy Calcs'!AE12 + AL12 + AR12 + AU12 + AX12 + BC12 + BI12 + '2. Strategy Calcs'!BP12 -> 0.3113640979 | BK13: =0 + '2. Strategy Calcs'!AO12 + '2. Strategy Calcs'!BF12 + BM12 -> 0.05485483581 | BR13: =0 + '2. Strategy Calcs'!AM12 + '2. Strategy Calcs'!AS12 + '2. Strategy Calcs'!AV12 + '2. Strategy Calcs'!AY12 + '2. Strategy Calcs'!BD12 + '2. Strategy Calcs'!BJ12 + '2. Strategy Calcs'!BQ12 + BX12 + CD12 + CG12 + CJ12 + CO12 + CU12 + '2. Strategy Calcs'!DB12 -> 0.02452121497 | CW13: =0 + '2. Strategy Calcs'!AP12 + '2. Strategy Calcs'!BG12 + '2. Strategy Calcs'!BN12 + '2. Strategy Calcs'!CA12 + '2. Strategy Calcs'!CR12 + CY12 -> 0.00491071387 | DD13: =0 + '2. Strategy Calcs'!BY12 + '2. Strategy Calcs'!CE12 + '2. Strategy Calcs'!CH12 + '2. Strategy Calcs'!CK12 + '2. Strategy Calcs'!CP12 + '2. Strategy Calcs'!CV12 + '2. Strategy Calcs'!DC12 + DJ12 + DM12 + '2. Strategy Calcs'!DU12 -> 0.00396890501 | DO13: =DD13*(100000) -> 396.890501 | DP13: =0 + '2. Strategy Calcs'!CB12 + '2. Strategy Calcs'!CS12 + '2. Strategy Calcs'!CZ12 + '2. Strategy Calcs'!DG12 + DR12 -> 0.001646025184 | DW13: =DP13*(100000) -> 164.6025184 | DX13: =0 + '2. Strategy Calcs'!DH12 + '2. Strategy Calcs'!DK12 + '2. Strategy Calcs'!DN12 + '2. Strategy Calcs'!DS12 + '2. Strategy Calcs'!DV12 + DX12 -> 0.00973215764 | DY13: =DX13*(100000) -> 973.215764 | EA13: 0 | EB13: 0
B15: Total | L15: =SUM(L8:L13) -> 1534.708784 | M15: =M13 -> 1534.708784

Sheet 3. Strategy Calcs (hidden)
B1: Strategy | C1: 3 | D1: No Screening
B2: States | C2: All
N3: No DRD - State 3.1 | R3: DRD metabolic - State 3.2 | W3: DRD ophthalmic - State 3.3 | AB3: DRD Vision Loss - State 3.4 | AG3: Blindness - State 3.5
D4: Cohort State Proportions | N4: Cohort % | R4: Cohort % | W4: Cohort % | AB4: Cohort % | AF4: Payoff 4 - Vision Loss | AG4: Cohort % | AH4: Payoff 4 - Vision Loss
B5: Cycle | D5: No DRD | E5: DRD metabolic | F5: DRD ophthalmic | G5: DRD Vision Loss | H5: Blindness | I5: Payoff 4 - Vision Loss | L5: Checksum of Cohort % | N5: 3.1 State | O5: 3.1.1 Transition | P5: 3.1.1.1 Transition | Q5: 3.1.1.2 Transition | R5: 3.2 State | S5: 3.2.1 Transition | T5: 3.2.1.1 Transition | U5: 3.2.1.1.1 Transition | V5: 3.2.1.1.2 Transition | W5: 3.3 State | X5: 3.3.1 Transition | Y5: 3.3.1.1 Transition | Z5: 3.3.1.1.1 Transition | AA5: 3.3.1.1.2 Transition | AB5: 3.4 State | AC5: 3.4.1 Transition | AD5: 3.4.1.1 Transition | AE5: 3.4.1.2 Transition | AF5: 3.4 State | AG5: 3.5 State | AH5: 3.5 State | AJ5: pDRDMetabolicReferred | AK5: pDRDOphthalmicReferred
I6: No Discount | J6: Cum No Disc | N6: No DRD | O6: Does not accept Screen | P6: Does not progress | Q6: Progresses to DRD Metabolic | R6: DRD metabolic | S6: Offered Screening | T6: Does not accept Screen | U6: DRD metabolic | V6: DRD ophthalmic | W6: DRD ophthalmic | X6: Offered Screening | Y6: Does not accept Screen | Z6: DRD ophthalmic | AA6: Progresses from DRD requiring ophthalmic control to vision loss | AB6: DRD Vision Loss | AC6: Does not accept referral | AD6: Persistent vision loss | AE6: Blindness | AF6: DRD Vision Loss | AG6: Blindness | AH6: Blindness
B8: 0 | D8: =1-(prevDRDMetabolic)-((propDRDOphthalmic*prevDRDMetabolic))-(prevDRDVisionLoss)-(0) -> 0.7612 | E8: =prevDRDMetabolic -> 0.22 | F8: =(propDRDOphthalmic*prevDRDMetabolic) -> 0.0088 | G8: =prevDRDVisionLoss -> 0.01 | H8: =0 -> 0 | I8: ='3. Strategy Calcs'!AF8 + '3. Strategy Calcs'!AH8 -> 0 | J8: =I8 -> 0 | L8: =SUM(D8:H8) -> 1 | N8: ='3. Strategy Calcs'!D8 -> 0.7612 | O8: =N8*(1) -> 0.7612 | P8: =O8*(1-(pNaturalHistoryToDRDMetabolic)) -> 0.72314 | Q8: =O8*(pNaturalHistoryToDRDMetabolic) -> 0.03806 | R8: ='3. Strategy Calcs'!E8 -> 0.22 | S8: =R8*(1) -> 0.22 | T8: 0.22 | U8: =T8*(1-(pNaturalHistoryDRDMetabolicToOphth)) -> 0.2156 | V8: =T8*(pNaturalHistoryDRDMetabolicToOphth) -> 0.0044 | W8: ='3. Strategy Calcs'!F8 -> 0.0088 | X8: =W8*(1) -> 0.0088 | Y8: 0.0088 | Z8: =Y8*(1-(pNaturalHistoryDRDOphthToVisionLoss)) -> 0.00814 | AA8: =Y8*(pNaturalHistoryDRDOphthToVisionLoss) -> 0.00066 | AB8: ='3. Strategy Calcs'!G8 -> 0.01 | AC8: =AB8*(1) -> 0.01 | AD8: =AC8*(1-(pNaturalHistoryVisionLossToVisionLossIrreversible)) -> 0.0063 | AE8: =AC8*(pNaturalHistoryVisionLossToVisionLossIrreversible) -> 0.0037 | AF8: =0 -> 0 | AG8: ='3. Strategy Calcs'!H8 -> 0 | AH8: =0 -> 0 | AJ8: =IF(cycle=0,1,0) -> 1 | AK8: 1
B9: 1 | D9: ='3. Strategy Calcs'!N9 -> 0.72314 | E9: ='3. Strategy Calcs'!R9 -> 0.25366 | F9: ='3. Strategy Calcs'!W9 -> 0.01254 | G9: ='3. Strategy Calcs'!AB9 -> 0.00696 | H9: ='3. Strategy Calcs'!AG9 -> 0.0037 | I9: ='3. Strategy Calcs'!AF9 + '3. Strategy Calcs'!AH9 -> 0 | J9: =J8 + I9 -> 0 | L9: 1 | N9: =0 + P8 -> 0.72314 | O9: =N9*(1) -> 0.72314 | P9: =O9*(1-(pNaturalHistoryToDRDMetabolic)) -> 0.686983 | Q9: =O9*(pNaturalHistoryToDRDMetabolic) -> 0.036157 | R9: =0 + '3. Strategy Calcs'!Q8 + U8 -> 0.25366 | S9: 0.25366 | T9: 0.25366 | U9: =T9*(1-(pNaturalHistoryDRDMetabolicToOphth)) -> 0.2485868 | V9: =T9*(pNaturalHistoryDRDMetabolicToOphth) -> 0.0050732 | W9: =0 + '3. Strategy Calcs'!V8 + Z8 -> 0.01254 | X9: 0.01254 | Y9: 0.01254 | Z9: =Y9*(1-(pNaturalHistoryDRDOphthToVisionLoss)) -> 0.0115995 | AA9: =Y9*(pNaturalHistoryDRDOphthToVisionLoss) -> 0.0009405 | AB9: =0 + '3. Strategy Calcs'!AA8 + AD8 -> 0.00696 | AC9: =AB9*(1) -> 0.00696 | AD9: =AC9*(1-(pNaturalHistoryVisionLossToVisionLossIrreversible)) -> 0.0043848 | AE9: =AC9*(pNaturalHistoryVisionLossToVisionLossIrreversible) -> 0.0025752 | AF9: =0 -> 0 | AG9: =0 + '3. Strategy Calcs'!AE8 + AG8 -> 0.0037 | AH9: =0 -> 0 | AJ9: 0 | AK9: 0
B10: 2 | D10: ='3. Strategy Calcs'!N10 -> 0.686983 | E10: ='3. Strategy Calcs'!R10 -> 0.2847438 | F10: ='3. Strategy Calcs'!W10 -> 0.0166727 | G10: ='3. Strategy Calcs'!AB10 -> 0.0053253 | H10: ='3. Strategy Calcs'!AG10 -> 0.0062752 | I10: ='3. Strategy Calcs'!AF10 + '3. Strategy Calcs'!AH10 -> 0 | J10: =J9 + I10 -> 0 | L10: 1 | N10: =0 + P9 -> 0.686983 | O10: =N10*(1) -> 0.686983 | P10: =O10*(1-(pNaturalHistoryToDRDMetabolic)) -> 0.65263385 | Q10: =O10*(pNaturalHistoryToDRDMetabolic) -> 0.03434915 | R10: =0 + '3. Strategy Calcs'!Q9 + U9 -> 0.2847438 | S10: 0.2847438 | T10: 0.2847438 | U10: =T10*(1-(pNaturalHistoryDRDMetabolicToOphth)) -> 0.279048924 | V10: =T10*(pNaturalHistoryDRDMetabolicToOphth) -> 0.005694876 | W10: =0 + '3. Strategy Calcs'!V9 + Z9 -> 0.0166727 | X10: 0.0166727 | Y10: 0.0166727 | Z10: =Y10*(1-(pNaturalHistoryDRDOphthToVisionLoss)) -> 0.0154222475 | AA10: =Y10*(pNaturalHistoryDRDOphthToVisionLoss) -> 0.0012504525 | AB10: =0 + '3. Strategy Calcs'!AA9 + AD9 -> 0.0053253 | AC10: =AB10*(1) -> 0.0053253 | AD10: =AC10*(1-(pNaturalHistoryVisionLossToVisionLossIrreversible)) -> 0.003354939 | AE10: =AC10*(pNaturalHistoryVisionLossToVisionLossIrreversible) -> 0.001970361 | AF10: =0 -> 0 | AG10: =0 + '3. Strategy Calcs'!AE9 + AG9 -> 0.0062752 | AH10: =0 -> 0 | AJ10: 0 | AK10: 0
B11: 3 | D11: ='3. Strategy Calcs'!N11 -> 0.65263385 | E11: ='3. Strategy Calcs'!R11 -> 0.313398074 | F11: ='3. Strategy Calcs'!W11 -> 0.0211171235 | G11: ='3. Strategy Calcs'!AB11 -> 0.0046053915 | H11: ='3. Strategy Calcs'!AG11 -> 0.008245561 | I11: ='3. Strategy Calcs'!AF11 + '3. Strategy Calcs'!AH11 -> 0 | J11: =J10 + I11 -> 0 | L11: 1 | N11: =0 + P10 -> 0.65263385 | O11: =N11*(1) -> 0.65263385 | P11: =O11*(1-(pNaturalHistoryToDRDMetabolic)) -> 0.6200021575 | Q11: =O11*(pNaturalHistoryToDRDMetabolic) -> 0.0326316925 | R11: =0 + '3. Strategy Calcs'!Q10 + U10 -> 0.313398074 | S11: 0.313398074 | T11: 0.313398074 | U11: =T11*(1-(pNaturalHistoryDRDMetabolicToOphth)) -> 0.3071301125 | V11: =T11*(pNaturalHistoryDRDMetabolicToOphth) -> 0.00626796148 | W11: =0 + '3. Strategy Calcs'!V10 + Z10 -> 0.0211171235 | X11: 0.0211171235 | Y11: 0.0211171235 | Z11: =Y11*(1-(pNaturalHistoryDRDOphthToVisionLoss)) -> 0.01953333924 | AA11: =Y11*(pNaturalHistoryDRDOphthToVisionLoss) -> 0.001583784263 | AB11: =0 + '3. Strategy Calcs'!AA10 + AD10 -> 0.0046053915 | AC11: =AB11*(1) -> 0.0046053915 | AD11: =AC11*(1-(pNaturalHistoryVisionLossToVisionLossIrreversible)) -> 0.002901396645 | AE11: =AC11*(pNaturalHistoryVisionLossToVisionLossIrreversible) -> 0.001703994855 | AF11: =0 -> 0 | AG11: =0 + '3. Strategy Calcs'!AE10 + AG10 -> 0.008245561 | AH11: =0 -> 0 | AJ11: 0 | AK11: 0
B12: 4 | D12: ='3. Strategy Calcs'!N12 -> 0.6200021575 | E12: ='3. Strategy Calcs'!R12 -> 0.339761805 | F12: ='3. Strategy Calcs'!W12 -> 0.02580130072 | G12: ='3. Strategy Calcs'!AB12 -> 0.004485180908 | H12: ='3. Strategy Calcs'!AG12 -> 0.009949555855 | I12: ='3. Strategy Calcs'!AF12 + '3. Strategy Calcs'!AH12 -> 0 | J12: =J11 + I12 -> 0 | L12: 1 | N12: =0 + P11 -> 0.6200021575 | O12: =N12*(1) -> 0.6200021575 | P12: =O12*(1-(pNaturalHistoryToDRDMetabolic)) -> 0.5890020496 | Q12: =O12*(pNaturalHistoryToDRDMetabolic) -> 0.03100010788 | R12: =0 + '3. Strategy Calcs'!Q11 + U11 -> 0.339761805 | S12: 0.339761805 | T12: 0.339761805 | U12: =T12*(1-(pNaturalHistoryDRDMetabolicToOphth)) -> 0.3329665689 | V12: =T12*(pNaturalHistoryDRDMetabolicToOphth) -> 0.0067952361 | W12: =0 + '3. Strategy Calcs'!V11 + Z11 -> 0.02580130072 | X12: 0.02580130072 | Y12: 0.02580130072 | Z12: =Y12*(1-(pNaturalHistoryDRDOphthToVisionLoss)) -> 0.02386620316 | AA12: =Y12*(pNaturalHistoryDRDOphthToVisionLoss) -> 0.001935097554 | AB12: =0 + '3. Strategy Calcs'!AA11 + AD11 -> 0.004485180908 | AC12: =AB12*(1) -> 0.004485180908 | AD12: =AC12*(1-(pNaturalHistoryVisionLossToVisionLossIrreversible)) -> 0.002825663972 | AE12: =AC12*(pNaturalHistoryVisionLossToVisionLossIrreversible) -> 0.001659516936 | AF12: =0 -> 0 | AG12: =0 + '3. Strategy Calcs'!AE11 + AG11 -> 0.009949555855 | AH12: =0 -> 0 | AJ12: 0 | AK12: 0
B13: 5 | D13: ='3. Strategy Calcs'!N13 -> 0.5890020496 | E13: ='3. Strategy Calcs'!R13 -> 0.3639666768 | F13: ='3. Strategy Calcs'!W13 -> 0.03066143926 | G13: ='3. Strategy Calcs'!AB13 -> 0.004760761526 | H13: ='3. Strategy Calcs'!AG13 -> 0.01160907279 | I13: ='3. Strategy Calcs'!AF13 + '3. Strategy Calcs'!AH13 -> 1636.983432 | J13: =J12 + I13 -> 1636.983432 | L13: 1 | N13: =0 + P12 -> 0.5890020496 | R13: =0 + '3. Strategy Calcs'!Q12 + U12 -> 0.3639666768 | W13: =0 + '3. Strategy Calcs'!V12 + Z12 -> 0.03066143926 | AB13: =0 + '3. Strategy Calcs'!AA12 + AD12 -> 0.004760761526 | AF13: =AB13*(100000) -> 476.0761526 | AG13: =0 + '3. Strategy Calcs'!AE12 + AG12 -> 0.01160907279 | AH13: =AG13*(100000) -> 1160.907279 | AJ13: 0 | AK13: 0
B15: Total | I15: =SUM(I8:I13) -> 1636.983432 | J15: =J13 -> 1636.983432

Sheet State Trans Diag (hidden)
A1: State Transition Diagram of Strategy: | B1: ECP | Q1: Tree Diagram
A35: State Transition Diagram of Strategy: | B35: AI
B37: Same As | C37: ECP
A38: State Transition Diagram of Strategy: | B38: No Screening

Sheet Original Data & Results (hidden)
B2: Original Data from TreeAge Pro Model
B4: INPUTS | G4: CURRENT MODEL RESULTS
B5: Description | C5: Value | D5: Reference in TreeAge | G5: ='Inputs & Results'!F17 -> Strategy | H5: ='Inputs & Results'!G17 -> Payoff 4 - Vision Loss per 100,000
B6: Parameter Variables | G6: ='Inputs & Results'!F18 -> ECP | H6: ='Inputs & Results'!G18 -> 1625.159107
B7: Probability of progressing from No DRD to DRD Metabolic in the absence of treatment | C7: 0.05 | D7: pNaturalHistoryToDRDMetabolic | G7: ='Inputs & Results'!F19 -> AI | H7: ='Inputs & Results'!G19 -> 1534.708784
B8: Probability of progressing from DRD Metabolic to DRD Ophthalmic in the absence of treatment | C8: 0.02 | D8: pNaturalHistoryDRDMetabolicToOphth | G8: ='Inputs & Results'!F20 -> No Screening | H8: ='Inputs & Results'!G20 -> 1636.983432
B9: Probability of progressing from DRD Metabolic to DRD Ophthalmic in the presence of treatment | C9: 0.01 | D9: pTreatedDRDMetabolicToOphth
C10: 0.13 | D10: rOddsIncAdherencetoOphthalmic | G10: ORIGINAL MODEL RESULTS FROM EXCEL
B11: Probability of progressing from DRD Ophthalmic to vision loss in the absence of treatment | C11: 0.075 | D11: pNaturalHistoryDRDOphthToVisionLoss | G11: Strategy | H11: Payoff 4 - Vision Loss
B12: Probability of progressing from vision loss to irreversible vision loss in the absence of treatment | C12: 0.37 | D12: pNaturalHistoryVisionLossToVisionLossIrreversible | G12: ECP | H12: 1625.159107
B13: Probability of progressing from DRD with vision loss to irreversible vision loss despite treatment | C13: 0.034 | D13: pTreatedDRDVisionlossToVisionLossIrreversible | G13: AI | H13: 1534.708784
C14: 0.97 | D14: rOddsIncAdherencetoVisionLoss | G14: No Screening | H14: 1636.983432
B15: Probability of adhering with metabolic management | C15: 0.24 | D15: pAdheringToMetabolicManagement
C16: 0.004 | D16: pNaturalHistoryToOphthalmic | G16: ORIGINAL MODEL RESULTS FROM TREEAGE PRO
B17: Probability of patient following up with ECP after ECP screen positive | C17: 0.29 | D17: pAcceptsReferralAfterECP | G17: Strategy | H17: Payoff 4 - Vision Loss
B18: Probability of patient accepting screening with ECP | C18: 0.2 | D18: pAcceptsScreeningECP | G18: ECP | H18: 1625.159107
B19: Probability of patient accepting screening with AI | C19: 0.95 | D19: pAcceptsScreeningAI | G19: AI | H19: 1534.708784
B20: Sensitivity Screening for DRD with AI | C20: 0.87 | D20: sensScreeningAI | G20: No Screening | H20: 1636.983432
B21: Sensitivity Screening for DRD with ECP | C21: 0.33 | D21: sensScreeningECP
B22: Specificity Screening for DRD with AI | C22: 0.91 | D22: specScreeningAI
C23: 1 | D23: AAmodelAI
C24: 2 | D24: AAmodelECP
B25: Probability of accepting follow up care in case of DRD with vision loss | C25: 0.58 | D25: pDRDVisionLossAcceptsReferral
B26: Prevalence of DRD Metabolic | C26: 0.22 | D26: prevDRDMetabolic
C27: 0 | D27: prevDRDMetabolicRx
C28: 0.04 | D28: propDRDOphthalmic
C29: 0 | D29: prevDRDOphthalmicRx
B30: Prevalence of DRD with vision loss | C30: 0.01 | D30: prevDRDVisionLoss
C31: 0 | D31: prevDRDVisionLossRx
B32: Probability of progressing from DRD Ophthalmic to vision loss in the presence of treatment | C32: 0.02 | D32: pTreatedDRDOphthalmicToVisionLoss
B33: Probability of patient following up with ECP after AI screen positive | C33: 0.75 | D33: pAcceptsReferralAfterAI
B34: Specificity Screening for DRD with ECP | C34: 0.99 | D34: specScreeningECP

Sheet TP Internal Formulas (hidden)
A1: EXTRAS
A3: This worksheet includes elements from the TreeAge Pro model that are not actively used in the exported Excel model.
A4: They are included here for reference only.
A6: TreeAge Pro Variable Sensitivity Analysis Range
A8: Name | B8: Low | C8: High
A9: pNaturalHistoryToDRDMetabolic | B9: 0 | C9: 0.15
A10: pNaturalHistoryDRDMetabolicToOphth | B10: 0 | C10: 0.2
A11: pTreatedDRDMetabolicToOphth | B11: 0 | C11: 0.05
A12: rOddsIncAdherencetoOphthalmic | B12: 0.1 | C12: 10
A13: pNaturalHistoryDRDOphthToVisionLoss | B13: 0 | C13: 0.2
A14: pNaturalHistoryVisionLossToVisionLossIrreversible | B14: 0 | C14: 0.5
A15: pTreatedDRDVisionlossToVisionLossIrreversible | B15: 0 | C15: 0.05
A16: rOddsIncAdherencetoVisionLoss | B16: 0.1 | C16: 10
A17: pAdheringToMetabolicManagement | B17: 0 | C17: 1
A18: pNaturalHistoryToOphthalmic | B18: 0 | C18: 0.01
A19: pAcceptsReferralAfterECP | B19: 0 | C19: 1
A20: pAcceptsScreeningECP | B20: 0 | C20: 0.8
A21: pAcceptsScreeningAI | B21: 0 | C21: 1
A22: sensScreeningAI | B22: 0 | C22: 1
A23: sensScreeningECP | B23: 0 | C23: 1
A24: specScreeningAI | B24: 0 | C24: 1
A25: AAmodelAI | B25: 0 | C25: 1
A26: AAmodelECP | B26: 0 | C26: 2
A27: pDRDVisionLossAcceptsReferral | B27: 0 | C27: 0.75
A28: prevDRDMetabolic | B28: 0 | C28: 0.4
A29: prevDRDMetabolicRx | B29: 0 | C29: 0
A30: propDRDOphthalmic | B30: 0 | C30: 0.1
A31: prevDRDOphthalmicRx | B31: 0 | C31: 0
A32: prevDRDVisionLoss | B32: 0 | C32: 0.05
A33: prevDRDVisionLossRx | B33: 0 | C33: 0
A34: pTreatedDRDOphthalmicToVisionLoss | B34: 0 | C34: 0.5
A35: pAcceptsReferralAfterAI | B35: 0 | C35: 1
A36: specScreeningECP | B36: 0 | C36: 1
A38: Sensitivity analysis ranges are used in TreeAge Pro, but not in the converted Excel model.
A41: TreeAge Pro Variable Formulas
A43: Name | B43: Value
A44: pDRDMetabolicReferred | B44: if (_stage = 0; 1; 0)
A45: pDRDOphthalmicReferred | B45: if (_stage = 0; 1; 0)
A46: pAdheringToVisionLossManagement | B46: ((1+rOddsIncAdherencetoVisionLoss) * pAdheringToOphthalmicManagement)/(1+ pAdheringToOphthalmicManagement*rOddsIncAdherencetoVisionLoss)
A47: spec | B47: if(AAmodel=AAmodelAI; specScreeningAI;specScreeningECP)
A48: pAcceptsReferralAfterScreen | B48: if(AAmodel=AAmodelAI; pAcceptsReferralAfterAI;pAcceptsReferralAfterECP)
A49: pAcceptsScreening | B49: if(AAmodel=AAmodelAI; pAcceptsScreeningAI;pAcceptsScreeningECP)
A50: sens | B50: if(AAmodel=AAmodelAI; sensScreeningAI;sensScreeningECP)
A51: AAmodel | B51: AAmodelAI
A52: prevDRDOphthalmic | B52: propDRDOphthalmic * prevDRDMetabolic
A53: pAdheringToOphthalmicManagement | B53: ((1+rOddsIncAdherencetoOphthalmic) * pAdheringToMetabolicManagement)/(1+pAdheringToMetabolicManagement*rOddsIncAdherencetoOphthalmic)
A55: Formulas above are integrated into cohort analysis sheets in the converted Excel model.
A59: Green cells are editable
A60: Gray cells - no impact on calculation
